{"text_format":"1","workbook":"xlsx","n_sheets":3,"sheets":["SAPBEXqueries","SAPBEXfilters","Page B3, 1-5"],"not_rendered":{"charts":0,"images":3,"macros":1,"external_links":0,"defined_names":139,"comments":0,"pivot_tables":0},"unopened":[],"bounds":{"document_bytes":16777216,"sheet_cells":100000,"rows_first":2000,"rows_last":500,"rows_between":2000,"halvings":0,"cell_chars":16384,"cell_head_chars":4096},"cells_cut":0,"cells_raw":0,"read":"whole","date_system":"1900"}

{"sheet":"SAPBEXqueries","index":0,"n_rows":171,"n_cols":233,"rows_kept":171,"cut":false,"hidden":true,"merged":[]}
[9]
[3,null,null,null,null,null,null,null,null,null,null,null,null,null,null,null,null,null,null,null,null,null,null,null,null,null,null,null,null,null,39,null,null,null,null,null,null,null,null,null,null,null,null,null,null,null,null,null,null,null,null,null,null,null,null,null,null,null,null,null,null,null,null,null,null,null,null,null,null,null,null,null,null,null,null,null,null,null,null,null,null,null,null,null,null,null,null,null,null,null,43,null,null,null,null,null,null,null,null,null,null,null,null,null,null,null,null,null,null,null,168,null,null,null,null,null,null,null,null,null,null,null,null,null,null,null,null,null,null,null,78,null,null,null,null,null,null,null,null,null,null,null,null,null,null,null,null,null,null,null,0,null,null,null,null,null,null,null,null,null,null,null,null,null,null,null,null,null,null,null,null,null,null,null,null,null,null,null,null,null,43,null,null,null,null,null,null,null,null,null,null,null,null,null,null,null,null,null,null,null,null,null,null,null,null,null,null,null,null,null,null,null,null,null,null,null,null,null,null,null,null,null,null,null,null,null,null,null,null,null,97]
[24,null,null,null,null,null,null,null,null,null,null,null,null,null,null,null,null,null,null,null,null,null,null,null,null,null,null,null,null,null,59,null,null,null,null,null,null,null,null,null,null,null,null,null,null,null,null,null,null,null,null,null,null,null,null,null,null,null,null,null,null,null,null,null,null,null,null,null,null,null,null,null,null,null,null,null,null,null,null,null,null,null,null,null,null,null,null,null,null,null,13,null,null,null,null,null,null,null,null,null,null,null,null,null,null,null,null,null,null,null,15,null,null,null,null,null,null,null,null,null,null,null,null,null,null,null,null,null,null,null,13,null,null,null,null,null,null,null,null,null,null,null,null,null,null,null,null,null,null,null,11,null,null,null,null,null,null,null,null,null,null,null,null,null,null,null,null,null,null,null,null,null,null,null,null,null,null,null,null,null,21,null,null,null,null,null,null,null,null,null,null,null,null,null,null,null,null,null,null,null,null,null,null,null,null,null,null,null,null,null,null,null,null,null,null,null,null,null,null,null,null,null,null,null,null,null,null,null,null,null,2]
[null,0,"45B2RPXJGDNDOCAJLTHPCMAYP",true,true,"SAPBEXq0002",0,0,false,null,null,true,false,null,true,false,1,null,5,true,false,null,null,false,false,false,null,null,null,null,6,"45GNYLS3V6HRAXCFZ22SH6BK1","FERC Regional Assignment","","X","","0001","","Total","","","","","U","","00","","","","","K","45GNYLS3V6HRAXCFZ22SH6BK1","A","","","","","","","","","00000000","0000","","0","","1","","","0","0","0","0","0","","","","","","45GNYLS3V6HRAXCFZ22SH6BK1","","","","","","","0000","","","",6,"45BYHSJ2JI4710LQ5JOBPNI81","45BYHSQR2GPWJN56BDQNZPGXT","Actuals","0001","","S","","L","","","","","",null,null,null,null,null,null,6,"ZISJARS01___F00006","0BAL_FLAG","Balance Sheet Acct","0000","X","2","0","0","","","","","0000","","",null,null,null,null,6,"45BYHSQR2GPWJN56BDQNZPGXT","45GNYLZSE53GTJVW4W54R8A9T","3","0","","","","01","X","0","0","","",null,null,null,null,null,null,null,null,null,null,null,null,null,null,null,null,null,null,null,null,null,null,null,null,null,null,null,null,null,null,null,null,null,null,null,null,6,"0P_BVER1","1","P","I","EQ","000","0","","","Actuals / Detailed Plan","40","","0","","0","","20","","","ZISJARS01___F00008","",null,null,null,null,null,null,null,null,null,null,null,null,null,null,null,null,null,null,null,null,null,null,null,null,null,null,null,null,6,"0000000107","45BYHPJJ61O9S91FVURJSW075"]
[null,0,"45B2RPXJGDNDOCAJLTHPCMAYP",true,true,"SAPBEXq0001",2,6,false,null,null,true,false,null,true,false,1,null,5,true,false,null,null,false,false,false,null,null,null,null,6,"ZISJARS01___F00006","Account Number","X","","","0002","","","","","","","U","0","03","","","","00000000","K","ZISJARS01___F00006","A","","","H","","","","","","00000000","0000","","0","","","","2","1","1","1","0","0","","","","","0","45BYHQ6KQXHEC4NSDCYKN1WCH","","","","","","","0000","","","",6,"45GNYLS3V6HRAXCFZ22SH6BK1","45GNYLZSE53GTJVW4W54R8A9T","Total","0001","","S","","L","","","","","",null,null,null,null,null,null,6,"ZISJARS01___F00006","0CSTEL_FLAG","Ind.: Cost Element","0000","X","2","0","0","","","","","0000","","",null,null,null,null,6,"45BYHSQR2GPWJN56BDQNZPGXT","45GNYM7GX3P6C6FCAQ7H1A8ZL","3","0","","","","01","X","0","0","","",null,null,null,null,null,null,null,null,null,null,null,null,null,null,null,null,null,null,null,null,null,null,null,null,null,null,null,null,null,null,null,null,null,null,null,null,6,"ZSFRCACT","1","S","","","","","","","","0","","0","","0","","20","","","ZISJARS01___F00001","",null,null,null,null,null,null,null,null,null,null,null,null,null,null,null,null,null,null,null,null,null,null,null,null,null,null,null,null,6,"0000000100",""]
[null,0,"45BYHTT5P9QG4RUF4K2DDZAIP",true,true,"SAPBEXq0003",2,6,false,null,null,true,false,null,true,false,1,null,5,true,false,null,null,false,false,false,null,null,null,null,6,"ZISJARS01___F00029","Allocation Version","X","","","0003","","","","","","","U","1","03","","","","00000000","S","ZISJARS01___F00029","A","","","H","","","","","","00000000","0000","","0","","","","2","1","1","1","0","0","","","","","0","45BYHQE99W33UR78J70WX3V29","","","","","","","0000","","","",6,"45BYHSJ2JI4710LQ5JOBPNI81","45BYHSYFLFBM29OMH7T09RFNL"," Actuals / Detailed Plan","0002","","S","","L","","","","","",null,null,null,null,null,null,6,"ZISJARS01___F00006","0GLACC_FLAG","G/L account","0000","X","2","0","0","","","","","0000","","",null,null,null,null,6,"45BYHSQR2GPWJN56BDQNZPGXT","45GNYMF5G2AVUSYSGK9TBC7PD","3","0","","","","01","X","0","0","","",null,null,null,null,null,null,null,null,null,null,null,null,null,null,null,null,null,null,null,null,null,null,null,null,null,null,null,null,null,null,null,null,null,null,null,null,6,"ZJRSCLMN","1","P","I","EQ","201106","06/2011","","","JUN 2011","40","","0","","0","","20","","","ZISJARS01___F00025","",null,null,null,null,null,null,null,null,null,null,null,null,null,null,null,null,null,null,null,null,null,null,null,null,null,null,null,null,6,"0000000101",""]
[null,null,null,null,null,null,null,null,null,null,null,null,null,null,null,null,null,null,null,null,null,null,null,null,null,false,null,null,null,null,6,"ZISJARS01___F00014","Calendar Year/Month","X","","","0004","","","","","","","U","2","03","","","","00000000","K","ZISJARS01___F00014","A","","","H","","","","","","00000000","0000","","0","","","","2","1","1","1","0","0","","","","","0","45BYHQLXSUOTDDQOP13975TS1","","","","","","","0000","","","",6,"45GNYLS3V6HRAXCFZ22SH6BK1","45GNYM7GX3P6C6FCAQ7H1A8ZL","Calif","0002","Y","S","","L","","","","","",null,null,null,null,null,null,6,"ZISJARS01___F00006","0LOGSYS","Source System","0000","X","1","0","0","","","","","0000","","",null,null,null,null,6,"45BYHSQR2GPWJN56BDQNZPGXT","45GNYMMTZ0WLDFI8MEC5LE6F5","3","0","","","","01","X","0","0","","",null,null,null,null,null,null,null,null,null,null,null,null,null,null,null,null,null,null,null,null,null,null,null,null,null,null,null,null,null,null,null,null,null,null,null,null,6,"ZPMETHOD","1","P","I","EQ","03","3","","","Factor 2010 Protocol","40","","0","","0","","20","","","ZISJARS01___F00024","",null,null,null,null,null,null,null,null,null,null,null,null,null,null,null,null,null,null,null,null,null,null,null,null,null,null,null,null,6,"0000000104","1"]
[null,null,null,null,null,null,null,null,null,null,null,null,null,null,null,null,null,null,null,null,null,null,null,null,null,false,null,null,null,null,6,"ZISJARS01___F00011","Company code","X","","","0005","","","","","","","U","0","03","","","","00000000","K","ZISJARS01___F00011","A","","","H","","","","","","00000000","0000","","0","","","","2","1","1","1","0","0","","","","","0","45BYHQTMBTAIW0A4UV5LH7SHT","","","","","","","0000","","","",6,"45BYHSJ2JI4710LQ5JOBPNI81","45BYHT644DXBKW82N1VCJTEDD","Var $","0003","","F","","L","","","","","",null,null,null,null,null,null,6,"ZISJARS01___F00006","0SEM_POSIT","Planning Item","0000","X","1","0","0","","","","","0000","","",null,null,null,null,6,"45BYHSQR2GPWJN56BDQNZPGXT","45GNYMUIHZIAW21OS8EHVG54X","3","0","","","","01","X","0","0","","",null,null,null,null,null,null,null,null,null,null,null,null,null,null,null,null,null,null,null,null,null,null,null,null,null,null,null,null,null,null,null,null,null,null,null,null,6,"ZSVERSN","1","P","I","EQ","01","1","","","Average","40","","0","","0","","20","","","ZISJARS01___F00029","",null,null,null,null,null,null,null,null,null,null,null,null,null,null,null,null,null,null,null,null,null,null,null,null,null,null,null,null,6,"0000000103",""]
[null,null,null,null,null,null,null,null,null,null,null,null,null,null,null,null,null,null,null,null,null,null,null,null,null,null,null,null,null,null,6,"ZISJARS01___F00002","FERC Location Code","X","","","0006","","","","","","","U","1","03","","","","00000000","K","ZISJARS01___F00002","A","","","H","","","","","","00000000","0000","","0","","","","2","1","1","1","0","0","","","","","0","45BYHR1AURW8EMTL0P7XR9R7L","","","","","","","0000","","","",6,"45GNYLS3V6HRAXCFZ22SH6BK1","45GNYMF5G2AVUSYSGK9TBC7PD","Oregon","0003","Y","S","","L","","","","","",null,null,null,null,null,null,6,"ZISJARS01___F00029","ZJRSRBCD","JARS Rate Base Code","0000","X","2","0","0","","","","","0000","","",null,null,null,null,6,"45BYHSQR2GPWJN56BDQNZPGXT","45GNYN270Y40EOL4Y2GU5I3UP","3","0","","","","01","X","0","0","","",null,null,null,null,null,null,null,null,null,null,null,null,null,null,null,null,null,null,null,null,null,null,null,null,null,null,null,null,null,null,null,null,null,null,null,null,6,"ZSFACTOR","1","S","E","EQ","NUTIL","NUTIL","","","","40","","0","","0","","20","","","ZISJARS01___F00032","",null,null,null,null,null,null,null,null,null,null,null,null,null,null,null,null,null,null,null,null,null,null,null,null,null,null,null,null,6,"0000000102","3"]
[null,null,null,null,null,null,null,null,null,null,null,null,null,null,null,null,null,null,null,null,null,null,null,null,null,null,null,null,null,null,6,"ZISJARS01___F00013","FERC Merger Code","X","","","0007","","","","","","","U","1","03","","","","00000000","K","ZISJARS01___F00013","A","","","H","","","","","","00000000","0000","","0","","","","2","1","1","1","0","0","","","","","0","45BYHR8ZDQHXX9D16JAA1BPXD","","","","","","","0000","","","",6,"45BYHSJ2JI4710LQ5JOBPNI81","45BYHTDSNCJ13IRISVXOTVD35","Var %","0004","","F","","L","","","","","",null,null,null,null,null,null,6,"ZISJARS01___F00011","0CHRT_ACCTS","Chart of accounts","0000","X","0","0","0","","","","","0000","","",null,null,null,null,6,"45BYHSQR2GPWJN56BDQNZPGXT","45GNYN9VJWPPXB4L3WJ6FK2KH","3","0","","","","01","X","0","0","","",null,null,null,null,null,null,null,null,null,null,null,null,null,null,null,null,null,null,null,null,null,null,null,null,null,null,null,null,null,null,null,null,null,null,null,null,6,"ZS_JPG","1","S","","","","","","","","0","","0","","0","","20","","","ZISJARS01___F00035","",null,null,null,null,null,null,null,null,null,null,null,null,null,null,null,null,null,null,null,null,null,null,null,null,null,null,null,null,6,"0000000108","X"]
[null,null,null,null,null,null,null,null,null,null,null,null,null,null,null,null,null,null,null,null,null,null,null,null,null,null,null,null,null,null,6,"ZISJARS01___F00035","JARS Primary Group","X","","","0008","","DEPE","","","","","U","2","03","","","","00000000","K","ZISJARS01___F00035","A","","","H","","","","","","00000000","0000","","0","","1","","2","1","1","1","0","0","","","","","0","45BYHRGNWP3NFVWHCDCMBDON5","","","","","","","0000","","","",6,"45GNYLS3V6HRAXCFZ22SH6BK1","45GNYMMTZ0WLDFI8MEC5LE6F5","Wash","0004","Y","S","","L","","","","","",null,null,null,null,null,null,6,"ZISJARS01___F00011","0COMPANY","Company","0000","X","0","0","0","","","","","0000","","",null,null,null,null,6,"45BYHSQR2GPWJN56BDQNZPGXT","45GNYNHK2VBFFXO19QLIPM1A9","3","0","","","","01","X","0","0","","",null,null,null,null,null,null,null,null,null,null,null,null,null,null,null,null,null,null,null,null,null,null,null,null,null,null,null,null,null,null,null,null,null,null,null,null,6,"BA_PCTRN","2","P","","","","","","","","0","","0","","0","PCtr Node","20","","","ZISJARS01___F00012","",null,null,null,null,null,null,null,null,null,null,null,null,null,null,null,null,null,null,null,null,null,null,null,null,null,null,null,null,6,"0000009002","45BYHSJ2JI4710LQ5JOBPNI81"]
[null,null,null,null,null,null,null,null,null,null,null,null,null,null,null,null,null,null,null,null,null,null,null,null,null,null,null,null,null,null,6,"ZISJARS01___F00012","Profit Center","X","","","0009","","","","","","","U","0","03","","4500P_LOFBUS","","00000000","K","ZISJARS01___F00012","A","","","H","ZISJARS01___F00012","A","","","","00000000","0000","","0","","","","2","1","1","1","0","0","","","","","0","45BYHROCFNPCYIFXI7EYLFNCX","","","","","","","0000","","","",6,"45GNYLS3V6HRAXCFZ22SH6BK1","45GNYMUIHZIAW21OS8EHVG54X","Id-PPL","0005","Y","S","","L","","","","","",null,null,null,null,null,null,6,"ZISJARS01___F00011","0COUNTRY","Country","0000","X","0","0","0","","","","","0000","","",null,null,null,null,6,"45BYHSQR2GPWJN56BDQNZPGXT","45GNYNP8LTX4YK7HFKNUZO001","3","0","","","","01","X","0","0","","",null,null,null,null,null,null,null,null,null,null,null,null,null,null,null,null,null,null,null,null,null,null,null,null,null,null,null,null,null,null,null,null,null,null,null,null,6,"0S_COCD","1","S","I","EQ","1000","1000","","","PacifiCorp","40","","0","","0","Company Code","20","","","ZISJARS01___F00011","",null,null,null,null,null,null,null,null,null,null,null,null,null,null,null,null,null,null,null,null,null,null,null,null,null,null,null,null,6,"0000009000",""]
[null,null,null,null,null,null,null,null,null,null,null,null,null,null,null,null,null,null,null,null,null,null,null,null,null,null,null,null,null,null,6,"45BYHSJ2JI4710LQ5JOBPNI81","Key Figures","","X","X","0001","","","","","","","U","","00","","","","","K","45BYHSJ2JI4710LQ5JOBPNI81","A","","","","","","","","","00000000","0000","X","0","","","","","0","0","0","0","0","","","","","","45BYHSJ2JI4710LQ5JOBPNI81","","","","","","","0000","","","",6,"45GNYLS3V6HRAXCFZ22SH6BK1","45GNYN270Y40EOL4Y2GU5I3UP","Mont","0006","Y","S","","L","","","","","",null,null,null,null,null,null,6,"ZISJARS01___F00011","0CURRENCY","Currency","0000","X","0","0","0","","","","","0000","","",null,null,null,null,6,"45BYHSQR2GPWJN56BDQNZPGXT","45GNYNWX4SIUH6QXLEQ79PYPT","3","0","","","","01","X","0","0","","",null,null,null,null,null,null,null,null,null,null,null,null,null,null,null,null,null,null,null,null,null,null,null,null,null,null,null,null,null,null,null,null,null,null,null,null,6,"0S_COCD","1","S","I","EQ","2010","2010","","","Interwest Mining Company","40","","0","","0","Company Code","20","","","ZISJARS01___F00011","",null,null,null,null,null,null,null,null,null,null,null,null,null,null,null,null,null,null,null,null,null,null,null,null,null,null,null,null,6,"0000000010",""]
[null,null,null,null,null,null,null,null,null,null,null,null,null,null,null,null,null,null,null,null,null,null,null,null,null,null,null,null,null,null,6,"ZISJARS01___F00001","Primary Account","X","","Y","0001","","","","","","","","0","03","","","","00000000","K","ZISJARS01___F00001","A","","","H","","","","","","00000000","0000","","0","","","","","1","1","1","5","0","","","","","","45BYHS3PHKWRZRITTVJN5JKSH","","","","","","","0000","","","",6,"45GNYLS3V6HRAXCFZ22SH6BK1","45GNYN9VJWPPXB4L3WJ6FK2KH","Wy-PPL","0007","Y","S","","L","","","","","",null,null,null,null,null,null,6,"ZISJARS01___F00011","0C_CTR_AREA","Credit Control Area","0000","X","0","0","0","","","","","0000","","",null,null,null,null,6,"45BYHSQR2GPWJN56BDQNZPGXT","45GNYO4LNR4JZTADR8SJJRXFL","3","0","","","","01","X","0","0","","",null,null,null,null,null,null,null,null,null,null,null,null,null,null,null,null,null,null,null,null,null,null,null,null,null,null,null,null,null,null,null,null,null,null,null,null,6,"0S_COCD","1","S","I","EQ","2030","2030","","","Glenrock Coal Company","40","","0","","0","Company Code","20","","","ZISJARS01___F00011","",null,null,null,null,null,null,null,null,null,null,null,null,null,null,null,null,null,null,null,null,null,null,null,null,null,null,null,null,6,"0000000020",""]
[null,null,null,null,null,null,null,null,null,null,null,null,null,null,null,null,null,null,null,null,null,null,null,null,null,null,null,null,null,null,6,"ZISJARS01___F00003","Secondary Account","X","","Y","0002","","","","","","","","0","03","","","","00000000","K","ZISJARS01___F00003","A","","","H","","","","","","00000000","0000","","0","","","","","1","1","1","6","0","","","","","","45BYHRW0YMB2H4ZDO1HAVHM2P","","","","","","","0000","","","",6,"45GNYLS3V6HRAXCFZ22SH6BK1","45GNYNHK2VBFFXO19QLIPM1A9","Utah","0008","Y","S","","L","","","","","",null,null,null,null,null,null,6,"ZISJARS01___F00011","0FISCVARNT","Fiscal Year Variant","0000","X","2","0","0","","","","","0000","","",null,null,null,null,6,"45BYHSQR2GPWJN56BDQNZPGXT","45GNYOCA6PQ9IFTTX2UVTTW5D","3","0","","","","01","X","0","0","","",null,null,null,null,null,null,null,null,null,null,null,null,null,null,null,null,null,null,null,null,null,null,null,null,null,null,null,null,null,null,null,null,null,null,null,null,6,"0S_COCD","1","S","I","EQ","2040","2040","","","Centralia Mining Company","40","","0","","0","Company Code","20","","","ZISJARS01___F00011","",null,null,null,null,null,null,null,null,null,null,null,null,null,null,null,null,null,null,null,null,null,null,null,null,null,null,null,null,6,"0000000030",""]
[null,null,null,null,null,null,null,null,null,null,null,null,null,null,null,null,null,null,null,null,null,null,null,null,null,null,null,null,null,null,6,"ZISJARS01___F00032","Alloc","X","","Y","0003","","","","","","","","2","03","","","","00000000","K","ZISJARS01___F00032","A","","","H","","","","","","00000000","0000","","0","","","","","1","1","1","7","0","","","","","","45BYHSBE0JIHIE29ZPLZFLJI9","","","","","","","0000","","","",6,"45GNYLS3V6HRAXCFZ22SH6BK1","45GNYNP8LTX4YK7HFKNUZO001","Idaho","0009","Y","S","","L","","","","","",null,null,null,null,null,null,6,"ZISJARS01___F00011","0LOGSYS","Source System","0000","X","1","0","0","","","","","0000","","",null,null,null,null,6,"45BYHSQR2GPWJN56BDQNZPGXT","45GNYOJYPOBZ12DA2WX83VUV5","3","0","","","","01","X","0","0","","",null,null,null,null,null,null,null,null,null,null,null,null,null,null,null,null,null,null,null,null,null,null,null,null,null,null,null,null,null,null,null,null,null,null,null,null,6,"0S_COCD","1","S","I","EQ","2050","2050","","","Energy West Mining Comp","40","","0","","0","Company Code","20","","","ZISJARS01___F00011","",null,null,null,null,null,null,null,null,null,null,null,null,null,null,null,null,null,null,null,null,null,null,null,null,null,null,null,null,6,"0000000040",""]
[null,null,null,null,null,null,null,null,null,null,null,null,null,null,null,null,null,null,null,null,null,null,null,null,null,null,null,null,null,null,4,"ZISJARS01___F00006","Account Number","X","","","0001","","","","","","","U","0","00","","","","00000000","K","ZISJARS01___F00006","A","","","H","","","","","","00000000","0000","","0","","","","2","1","1","1","0","0","","","","","0","45B2RN5OLVT5Y79PHYN9PWRNL","","","","","","","0000","","","",6,"45GNYLS3V6HRAXCFZ22SH6BK1","45GNYNWX4SIUH6QXLEQ79PYPT","Wy-UPL","0010","Y","S","","L","","","","","",null,null,null,null,null,null,6,"ZISJARS01___F00011","0SOURSYSTEM","Source system ID","0000","X","1","0","0","","","","","0000","","",null,null,null,null,6,"45BYHSYFLFBM29OMH7T09RFNL","45GNYLZSE53GTJVW4W54R8A9T","3","0","","","","01","X","0","0","","",null,null,null,null,null,null,null,null,null,null,null,null,null,null,null,null,null,null,null,null,null,null,null,null,null,null,null,null,null,null,null,null,null,null,null,null,6,"0S_COCD","1","S","I","EQ","2060","2060","","","Fossil Rock Fuels, LLC","40","","0","","0","Company Code","20","","","ZISJARS01___F00011","",null,null,null,null,null,null,null,null,null,null,null,null,null,null,null,null,null,null,null,null,null,null,null,null,null,null,null,null,6,"0000000041",""]
[null,null,null,null,null,null,null,null,null,null,null,null,null,null,null,null,null,null,null,null,null,null,null,null,null,null,null,null,null,null,4,"ZISJARS01___F00029","Allocation Version","X","","","0002","","","","","","","U","1","00","","","","00000000","S","ZISJARS01___F00029","A","","","H","","","","","","00000000","0000","","0","","","","2","1","1","1","0","0","","","","","0","45B2RNDD4UEVGTT5NSPLZYQDD","","","","","","","0000","","","",6,"45GNYLS3V6HRAXCFZ22SH6BK1","45GNYO4LNR4JZTADR8SJJRXFL","FERC","0011","Y","S","","L","","","","","",null,null,null,null,null,null,6,"ZISJARS01___F00002","0CHANGEDBY","Changed by","0000","X","2","0","0","","","","","0000","","",null,null,null,null,6,"45BYHSYFLFBM29OMH7T09RFNL","45GNYM7GX3P6C6FCAQ7H1A8ZL","3","0","","","","01","X","0","0","","",null,null,null,null,null,null,null,null,null,null,null,null,null,null,null,null,null,null,null,null,null,null,null,null,null,null,null,null,null,null,null,null,null,null,null,null,6,"0I_CALZ1","1","I","I","BT","201207","07/2012","201306","06/2013","JUL 2012","40","JUN 2013","40","","0","Calendar Year/Month1","20","","","ZISJARS01___F00014","",null,null,null,null,null,null,null,null,null,null,null,null,null,null,null,null,null,null,null,null,null,null,null,null,null,null,null,null,6,"0000000042","0"]
[null,null,null,null,null,null,null,null,null,null,null,null,null,null,null,null,null,null,null,null,null,null,null,null,null,null,null,null,null,null,4,"ZISJARS01___F00014","Calendar Year/Month","X","","","0003","","","","","","","U","2","00","","","","00000000","K","ZISJARS01___F00014","A","","","H","","","","","","00000000","0000","","0","","","","2","1","1","1","0","0","","","","","0","45B2RNL1NT0KZGCLTMRYA0P35","","","","","","","0000","","","",6,"45GNYLS3V6HRAXCFZ22SH6BK1","45GNYOCA6PQ9IFTTX2UVTTW5D","Other","0012","Y","S","","L","","","","","",null,null,null,null,null,null,6,"ZISJARS01___F00002","0CH_AT","Last Changed At","0000","X","2","0","0","","","","","0000","","",null,null,null,null,6,"45BYHSYFLFBM29OMH7T09RFNL","45GNYMF5G2AVUSYSGK9TBC7PD","3","0","","","","01","X","0","0","","",null,null,null,null,null,null,null,null,null,null,null,null,null,null,null,null,null,null,null,null,null,null,null,null,null,null,null,null,null,null,null,null,null,null,null,null,4,"ZSFRCACT","1","S","","","","","","","","0","","0","","0","","20","","","ZISJARS01___F00001","",null,null,null,null,null,null,null,null,null,null,null,null,null,null,null,null,null,null,null,null,null,null,null,null,null,null,null,null,6,"0000000043","0"]
[null,null,null,null,null,null,null,null,null,null,null,null,null,null,null,null,null,null,null,null,null,null,null,null,null,null,null,null,null,null,4,"ZISJARS01___F00011","Company code","X","","","0004","","","","","","","U","0","00","","","","00000000","K","ZISJARS01___F00011","A","","","H","","","","","","00000000","0000","","0","","","","2","1","1","1","0","0","","","","","0","45B2RNSQ6RMAI2W1ZGUAK2NSX","","","","","","","0000","","","",6,"45GNYLS3V6HRAXCFZ22SH6BK1","45GNYOJYPOBZ12DA2WX83VUV5","Nutil","0013","Y","S","","L","","","","","",null,null,null,null,null,null,6,"ZISJARS01___F00002","0CH_ON","Changed on","0000","X","2","0","0","","","","","0000","","",null,null,null,null,6,"45BYHSYFLFBM29OMH7T09RFNL","45GNYMMTZ0WLDFI8MEC5LE6F5","3","0","","","","01","X","0","0","","",null,null,null,null,null,null,null,null,null,null,null,null,null,null,null,null,null,null,null,null,null,null,null,null,null,null,null,null,null,null,null,null,null,null,null,null,4,"ZJRSCLMN","1","P","I","EQ","201106","06/2011","","","JUN 2011","40","","0","","0","","20","","","ZISJARS01___F00025","",null,null,null,null,null,null,null,null,null,null,null,null,null,null,null,null,null,null,null,null,null,null,null,null,null,null,null,null,6,"0000000109","2"]
[null,null,null,null,null,null,null,null,null,null,null,null,null,null,null,null,null,null,null,null,null,null,null,null,null,null,null,null,null,null,4,"ZISJARS01___F00002","FERC Location Code","X","","","0005","","","","","","","U","1","00","","","","00000000","K","ZISJARS01___F00002","A","","","H","","","","","","00000000","0000","","0","","","","2","1","1","1","0","0","","","","","0","45B2RO0EPQ800PFI5AWMU4MIP","","","","","","","0000","","","",4,"45B8PUR4SOQNJV34O1DUZOIYP","45B8PUYTBNCD2HMKTVG79QHOH","Total","0001","","S","","L","","","","","",null,null,null,null,null,null,6,"ZISJARS01___F00002","0COUNTRY","Country","0000","X","0","0","0","","","","","0000","","",null,null,null,null,6,"45BYHSYFLFBM29OMH7T09RFNL","45GNYMUIHZIAW21OS8EHVG54X","3","0","","","","01","X","0","0","","",null,null,null,null,null,null,null,null,null,null,null,null,null,null,null,null,null,null,null,null,null,null,null,null,null,null,null,null,null,null,null,null,null,null,null,null,4,"ZPMETHOD","1","P","I","EQ","03","3","","","Factor 2010 Protocol","40","","0","","0","","20","","","ZISJARS01___F00024","",null,null,null,null,null,null,null,null,null,null,null,null,null,null,null,null,null,null,null,null,null,null,null,null,null,null,null,null,6,"0000000113",""]
[null,null,null,null,null,null,null,null,null,null,null,null,null,null,null,null,null,null,null,null,null,null,null,null,null,null,null,null,null,null,4,"ZISJARS01___F00013","FERC Merger Code","X","","","0006","","","","","","","U","1","00","","","","00000000","K","ZISJARS01___F00013","A","","","H","","","","","","00000000","0000","","0","","","","2","1","1","1","0","0","","","","","0","45B2RO838OTPJBYYB4YZ46L8H","","","","","","","0000","","","",4,"45B8PUR4SOQNJV34O1DUZOIYP","45B8PV6HULY2L460ZPIJJSGE9","Calif","0002","","S","","L","","","","","",null,null,null,null,null,null,6,"ZISJARS01___F00002","0REGION","Region","0000","X","0","0","0","","","","","0000","","",null,null,null,null,6,"45BYHSYFLFBM29OMH7T09RFNL","45GNYN270Y40EOL4Y2GU5I3UP","3","0","","","","01","X","0","0","","",null,null,null,null,null,null,null,null,null,null,null,null,null,null,null,null,null,null,null,null,null,null,null,null,null,null,null,null,null,null,null,null,null,null,null,null,4,"ZSVERSN","1","P","I","EQ","01","1","","","Average","40","","0","","0","","20","","","ZISJARS01___F00029","",null,null,null,null,null,null,null,null,null,null,null,null,null,null,null,null,null,null,null,null,null,null,null,null,null,null,null,null,6,"0000000120",""]
[null,null,null,null,null,null,null,null,null,null,null,null,null,null,null,null,null,null,null,null,null,null,null,null,null,null,null,null,null,null,4,"ZISJARS01___F00035","JARS Primary Group","X","","","0007","","DEPE","","","","","U","2","00","","","","00000000","K","ZISJARS01___F00035","A","","","H","","","","","","00000000","0000","","0","","1","","2","1","1","1","0","0","","","","","0","45B2ROFRRNFF1YIEGZ1BE8JY9","","","","","","","0000","","","",4,"45B8PUR4SOQNJV34O1DUZOIYP","45B8PVE6DKJS3QPH5JKVTUF41","Oregon","0003","","S","","L","","","","","",null,null,null,null,null,null,6,"ZISJARS01___F00002","ZFRCDVSN","FERC Division Code","0000","X","2","0","0","","","","","0000","","",null,null,null,null,6,"45BYHSYFLFBM29OMH7T09RFNL","45GNYN9VJWPPXB4L3WJ6FK2KH","3","0","","","","01","X","0","0","","",null,null,null,null,null,null,null,null,null,null,null,null,null,null,null,null,null,null,null,null,null,null,null,null,null,null,null,null,null,null,null,null,null,null,null,null,4,"ZSFACTOR","1","S","E","EQ","NUTIL","NUTIL","","","","40","","0","","0","","20","","","ZISJARS01___F00032","",null,null,null,null,null,null,null,null,null,null,null,null,null,null,null,null,null,null,null,null,null,null,null,null,null,null,null,null,6,"0000000021",""]
[null,null,null,null,null,null,null,null,null,null,null,null,null,null,null,null,null,null,null,null,null,null,null,null,null,null,null,null,null,null,4,"ZISJARS01___F00012","Profit Center","X","","","0008","","","","","","","U","0","02","","4500P_LOFBUS","","00000000","K","ZISJARS01___F00012","A","","","H","ZISJARS01___F00012","A","","","","00000000","0000","","0","","","","2","1","1","1","0","0","","","","","0","45B2RONGAM14KL1UMT3NOAIO1","","","","","","","0000","","","",4,"45B8PUR4SOQNJV34O1DUZOIYP","45B8PVLUWJ5HMD8XBDN83WDTT","Wash","0004","","S","","L","","","","","",null,null,null,null,null,null,6,"ZISJARS01___F00002","ZFRCPFUN","FERC Plant Function","0000","X","2","0","0","","","","","0000","","",null,null,null,null,6,"45BYHSYFLFBM29OMH7T09RFNL","45GNYNHK2VBFFXO19QLIPM1A9","3","0","","","","01","X","0","0","","",null,null,null,null,null,null,null,null,null,null,null,null,null,null,null,null,null,null,null,null,null,null,null,null,null,null,null,null,null,null,null,null,null,null,null,null,4,"ZS_JPG","1","S","","","","","","","","0","","0","","0","","20","","","ZISJARS01___F00035","",null,null,null,null,null,null,null,null,null,null,null,null,null,null,null,null,null,null,null,null,null,null,null,null,null,null,null,null,6,"0000000022",""]
[null,null,null,null,null,null,null,null,null,null,null,null,null,null,null,null,null,null,null,null,null,null,null,null,null,null,null,null,null,null,4,"ZISJARS01___F00008","Version","X","","","0009","","Budget  (Original)","","","","","U","2","00","","","","00000000","K","ZISJARS01___F00008","A","","","H","","","","","","00000000","0000","","0","","1","","2","1","1","1","0","0","","","","","0","45B2RP2TCJ8JLU4QYH8C8EG3L","","","","","","","0000","","","",4,"45B8PUR4SOQNJV34O1DUZOIYP","45B8PVTJFHR74ZSDH7PKDYCJL","Id-PPL","0005","","S","","L","","","","","",null,null,null,null,null,null,6,"ZISJARS01___F00012","0LOGSYS","Source System","0000","X","1","0","0","","","","","0000","","",null,null,null,null,6,"45BYHSYFLFBM29OMH7T09RFNL","45GNYNP8LTX4YK7HFKNUZO001","3","0","","","","01","X","0","0","","",null,null,null,null,null,null,null,null,null,null,null,null,null,null,null,null,null,null,null,null,null,null,null,null,null,null,null,null,null,null,null,null,null,null,null,null,4,"BA_PCTRN","2","P","","","","","","","","0","","0","","0","PCtr Node","20","","","ZISJARS01___F00012","",null,null,null,null,null,null,null,null,null,null,null,null,null,null,null,null,null,null,null,null,null,null,null,null,null,null,null,null,6,"0000000023",""]
[null,null,null,null,null,null,null,null,null,null,null,null,null,null,null,null,null,null,null,null,null,null,null,null,null,null,null,null,null,null,4,"45B8PUR4SOQNJV34O1DUZOIYP","Jurisdictional Areas (Period Balance)","","X","X","0001","","","","","","","U","","00","","","","","K","45B8PUR4SOQNJV34O1DUZOIYP","A","","","","","","","","","00000000","0000","X","0","","","","","0","0","0","0","0","","","","","","45B8PUR4SOQNJV34O1DUZOIYP","","","","","","","0000","","","",4,"45B8PUR4SOQNJV34O1DUZOIYP","45B8PW17YGCWNMBTN1RWO0B9D","Mont","0006","","S","","L","","","","","",null,null,null,null,null,null,6,"ZISJARS01___F00012","0OBJ_CURR","Object currency","0000","X","0","0","0","","","","","0000","","",null,null,null,null,6,"45BYHSYFLFBM29OMH7T09RFNL","45GNYNWX4SIUH6QXLEQ79PYPT","3","0","","","","01","X","0","0","","",null,null,null,null,null,null,null,null,null,null,null,null,null,null,null,null,null,null,null,null,null,null,null,null,null,null,null,null,null,null,null,null,null,null,null,null,4,"0S_COCD","1","S","I","EQ","1000","1000","","","PacifiCorp","40","","0","","0","Company Code","20","","","ZISJARS01___F00011","",null,null,null,null,null,null,null,null,null,null,null,null,null,null,null,null,null,null,null,null,null,null,null,null,null,null,null,null,6,"0000010001","45BYHTT5P9QG4RUF4K2DDZAIP"]
[null,null,null,null,null,null,null,null,null,null,null,null,null,null,null,null,null,null,null,null,null,null,null,null,null,null,null,null,null,null,4,"ZISJARS01___F00001","Primary Account","X","","Y","0001","","","","","","","","0","03","","","","00000000","K","ZISJARS01___F00001","A","","","H","","","","","","00000000","0000","","0","","","","","1","1","1","13","0","","","","","","45B2RPAHVHU94GO74BAOIGETD","","","","","","","0000","","","",4,"45B8PUR4SOQNJV34O1DUZOIYP","45B8PW8WHEYM68V9SVU8Y29Z5","Wy-PPL","0007","","S","","L","","","","","",null,null,null,null,null,null,6,"ZISJARS01___F00012","0RESP_PERS","Person responsible","0000","X","2","0","0","","","","","0000","","",null,null,null,null,6,"45BYHSYFLFBM29OMH7T09RFNL","45GNYO4LNR4JZTADR8SJJRXFL","3","0","","","","01","X","0","0","","",null,null,null,null,null,null,null,null,null,null,null,null,null,null,null,null,null,null,null,null,null,null,null,null,null,null,null,null,null,null,null,null,null,null,null,null,4,"0S_COCD","1","S","I","EQ","2010","2010","","","Interwest Mining Company","40","","0","","0","Company Code","20","","","ZISJARS01___F00011","",null,null,null,null,null,null,null,null,null,null,null,null,null,null,null,null,null,null,null,null,null,null,null,null,null,null,null,null,6,"0000010002","45BYHPJJ61O9S91FVURJSW075"]
[null,null,null,null,null,null,null,null,null,null,null,null,null,null,null,null,null,null,null,null,null,null,null,null,null,null,null,null,null,null,4,"ZISJARS01___F00003","Secondary Account","X","","Y","0002","","","","","","","","0","03","","","","00000000","K","ZISJARS01___F00003","A","","","H","","","","","","00000000","0000","","0","","","","","1","1","1","14","0","","","","","","45B2ROV4TKMU37LASN5ZYCHDT","","","","","","","0000","","","",4,"45B8PUR4SOQNJV34O1DUZOIYP","45B8PWGL0DKBOVEPYPWL848OX","Utah","0008","","S","","L","","","","","",null,null,null,null,null,null,6,"ZISJARS01___F00012","0SOURSYSTEM","Source system ID","0000","X","1","0","0","","","","","0000","","",null,null,null,null,6,"45BYHSYFLFBM29OMH7T09RFNL","45GNYOCA6PQ9IFTTX2UVTTW5D","3","0","","","","01","X","0","0","","",null,null,null,null,null,null,null,null,null,null,null,null,null,null,null,null,null,null,null,null,null,null,null,null,null,null,null,null,null,null,null,null,null,null,null,null,4,"0S_COCD","1","S","I","EQ","2030","2030","","","Glenrock Coal Company","40","","0","","0","Company Code","20","","","ZISJARS01___F00011","",null,null,null,null,null,null,null,null,null,null,null,null,null,null,null,null,null,null,null,null,null,null,null,null,null,null,null,null,6,"0000000105",""]
[null,null,null,null,null,null,null,null,null,null,null,null,null,null,null,null,null,null,null,null,null,null,null,null,null,null,null,null,null,null,4,"ZISJARS01___F00032","Alloc","X","","Y","0003","","","","","","","","2","03","","","","00000000","K","ZISJARS01___F00032","A","","","H","","","","","","00000000","0000","","0","","","","","1","1","1","16","0","","","","","","45B2RPI6EGFYN37NA5D0SIDJ5","","","","","","","0000","","","",4,"45B8PUR4SOQNJV34O1DUZOIYP","45B8PWO9JC617HY64JYXI67EP","Idaho","0009","","S","","L","","","","","",null,null,null,null,null,null,6,"ZISJARS01___F00003","0CHANGEDBY","Changed by","0000","X","2","0","0","","","","","0000","","",null,null,null,null,6,"45BYHSYFLFBM29OMH7T09RFNL","45GNYOJYPOBZ12DA2WX83VUV5","3","0","","","","01","X","0","0","","",null,null,null,null,null,null,null,null,null,null,null,null,null,null,null,null,null,null,null,null,null,null,null,null,null,null,null,null,null,null,null,null,null,null,null,null,4,"0S_COCD","1","S","I","EQ","2040","2040","","","Centralia Mining Company","40","","0","","0","Company Code","20","","","ZISJARS01___F00011","",null,null,null,null,null,null,null,null,null,null,null,null,null,null,null,null,null,null,null,null,null,null,null,null,null,null,null,null,6,"0000000106",""]
[null,null,null,null,null,null,null,null,null,null,null,null,null,null,null,null,null,null,null,null,null,null,null,null,null,null,null,null,null,null,5,"ZISJARS01___F00006","Account Number","X","","","0001","","","","","","","U","0","00","","","","00000000","K","ZISJARS01___F00006","A","","","H","","","","","","00000000","0000","","0","","","","2","1","1","1","0","0","","","","","0","45B2RN5OLVT5Y79PHYN9PWRNL","","","","","","","0000","","","",4,"45B8PUR4SOQNJV34O1DUZOIYP","45B8PWVY2ARQQ4HMAE19S864H","Wy-UPL","0010","","S","","L","","","","","",null,null,null,null,null,null,6,"ZISJARS01___F00003","0CH_AT","Last Changed At","0000","X","2","0","0","","","","","0000","","",null,null,null,null,6,"45BYHT644DXBKW82N1VCJTEDD","45GNYLZSE53GTJVW4W54R8A9T","3","0","","","","00","X","0","0","","",null,null,null,null,null,null,null,null,null,null,null,null,null,null,null,null,null,null,null,null,null,null,null,null,null,null,null,null,null,null,null,null,null,null,null,null,4,"0S_COCD","1","S","I","EQ","2050","2050","","","Energy West Mining Comp","40","","0","","0","Company Code","20","","","ZISJARS01___F00011","",null,null,null,null,null,null,null,null,null,null,null,null,null,null,null,null,null,null,null,null,null,null,null,null,null,null,null,null,6,"0000000112","0"]
[null,null,null,null,null,null,null,null,null,null,null,null,null,null,null,null,null,null,null,null,null,null,null,null,null,null,null,null,null,null,5,"ZISJARS01___F00029","Allocation Version","X","","","0002","","","","","","","U","1","00","","","","00000000","S","ZISJARS01___F00029","A","","","H","","","","","","00000000","0000","","0","","","","2","1","1","1","0","0","","","","","0","45B2RNDD4UEVGTT5NSPLZYQDD","","","","","","","0000","","","",4,"45B8PUR4SOQNJV34O1DUZOIYP","45B8PX3ML9DG8R12G83M2A4U9","FERC","0011","","S","","L","","","","","",null,null,null,null,null,null,6,"ZISJARS01___F00003","0CH_ON","Changed on","0000","X","2","0","0","","","","","0000","","",null,null,null,null,6,"45BYHT644DXBKW82N1VCJTEDD","45GNYM7GX3P6C6FCAQ7H1A8ZL","3","0","","","","00","X","0","0","","",null,null,null,null,null,null,null,null,null,null,null,null,null,null,null,null,null,null,null,null,null,null,null,null,null,null,null,null,null,null,null,null,null,null,null,null,4,"0S_COCD","1","S","I","EQ","2060","2060","","","Fossil Rock Fuels, LLC","40","","0","","0","Company Code","20","","","ZISJARS01___F00011","",null,null,null,null,null,null,null,null,null,null,null,null,null,null,null,null,null,null,null,null,null,null,null,null,null,null,null,null,6,"0000000200","X"]
[null,null,null,null,null,null,null,null,null,null,null,null,null,null,null,null,null,null,null,null,null,null,null,null,null,null,null,null,null,null,5,"ZISJARS01___F00014","Calendar Year/Month","X","","","0003","","","","","","","U","2","00","","","","00000000","K","ZISJARS01___F00014","A","","","H","","","","","","00000000","0000","","0","","","","2","1","1","1","0","0","","","","","0","45B2RNL1NT0KZGCLTMRYA0P35","","","","","","","0000","","","",4,"45B8PUR4SOQNJV34O1DUZOIYP","45B8PXBB47Z5RDKIM25YCC3K1","Other","0012","","S","","L","","","","","",null,null,null,null,null,null,6,"ZISJARS01___F00003","ZFRCSCTY","FERC 2ndary Acct Typ","0000","X","2","0","0","","","","","0000","","",null,null,null,null,6,"45BYHT644DXBKW82N1VCJTEDD","45GNYMF5G2AVUSYSGK9TBC7PD","3","0","","","","00","X","0","0","","",null,null,null,null,null,null,null,null,null,null,null,null,null,null,null,null,null,null,null,null,null,null,null,null,null,null,null,null,null,null,null,null,null,null,null,null,4,"0I_CALZ1","1","I","I","BT","201207","07/2012","201306","06/2013","JUL 2012","40","JUN 2013","40","","0","Calendar Year/Month1","20","","","ZISJARS01___F00014","",null,null,null,null,null,null,null,null,null,null,null,null,null,null,null,null,null,null,null,null,null,null,null,null,null,null,null,null,6,"0000004000","X"]
[null,null,null,null,null,null,null,null,null,null,null,null,null,null,null,null,null,null,null,null,null,null,null,null,null,null,null,null,null,null,5,"ZISJARS01___F00011","Company code","X","","","0004","","","","","","","U","0","00","","","","00000000","K","ZISJARS01___F00011","A","","","H","","","","","","00000000","0000","","0","","","","2","1","1","1","0","0","","","","","0","45B2RNSQ6RMAI2W1ZGUAK2NSX","","","","","","","0000","","","",4,"45B8PUR4SOQNJV34O1DUZOIYP","45B8PXIZN6KVA03YRW8AME29T","Nutil","0013","","S","","L","","","","","",null,null,null,null,null,null,6,"ZISJARS01___F00003","ZJRSDEPR","JARS Depreciation","0000","X","2","0","0","","","","","0000","","",null,null,null,null,6,"45BYHT644DXBKW82N1VCJTEDD","45GNYMMTZ0WLDFI8MEC5LE6F5","3","0","","","","00","X","0","0","","",null,null,null,null,null,null,null,null,null,null,null,null,null,null,null,null,null,null,null,null,null,null,null,null,null,null,null,null,null,null,null,null,null,null,null,null,5,"ZSFRCACT","1","S","","","","","","","","0","","0","","0","","20","","","ZISJARS01___F00001","",null,null,null,null,null,null,null,null,null,null,null,null,null,null,null,null,null,null,null,null,null,null,null,null,null,null,null,null,6,"0000009001","JARS - Variance by FERC Account (Period Balance)"]
[null,null,null,null,null,null,null,null,null,null,null,null,null,null,null,null,null,null,null,null,null,null,null,null,null,null,null,null,null,null,5,"ZISJARS01___F00002","FERC Location Code","X","","","0005","","","","","","","U","1","00","","","","00000000","K","ZISJARS01___F00002","A","","","H","","","","","","00000000","0000","","0","","","","2","1","1","1","0","0","","","","","0","45B2RO0EPQ800PFI5AWMU4MIP","","","","","","","0000","","","",5,"45B8PUR4SOQNJV34O1DUZOIYP","45B8PUYTBNCD2HMKTVG79QHOH","Total","0001","","S","","L","","","","","",null,null,null,null,null,null,6,"ZISJARS01___F00003","ZJRSFRMDT","JARS 2ndary From DT","0000","X","2","0","0","","","","","0000","","",null,null,null,null,6,"45BYHT644DXBKW82N1VCJTEDD","45GNYMUIHZIAW21OS8EHVG54X","3","0","","","","00","X","0","0","","",null,null,null,null,null,null,null,null,null,null,null,null,null,null,null,null,null,null,null,null,null,null,null,null,null,null,null,null,null,null,null,null,null,null,null,null,5,"ZJRSCLMN","1","P","I","EQ","201106","06/2011","","","JUN 2011","40","","0","","0","","20","","","ZISJARS01___F00025","",null,null,null,null,null,null,null,null,null,null,null,null,null,null,null,null,null,null,null,null,null,null,null,null,null,null,null,null,6,"0000000114","1"]
[null,null,null,null,null,null,null,null,null,null,null,null,null,null,null,null,null,null,null,null,null,null,null,null,null,null,null,null,null,null,5,"ZISJARS01___F00013","FERC Merger Code","X","","","0006","","","","","","","U","1","00","","","","00000000","K","ZISJARS01___F00013","A","","","H","","","","","","00000000","0000","","0","","","","2","1","1","1","0","0","","","","","0","45B2RO838OTPJBYYB4YZ46L8H","","","","","","","0000","","","",5,"45B8PUR4SOQNJV34O1DUZOIYP","45B8PV6HULY2L460ZPIJJSGE9","Calif","0002","","S","","L","","","","","",null,null,null,null,null,null,6,"ZISJARS01___F00003","ZJRSSCLVL","JARS 2ndary Acct Lvl","0000","X","2","0","0","","","","","0000","","",null,null,null,null,6,"45BYHT644DXBKW82N1VCJTEDD","45GNYN270Y40EOL4Y2GU5I3UP","3","0","","","","00","X","0","0","","",null,null,null,null,null,null,null,null,null,null,null,null,null,null,null,null,null,null,null,null,null,null,null,null,null,null,null,null,null,null,null,null,null,null,null,null,5,"ZPMETHOD","1","P","I","EQ","03","3","","","Factor 2010 Protocol","40","","0","","0","","20","","","ZISJARS01___F00024","",null,null,null,null,null,null,null,null,null,null,null,null,null,null,null,null,null,null,null,null,null,null,null,null,null,null,null,null,4,"0000000100",""]
[null,null,null,null,null,null,null,null,null,null,null,null,null,null,null,null,null,null,null,null,null,null,null,null,null,null,null,null,null,null,5,"ZISJARS01___F00035","JARS Primary Group","X","","","0007","","DEPE","","","","","U","2","00","","","","00000000","K","ZISJARS01___F00035","A","","","H","","","","","","00000000","0000","","0","","1","","2","1","1","1","0","0","","","","","0","45B2ROFRRNFF1YIEGZ1BE8JY9","","","","","","","0000","","","",5,"45B8PUR4SOQNJV34O1DUZOIYP","45B8PVE6DKJS3QPH5JKVTUF41","Oregon","0003","","S","","L","","","","","",null,null,null,null,null,null,6,"ZISJARS01___F00003","ZJRSTODT","JARS 2ndary To DT","0000","X","2","0","0","","","","","0000","","",null,null,null,null,6,"45BYHT644DXBKW82N1VCJTEDD","45GNYN9VJWPPXB4L3WJ6FK2KH","3","0","","","","00","X","0","0","","",null,null,null,null,null,null,null,null,null,null,null,null,null,null,null,null,null,null,null,null,null,null,null,null,null,null,null,null,null,null,null,null,null,null,null,null,5,"ZSVERSN","1","P","I","EQ","01","1","","","Average","40","","0","","0","","20","","","ZISJARS01___F00029","",null,null,null,null,null,null,null,null,null,null,null,null,null,null,null,null,null,null,null,null,null,null,null,null,null,null,null,null,4,"0000000108","6"]
[null,null,null,null,null,null,null,null,null,null,null,null,null,null,null,null,null,null,null,null,null,null,null,null,null,null,null,null,null,null,5,"ZISJARS01___F00012","Profit Center","X","","","0008","","","","","","","U","0","02","","4500P_LOFBUS","","00000000","K","ZISJARS01___F00012","A","","","H","ZISJARS01___F00012","A","","","","00000000","0000","","0","","","","2","1","1","1","0","0","","","","","0","45B2RONGAM14KL1UMT3NOAIO1","","","","","","","0000","","","",5,"45B8PUR4SOQNJV34O1DUZOIYP","45B8PVLUWJ5HMD8XBDN83WDTT","Wash","0004","","S","","L","","","","","",null,null,null,null,null,null,6,"ZISJARS01___F00003","ZOLDFSEC","Old FERC Sec Account","0000","X","3","0","0","","","","","0000","","",null,null,null,null,6,"45BYHT644DXBKW82N1VCJTEDD","45GNYNHK2VBFFXO19QLIPM1A9","3","0","","","","00","X","0","0","","",null,null,null,null,null,null,null,null,null,null,null,null,null,null,null,null,null,null,null,null,null,null,null,null,null,null,null,null,null,null,null,null,null,null,null,null,5,"ZSFACTOR","1","S","E","EQ","NUTIL","NUTIL","","","","40","","0","","0","","20","","","ZISJARS01___F00032","",null,null,null,null,null,null,null,null,null,null,null,null,null,null,null,null,null,null,null,null,null,null,null,null,null,null,null,null,4,"0000000101",""]
[null,null,null,null,null,null,null,null,null,null,null,null,null,null,null,null,null,null,null,null,null,null,null,null,null,null,null,null,null,null,5,"ZISJARS01___F00008","Version","X","","","0009","","Actuals / Detailed Plan","","","","","U","2","00","","","","00000000","K","ZISJARS01___F00008","A","","","H","","","","","","00000000","0000","","0","","1","","2","1","1","1","0","0","","","","","0","45B2RP2TCJ8JLU4QYH8C8EG3L","","","","","","","0000","","","",5,"45B8PUR4SOQNJV34O1DUZOIYP","45B8PVTJFHR74ZSDH7PKDYCJL","Id-PPL","0005","","S","","L","","","","","",null,null,null,null,null,null,6,"ZISJARS01___F00003","ZSECDWN","JARS Reportng Struct","0000","X","2","0","0","","","","","0000","","",null,null,null,null,6,"45BYHT644DXBKW82N1VCJTEDD","45GNYNP8LTX4YK7HFKNUZO001","3","0","","","","00","X","0","0","","",null,null,null,null,null,null,null,null,null,null,null,null,null,null,null,null,null,null,null,null,null,null,null,null,null,null,null,null,null,null,null,null,null,null,null,null,5,"ZS_JPG","1","S","","","","","","","","0","","0","","0","","20","","","ZISJARS01___F00035","",null,null,null,null,null,null,null,null,null,null,null,null,null,null,null,null,null,null,null,null,null,null,null,null,null,null,null,null,4,"0000000104","1"]
[null,null,null,null,null,null,null,null,null,null,null,null,null,null,null,null,null,null,null,null,null,null,null,null,null,null,null,null,null,null,5,"45B8PUR4SOQNJV34O1DUZOIYP","Jurisdictional Areas (Period Balance)","","X","X","0001","","","","","","","U","","00","","","","","K","45B8PUR4SOQNJV34O1DUZOIYP","A","","","","","","","","","00000000","0000","X","0","","","","","0","0","0","0","0","","","","","","45B8PUR4SOQNJV34O1DUZOIYP","","","","","","","0000","","","",5,"45B8PUR4SOQNJV34O1DUZOIYP","45B8PW17YGCWNMBTN1RWO0B9D","Mont","0006","","S","","L","","","","","",null,null,null,null,null,null,6,"ZISJARS01___F00001","ZFRCBSAIN","FERC Balance Sheet A","0000","X","2","0","0","","","","","0000","","",null,null,null,null,6,"45BYHT644DXBKW82N1VCJTEDD","45GNYNWX4SIUH6QXLEQ79PYPT","3","0","","","","00","X","0","0","","",null,null,null,null,null,null,null,null,null,null,null,null,null,null,null,null,null,null,null,null,null,null,null,null,null,null,null,null,null,null,null,null,null,null,null,null,5,"BA_PCTRN","2","P","","","","","","","","0","","0","","0","PCtr Node","20","","","ZISJARS01___F00012","",null,null,null,null,null,null,null,null,null,null,null,null,null,null,null,null,null,null,null,null,null,null,null,null,null,null,null,null,4,"0000000103",""]
[null,null,null,null,null,null,null,null,null,null,null,null,null,null,null,null,null,null,null,null,null,null,null,null,null,null,null,null,null,null,5,"ZISJARS01___F00001","Primary Account","X","","Y","0001","","","","","","","U","0","00","","","","00000000","K","ZISJARS01___F00001","A","","","H","","","","","","00000000","0000","","0","","","","2","1","1","1","13","0","","","","","0","45B2RPAHVHU94GO74BAOIGETD","","","","","","","0000","","","",5,"45B8PUR4SOQNJV34O1DUZOIYP","45B8PW8WHEYM68V9SVU8Y29Z5","Wy-PPL","0007","","S","","L","","","","","",null,null,null,null,null,null,6,"ZISJARS01___F00001","ZFRCFILEN","FERC SAP to JARS int","0000","X","2","0","0","","","","","0000","","",null,null,null,null,6,"45BYHT644DXBKW82N1VCJTEDD","45GNYO4LNR4JZTADR8SJJRXFL","3","0","","","","00","X","0","0","","",null,null,null,null,null,null,null,null,null,null,null,null,null,null,null,null,null,null,null,null,null,null,null,null,null,null,null,null,null,null,null,null,null,null,null,null,5,"0S_COCD","1","S","I","EQ","1000","1000","","","PacifiCorp","40","","0","","0","Company Code","20","","","ZISJARS01___F00011","",null,null,null,null,null,null,null,null,null,null,null,null,null,null,null,null,null,null,null,null,null,null,null,null,null,null,null,null,4,"0000000102","3"]
[null,null,null,null,null,null,null,null,null,null,null,null,null,null,null,null,null,null,null,null,null,null,null,null,null,null,null,null,null,null,5,"ZISJARS01___F00003","Secondary Account","X","","Y","0002","","","","","","","U","0","00","","","","00000000","K","ZISJARS01___F00003","A","","","H","","","","","","00000000","0000","","0","","","","2","1","1","1","14","0","","","","","0","45B2ROV4TKMU37LASN5ZYCHDT","","","","","","","0000","","","",5,"45B8PUR4SOQNJV34O1DUZOIYP","45B8PWGL0DKBOVEPYPWL848OX","Utah","0008","","S","","L","","","","","",null,null,null,null,null,null,6,"ZISJARS01___F00001","ZFRCKWHI","FERC KWH in JARS Ind","0000","X","2","0","0","","","","","0000","","",null,null,null,null,6,"45BYHT644DXBKW82N1VCJTEDD","45GNYOCA6PQ9IFTTX2UVTTW5D","3","0","","","","00","X","0","0","","",null,null,null,null,null,null,null,null,null,null,null,null,null,null,null,null,null,null,null,null,null,null,null,null,null,null,null,null,null,null,null,null,null,null,null,null,5,"0S_COCD","1","S","I","EQ","2010","2010","","","Interwest Mining Company","40","","0","","0","Company Code","20","","","ZISJARS01___F00011","",null,null,null,null,null,null,null,null,null,null,null,null,null,null,null,null,null,null,null,null,null,null,null,null,null,null,null,null,4,"0000009000",""]
[null,null,null,null,null,null,null,null,null,null,null,null,null,null,null,null,null,null,null,null,null,null,null,null,null,null,null,null,null,null,5,"ZISJARS01___F00032","Alloc","X","","Y","0003","","","","","","","U","2","00","","","","00000000","K","ZISJARS01___F00032","A","","","H","","","","","","00000000","0000","","0","","","","2","1","1","1","16","0","","","","","0","45B2RPI6EGFYN37NA5D0SIDJ5","","","","","","","0000","","","",5,"45B8PUR4SOQNJV34O1DUZOIYP","45B8PWO9JC617HY64JYXI67EP","Idaho","0009","","S","","L","","","","","",null,null,null,null,null,null,6,"ZISJARS01___F00001","ZFRCLGTX","FERC Account Long Te","0000","X","2","0","0","","","","","0000","","",null,null,null,null,6,"45BYHT644DXBKW82N1VCJTEDD","45GNYOJYPOBZ12DA2WX83VUV5","3","0","","","","00","X","0","0","","",null,null,null,null,null,null,null,null,null,null,null,null,null,null,null,null,null,null,null,null,null,null,null,null,null,null,null,null,null,null,null,null,null,null,null,null,5,"0S_COCD","1","S","I","EQ","2030","2030","","","Glenrock Coal Company","40","","0","","0","Company Code","20","","","ZISJARS01___F00011","",null,null,null,null,null,null,null,null,null,null,null,null,null,null,null,null,null,null,null,null,null,null,null,null,null,null,null,null,4,"0000000107","45B2RMIN1001EBND0GG8VQVI9"]
[null,null,null,null,null,null,null,null,null,null,null,null,null,null,null,null,null,null,null,null,null,null,null,null,null,null,null,null,null,null,null,null,null,null,null,null,null,null,null,null,null,null,null,null,null,null,null,null,null,null,null,null,null,null,null,null,null,null,null,null,null,null,null,null,null,null,null,null,null,null,null,null,null,null,null,null,null,null,null,null,null,null,null,null,null,null,null,null,null,null,5,"45B8PUR4SOQNJV34O1DUZOIYP","45B8PWVY2ARQQ4HMAE19S864H","Wy-UPL","0010","","S","","L","","","","","",null,null,null,null,null,null,6,"ZISJARS01___F00001","ZFRCLOC","FERC Location Code","0000","X","1","0","0","","","","","0000","","",null,null,null,null,6,"45BYHTDSNCJ13IRISVXOTVD35","45GNYLZSE53GTJVW4W54R8A9T","","1","","","","00","X","0","0","","",null,null,null,null,null,null,null,null,null,null,null,null,null,null,null,null,null,null,null,null,null,null,null,null,null,null,null,null,null,null,null,null,null,null,null,null,5,"0S_COCD","1","S","I","EQ","2040","2040","","","Centralia Mining Company","40","","0","","0","Company Code","20","","","ZISJARS01___F00011","",null,null,null,null,null,null,null,null,null,null,null,null,null,null,null,null,null,null,null,null,null,null,null,null,null,null,null,null,4,"0000010001","45B2RPXJGDNDOCAJLTHPCMAYP"]
[null,null,null,null,null,null,null,null,null,null,null,null,null,null,null,null,null,null,null,null,null,null,null,null,null,null,null,null,null,null,null,null,null,null,null,null,null,null,null,null,null,null,null,null,null,null,null,null,null,null,null,null,null,null,null,null,null,null,null,null,null,null,null,null,null,null,null,null,null,null,null,null,null,null,null,null,null,null,null,null,null,null,null,null,null,null,null,null,null,null,5,"45B8PUR4SOQNJV34O1DUZOIYP","45B8PX3ML9DG8R12G83M2A4U9","FERC","0011","","S","","L","","","","","",null,null,null,null,null,null,6,"ZISJARS01___F00001","ZFRCSECD","FERC Secondary Accou","0000","X","2","0","0","","","","","0000","","",null,null,null,null,6,"45BYHTDSNCJ13IRISVXOTVD35","45GNYM7GX3P6C6FCAQ7H1A8ZL","","1","","","","00","X","0","0","","",null,null,null,null,null,null,null,null,null,null,null,null,null,null,null,null,null,null,null,null,null,null,null,null,null,null,null,null,null,null,null,null,null,null,null,null,5,"0S_COCD","1","S","I","EQ","2050","2050","","","Energy West Mining Comp","40","","0","","0","Company Code","20","","","ZISJARS01___F00011","",null,null,null,null,null,null,null,null,null,null,null,null,null,null,null,null,null,null,null,null,null,null,null,null,null,null,null,null,4,"0000010003","ZMJRS_C1"]
[null,null,null,null,null,null,null,null,null,null,null,null,null,null,null,null,null,null,null,null,null,null,null,null,null,null,null,null,null,null,null,null,null,null,null,null,null,null,null,null,null,null,null,null,null,null,null,null,null,null,null,null,null,null,null,null,null,null,null,null,null,null,null,null,null,null,null,null,null,null,null,null,null,null,null,null,null,null,null,null,null,null,null,null,null,null,null,null,null,null,5,"45B8PUR4SOQNJV34O1DUZOIYP","45B8PXBB47Z5RDKIM25YCC3K1","Other","0012","","S","","L","","","","","",null,null,null,null,null,null,6,"ZISJARS01___F00001","ZFRCSHTX","FERC Account Short T","0000","X","2","0","0","","","","","0000","","",null,null,null,null,6,"45BYHTDSNCJ13IRISVXOTVD35","45GNYMF5G2AVUSYSGK9TBC7PD","","1","","","","00","X","0","0","","",null,null,null,null,null,null,null,null,null,null,null,null,null,null,null,null,null,null,null,null,null,null,null,null,null,null,null,null,null,null,null,null,null,null,null,null,5,"0S_COCD","1","S","I","EQ","2060","2060","","","Fossil Rock Fuels, LLC","40","","0","","0","Company Code","20","","","ZISJARS01___F00011","",null,null,null,null,null,null,null,null,null,null,null,null,null,null,null,null,null,null,null,null,null,null,null,null,null,null,null,null,4,"0000000010",""]
[null,null,null,null,null,null,null,null,null,null,null,null,null,null,null,null,null,null,null,null,null,null,null,null,null,null,null,null,null,null,null,null,null,null,null,null,null,null,null,null,null,null,null,null,null,null,null,null,null,null,null,null,null,null,null,null,null,null,null,null,null,null,null,null,null,null,null,null,null,null,null,null,null,null,null,null,null,null,null,null,null,null,null,null,null,null,null,null,null,null,5,"45B8PUR4SOQNJV34O1DUZOIYP","45B8PXIZN6KVA03YRW8AME29T","Nutil","0013","","S","","L","","","","","",null,null,null,null,null,null,6,"ZISJARS01___F00011","0RETROPOST","Post to Prev. Allwd","0001","X","2","0","0","","","","","0000","","",null,null,null,null,6,"45BYHTDSNCJ13IRISVXOTVD35","45GNYMMTZ0WLDFI8MEC5LE6F5","","1","","","","00","X","0","0","","",null,null,null,null,null,null,null,null,null,null,null,null,null,null,null,null,null,null,null,null,null,null,null,null,null,null,null,null,null,null,null,null,null,null,null,null,5,"0I_CALZ1","1","I","I","BT","201207","07/2012","201306","06/2013","JUL 2012","40","JUN 2013","40","","0","Calendar Year/Month1","20","","","ZISJARS01___F00014","",null,null,null,null,null,null,null,null,null,null,null,null,null,null,null,null,null,null,null,null,null,null,null,null,null,null,null,null,4,"0000000109","2"]
[null,null,null,null,null,null,null,null,null,null,null,null,null,null,null,null,null,null,null,null,null,null,null,null,null,null,null,null,null,null,null,null,null,null,null,null,null,null,null,null,null,null,null,null,null,null,null,null,null,null,null,null,null,null,null,null,null,null,null,null,null,null,null,null,null,null,null,null,null,null,null,null,null,null,null,null,null,null,null,null,null,null,null,null,null,null,null,null,null,null,null,null,null,null,null,null,null,null,null,null,null,null,null,null,null,null,null,null,null,null,6,"ZISJARS01___F00011","0OFYEAR","Open Fiscal Year","0002","X","2","0","0","","","","","0000","","",null,null,null,null,6,"45BYHTDSNCJ13IRISVXOTVD35","45GNYMUIHZIAW21OS8EHVG54X","","1","","","","00","X","0","0","","",null,null,null,null,null,null,null,null,null,null,null,null,null,null,null,null,null,null,null,null,null,null,null,null,null,null,null,null,null,null,null,null,null,null,null,null,null,null,null,null,null,null,null,null,null,null,null,null,null,null,null,null,null,null,null,null,null,null,null,null,null,null,null,null,null,null,null,null,null,null,null,null,null,null,null,null,null,null,null,null,null,null,null,null,null,null,4,"0000000113",""]
[null,null,null,null,null,null,null,null,null,null,null,null,null,null,null,null,null,null,null,null,null,null,null,null,null,null,null,null,null,null,null,null,null,null,null,null,null,null,null,null,null,null,null,null,null,null,null,null,null,null,null,null,null,null,null,null,null,null,null,null,null,null,null,null,null,null,null,null,null,null,null,null,null,null,null,null,null,null,null,null,null,null,null,null,null,null,null,null,null,null,null,null,null,null,null,null,null,null,null,null,null,null,null,null,null,null,null,null,null,null,6,"ZISJARS01___F00011","0OFPER3","Open Posting Period","0003","X","2","0","0","","","","","0000","","",null,null,null,null,6,"45BYHTDSNCJ13IRISVXOTVD35","45GNYN270Y40EOL4Y2GU5I3UP","","1","","","","00","X","0","0","","",null,null,null,null,null,null,null,null,null,null,null,null,null,null,null,null,null,null,null,null,null,null,null,null,null,null,null,null,null,null,null,null,null,null,null,null,null,null,null,null,null,null,null,null,null,null,null,null,null,null,null,null,null,null,null,null,null,null,null,null,null,null,null,null,null,null,null,null,null,null,null,null,null,null,null,null,null,null,null,null,null,null,null,null,null,null,4,"0000009002","45B8PUR4SOQNJV34O1DUZOIYP"]
[null,null,null,null,null,null,null,null,null,null,null,null,null,null,null,null,null,null,null,null,null,null,null,null,null,null,null,null,null,null,null,null,null,null,null,null,null,null,null,null,null,null,null,null,null,null,null,null,null,null,null,null,null,null,null,null,null,null,null,null,null,null,null,null,null,null,null,null,null,null,null,null,null,null,null,null,null,null,null,null,null,null,null,null,null,null,null,null,null,null,null,null,null,null,null,null,null,null,null,null,null,null,null,null,null,null,null,null,null,null,6,"ZISJARS01___F00011","0OFPER","Open FY Period","0004","X","1","0","0","","","","","0000","","",null,null,null,null,6,"45BYHTDSNCJ13IRISVXOTVD35","45GNYN9VJWPPXB4L3WJ6FK2KH","","1","","","","00","X","0","0","","",null,null,null,null,null,null,null,null,null,null,null,null,null,null,null,null,null,null,null,null,null,null,null,null,null,null,null,null,null,null,null,null,null,null,null,null,null,null,null,null,null,null,null,null,null,null,null,null,null,null,null,null,null,null,null,null,null,null,null,null,null,null,null,null,null,null,null,null,null,null,null,null,null,null,null,null,null,null,null,null,null,null,null,null,null,null,4,"0000000120",""]
[null,null,null,null,null,null,null,null,null,null,null,null,null,null,null,null,null,null,null,null,null,null,null,null,null,null,null,null,null,null,null,null,null,null,null,null,null,null,null,null,null,null,null,null,null,null,null,null,null,null,null,null,null,null,null,null,null,null,null,null,null,null,null,null,null,null,null,null,null,null,null,null,null,null,null,null,null,null,null,null,null,null,null,null,null,null,null,null,null,null,null,null,null,null,null,null,null,null,null,null,null,null,null,null,null,null,null,null,null,null,6,"ZISJARS01___F00012","0SEGMENT","Segment","0005","X","1","0","0","","","","","0000","","",null,null,null,null,6,"45BYHTDSNCJ13IRISVXOTVD35","45GNYNHK2VBFFXO19QLIPM1A9","","1","","","","00","X","0","0","","",null,null,null,null,null,null,null,null,null,null,null,null,null,null,null,null,null,null,null,null,null,null,null,null,null,null,null,null,null,null,null,null,null,null,null,null,null,null,null,null,null,null,null,null,null,null,null,null,null,null,null,null,null,null,null,null,null,null,null,null,null,null,null,null,null,null,null,null,null,null,null,null,null,null,null,null,null,null,null,null,null,null,null,null,null,null,4,"0000000121",""]
[null,null,null,null,null,null,null,null,null,null,null,null,null,null,null,null,null,null,null,null,null,null,null,null,null,null,null,null,null,null,null,null,null,null,null,null,null,null,null,null,null,null,null,null,null,null,null,null,null,null,null,null,null,null,null,null,null,null,null,null,null,null,null,null,null,null,null,null,null,null,null,null,null,null,null,null,null,null,null,null,null,null,null,null,null,null,null,null,null,null,null,null,null,null,null,null,null,null,null,null,null,null,null,null,null,null,null,null,null,null,6,"ZISJARS01___F00012","0RESP_USER","Person Responsible","0006","X","2","0","0","","","","","0000","","",null,null,null,null,6,"45BYHTDSNCJ13IRISVXOTVD35","45GNYNP8LTX4YK7HFKNUZO001","","1","","","","00","X","0","0","","",null,null,null,null,null,null,null,null,null,null,null,null,null,null,null,null,null,null,null,null,null,null,null,null,null,null,null,null,null,null,null,null,null,null,null,null,null,null,null,null,null,null,null,null,null,null,null,null,null,null,null,null,null,null,null,null,null,null,null,null,null,null,null,null,null,null,null,null,null,null,null,null,null,null,null,null,null,null,null,null,null,null,null,null,null,null,4,"0000000023",""]
[null,null,null,null,null,null,null,null,null,null,null,null,null,null,null,null,null,null,null,null,null,null,null,null,null,null,null,null,null,null,null,null,null,null,null,null,null,null,null,null,null,null,null,null,null,null,null,null,null,null,null,null,null,null,null,null,null,null,null,null,null,null,null,null,null,null,null,null,null,null,null,null,null,null,null,null,null,null,null,null,null,null,null,null,null,null,null,null,null,null,null,null,null,null,null,null,null,null,null,null,null,null,null,null,null,null,null,null,null,null,6,"ZISJARS01___F00012","0PCA_HIEND","Hierarchy Area","0007","X","2","0","0","","","","","0000","","",null,null,null,null,6,"45BYHTDSNCJ13IRISVXOTVD35","45GNYNWX4SIUH6QXLEQ79PYPT","","1","","","","00","X","0","0","","",null,null,null,null,null,null,null,null,null,null,null,null,null,null,null,null,null,null,null,null,null,null,null,null,null,null,null,null,null,null,null,null,null,null,null,null,null,null,null,null,null,null,null,null,null,null,null,null,null,null,null,null,null,null,null,null,null,null,null,null,null,null,null,null,null,null,null,null,null,null,null,null,null,null,null,null,null,null,null,null,null,null,null,null,null,null,4,"0000000022",""]
[null,null,null,null,null,null,null,null,null,null,null,null,null,null,null,null,null,null,null,null,null,null,null,null,null,null,null,null,null,null,null,null,null,null,null,null,null,null,null,null,null,null,null,null,null,null,null,null,null,null,null,null,null,null,null,null,null,null,null,null,null,null,null,null,null,null,null,null,null,null,null,null,null,null,null,null,null,null,null,null,null,null,null,null,null,null,null,null,null,null,null,null,null,null,null,null,null,null,null,null,null,null,null,null,null,null,null,null,null,null,6,"ZISJARS01___F00012","0PCA_DEPART","Department","0008","X","2","0","0","","","","","0000","","",null,null,null,null,6,"45BYHTDSNCJ13IRISVXOTVD35","45GNYO4LNR4JZTADR8SJJRXFL","","1","","","","00","X","0","0","","",null,null,null,null,null,null,null,null,null,null,null,null,null,null,null,null,null,null,null,null,null,null,null,null,null,null,null,null,null,null,null,null,null,null,null,null,null,null,null,null,null,null,null,null,null,null,null,null,null,null,null,null,null,null,null,null,null,null,null,null,null,null,null,null,null,null,null,null,null,null,null,null,null,null,null,null,null,null,null,null,null,null,null,null,null,null,4,"0000000021",""]
[null,null,null,null,null,null,null,null,null,null,null,null,null,null,null,null,null,null,null,null,null,null,null,null,null,null,null,null,null,null,null,null,null,null,null,null,null,null,null,null,null,null,null,null,null,null,null,null,null,null,null,null,null,null,null,null,null,null,null,null,null,null,null,null,null,null,null,null,null,null,null,null,null,null,null,null,null,null,null,null,null,null,null,null,null,null,null,null,null,null,null,null,null,null,null,null,null,null,null,null,null,null,null,null,null,null,null,null,null,null,6,"ZISJARS01___F00014","0CALMONTH2","Calendar month","0009","X","2","0","0","","","","","0000","","",null,null,null,null,6,"45BYHTDSNCJ13IRISVXOTVD35","45GNYOCA6PQ9IFTTX2UVTTW5D","","1","","","","00","X","0","0","","",null,null,null,null,null,null,null,null,null,null,null,null,null,null,null,null,null,null,null,null,null,null,null,null,null,null,null,null,null,null,null,null,null,null,null,null,null,null,null,null,null,null,null,null,null,null,null,null,null,null,null,null,null,null,null,null,null,null,null,null,null,null,null,null,null,null,null,null,null,null,null,null,null,null,null,null,null,null,null,null,null,null,null,null,null,null,4,"0000000030",""]
[null,null,null,null,null,null,null,null,null,null,null,null,null,null,null,null,null,null,null,null,null,null,null,null,null,null,null,null,null,null,null,null,null,null,null,null,null,null,null,null,null,null,null,null,null,null,null,null,null,null,null,null,null,null,null,null,null,null,null,null,null,null,null,null,null,null,null,null,null,null,null,null,null,null,null,null,null,null,null,null,null,null,null,null,null,null,null,null,null,null,null,null,null,null,null,null,null,null,null,null,null,null,null,null,null,null,null,null,null,null,6,"ZISJARS01___F00014","0CALYEAR","Calendar year","0010","X","2","0","0","","","","","0000","","",null,null,null,null,6,"45BYHTDSNCJ13IRISVXOTVD35","45GNYOJYPOBZ12DA2WX83VUV5","","1","","","","00","X","0","0","","",null,null,null,null,null,null,null,null,null,null,null,null,null,null,null,null,null,null,null,null,null,null,null,null,null,null,null,null,null,null,null,null,null,null,null,null,null,null,null,null,null,null,null,null,null,null,null,null,null,null,null,null,null,null,null,null,null,null,null,null,null,null,null,null,null,null,null,null,null,null,null,null,null,null,null,null,null,null,null,null,null,null,null,null,null,null,4,"0000000040",""]
[null,null,null,null,null,null,null,null,null,null,null,null,null,null,null,null,null,null,null,null,null,null,null,null,null,null,null,null,null,null,null,null,null,null,null,null,null,null,null,null,null,null,null,null,null,null,null,null,null,null,null,null,null,null,null,null,null,null,null,null,null,null,null,null,null,null,null,null,null,null,null,null,null,null,null,null,null,null,null,null,null,null,null,null,null,null,null,null,null,null,null,null,null,null,null,null,null,null,null,null,null,null,null,null,null,null,null,null,null,null,6,"ZISJARS01___F00014","0DATEFROM","Valid From","0011","X","2","0","0","","","","","0000","","",null,null,null,null,4,"45B8PUYTBNCD2HMKTVG79QHOH","0000000000000000000000000","3","0","","","","01","X","1","0","","",null,null,null,null,null,null,null,null,null,null,null,null,null,null,null,null,null,null,null,null,null,null,null,null,null,null,null,null,null,null,null,null,null,null,null,null,null,null,null,null,null,null,null,null,null,null,null,null,null,null,null,null,null,null,null,null,null,null,null,null,null,null,null,null,null,null,null,null,null,null,null,null,null,null,null,null,null,null,null,null,null,null,null,null,null,null,4,"0000000041",""]
[null,null,null,null,null,null,null,null,null,null,null,null,null,null,null,null,null,null,null,null,null,null,null,null,null,null,null,null,null,null,null,null,null,null,null,null,null,null,null,null,null,null,null,null,null,null,null,null,null,null,null,null,null,null,null,null,null,null,null,null,null,null,null,null,null,null,null,null,null,null,null,null,null,null,null,null,null,null,null,null,null,null,null,null,null,null,null,null,null,null,null,null,null,null,null,null,null,null,null,null,null,null,null,null,null,null,null,null,null,null,6,"ZISJARS01___F00014","0DATETO","Valid To","0012","X","2","0","0","","","","","0000","","",null,null,null,null,4,"45B8PV6HULY2L460ZPIJJSGE9","0000000000000000000000000","3","0","","","","01","X","2","0","","",null,null,null,null,null,null,null,null,null,null,null,null,null,null,null,null,null,null,null,null,null,null,null,null,null,null,null,null,null,null,null,null,null,null,null,null,null,null,null,null,null,null,null,null,null,null,null,null,null,null,null,null,null,null,null,null,null,null,null,null,null,null,null,null,null,null,null,null,null,null,null,null,null,null,null,null,null,null,null,null,null,null,null,null,null,null,4,"0000000042","0"]
[null,null,null,null,null,null,null,null,null,null,null,null,null,null,null,null,null,null,null,null,null,null,null,null,null,null,null,null,null,null,null,null,null,null,null,null,null,null,null,null,null,null,null,null,null,null,null,null,null,null,null,null,null,null,null,null,null,null,null,null,null,null,null,null,null,null,null,null,null,null,null,null,null,null,null,null,null,null,null,null,null,null,null,null,null,null,null,null,null,null,null,null,null,null,null,null,null,null,null,null,null,null,null,null,null,null,null,null,null,null,6,"ZISJARS01___F00014","0NUMDAY","Number of Days","0013","X","2","0","0","","","","","0000","","",null,null,null,null,4,"45B8PVE6DKJS3QPH5JKVTUF41","0000000000000000000000000","3","0","","","","01","X","3","0","","",null,null,null,null,null,null,null,null,null,null,null,null,null,null,null,null,null,null,null,null,null,null,null,null,null,null,null,null,null,null,null,null,null,null,null,null,null,null,null,null,null,null,null,null,null,null,null,null,null,null,null,null,null,null,null,null,null,null,null,null,null,null,null,null,null,null,null,null,null,null,null,null,null,null,null,null,null,null,null,null,null,null,null,null,null,null,4,"0000000043","0"]
[null,null,null,null,null,null,null,null,null,null,null,null,null,null,null,null,null,null,null,null,null,null,null,null,null,null,null,null,null,null,null,null,null,null,null,null,null,null,null,null,null,null,null,null,null,null,null,null,null,null,null,null,null,null,null,null,null,null,null,null,null,null,null,null,null,null,null,null,null,null,null,null,null,null,null,null,null,null,null,null,null,null,null,null,null,null,null,null,null,null,null,null,null,null,null,null,null,null,null,null,null,null,null,null,null,null,null,null,null,null,6,"ZISJARS01___F00014","0NUMWDAY","Number of Workdays","0014","X","2","0","0","","","","","0000","","",null,null,null,null,4,"45B8PVLUWJ5HMD8XBDN83WDTT","0000000000000000000000000","3","0","","","","01","X","4","0","","",null,null,null,null,null,null,null,null,null,null,null,null,null,null,null,null,null,null,null,null,null,null,null,null,null,null,null,null,null,null,null,null,null,null,null,null,null,null,null,null,null,null,null,null,null,null,null,null,null,null,null,null,null,null,null,null,null,null,null,null,null,null,null,null,null,null,null,null,null,null,null,null,null,null,null,null,null,null,null,null,null,null,null,null,null,null,4,"0000010002","45B2RMIN1001EBND0GG8VQVI9"]
[null,null,null,null,null,null,null,null,null,null,null,null,null,null,null,null,null,null,null,null,null,null,null,null,null,null,null,null,null,null,null,null,null,null,null,null,null,null,null,null,null,null,null,null,null,null,null,null,null,null,null,null,null,null,null,null,null,null,null,null,null,null,null,null,null,null,null,null,null,null,null,null,null,null,null,null,null,null,null,null,null,null,null,null,null,null,null,null,null,null,null,null,null,null,null,null,null,null,null,null,null,null,null,null,null,null,null,null,null,null,4,"ZISJARS01___F00006","0BAL_FLAG","Balance Sheet Acct","0000","X","2","0","0","","","","","0000","","",null,null,null,null,4,"45B8PVTJFHR74ZSDH7PKDYCJL","0000000000000000000000000","3","0","","","","01","X","5","0","","",null,null,null,null,null,null,null,null,null,null,null,null,null,null,null,null,null,null,null,null,null,null,null,null,null,null,null,null,null,null,null,null,null,null,null,null,null,null,null,null,null,null,null,null,null,null,null,null,null,null,null,null,null,null,null,null,null,null,null,null,null,null,null,null,null,null,null,null,null,null,null,null,null,null,null,null,null,null,null,null,null,null,null,null,null,null,4,"0000000105",""]
[null,null,null,null,null,null,null,null,null,null,null,null,null,null,null,null,null,null,null,null,null,null,null,null,null,null,null,null,null,null,null,null,null,null,null,null,null,null,null,null,null,null,null,null,null,null,null,null,null,null,null,null,null,null,null,null,null,null,null,null,null,null,null,null,null,null,null,null,null,null,null,null,null,null,null,null,null,null,null,null,null,null,null,null,null,null,null,null,null,null,null,null,null,null,null,null,null,null,null,null,null,null,null,null,null,null,null,null,null,null,4,"ZISJARS01___F00006","0CSTEL_FLAG","Ind.: Cost Element","0000","X","2","0","0","","","","","0000","","",null,null,null,null,4,"45B8PW17YGCWNMBTN1RWO0B9D","0000000000000000000000000","3","0","","","","01","X","6","0","","",null,null,null,null,null,null,null,null,null,null,null,null,null,null,null,null,null,null,null,null,null,null,null,null,null,null,null,null,null,null,null,null,null,null,null,null,null,null,null,null,null,null,null,null,null,null,null,null,null,null,null,null,null,null,null,null,null,null,null,null,null,null,null,null,null,null,null,null,null,null,null,null,null,null,null,null,null,null,null,null,null,null,null,null,null,null,4,"0000000106",""]
[null,null,null,null,null,null,null,null,null,null,null,null,null,null,null,null,null,null,null,null,null,null,null,null,null,null,null,null,null,null,null,null,null,null,null,null,null,null,null,null,null,null,null,null,null,null,null,null,null,null,null,null,null,null,null,null,null,null,null,null,null,null,null,null,null,null,null,null,null,null,null,null,null,null,null,null,null,null,null,null,null,null,null,null,null,null,null,null,null,null,null,null,null,null,null,null,null,null,null,null,null,null,null,null,null,null,null,null,null,null,4,"ZISJARS01___F00006","0GLACC_FLAG","G/L account","0000","X","2","0","0","","","","","0000","","",null,null,null,null,4,"45B8PW8WHEYM68V9SVU8Y29Z5","0000000000000000000000000","3","0","","","","01","X","7","0","","",null,null,null,null,null,null,null,null,null,null,null,null,null,null,null,null,null,null,null,null,null,null,null,null,null,null,null,null,null,null,null,null,null,null,null,null,null,null,null,null,null,null,null,null,null,null,null,null,null,null,null,null,null,null,null,null,null,null,null,null,null,null,null,null,null,null,null,null,null,null,null,null,null,null,null,null,null,null,null,null,null,null,null,null,null,null,4,"0000000112","0"]
[null,null,null,null,null,null,null,null,null,null,null,null,null,null,null,null,null,null,null,null,null,null,null,null,null,null,null,null,null,null,null,null,null,null,null,null,null,null,null,null,null,null,null,null,null,null,null,null,null,null,null,null,null,null,null,null,null,null,null,null,null,null,null,null,null,null,null,null,null,null,null,null,null,null,null,null,null,null,null,null,null,null,null,null,null,null,null,null,null,null,null,null,null,null,null,null,null,null,null,null,null,null,null,null,null,null,null,null,null,null,4,"ZISJARS01___F00006","0LOGSYS","Source System","0000","X","1","0","0","","","","","0000","","",null,null,null,null,4,"45B8PWGL0DKBOVEPYPWL848OX","0000000000000000000000000","3","0","","","","01","X","8","0","","",null,null,null,null,null,null,null,null,null,null,null,null,null,null,null,null,null,null,null,null,null,null,null,null,null,null,null,null,null,null,null,null,null,null,null,null,null,null,null,null,null,null,null,null,null,null,null,null,null,null,null,null,null,null,null,null,null,null,null,null,null,null,null,null,null,null,null,null,null,null,null,null,null,null,null,null,null,null,null,null,null,null,null,null,null,null,4,"0000000200","X"]
[null,null,null,null,null,null,null,null,null,null,null,null,null,null,null,null,null,null,null,null,null,null,null,null,null,null,null,null,null,null,null,null,null,null,null,null,null,null,null,null,null,null,null,null,null,null,null,null,null,null,null,null,null,null,null,null,null,null,null,null,null,null,null,null,null,null,null,null,null,null,null,null,null,null,null,null,null,null,null,null,null,null,null,null,null,null,null,null,null,null,null,null,null,null,null,null,null,null,null,null,null,null,null,null,null,null,null,null,null,null,4,"ZISJARS01___F00006","0SEM_POSIT","Planning Item","0000","X","1","0","0","","","","","0000","","",null,null,null,null,4,"45B8PWO9JC617HY64JYXI67EP","0000000000000000000000000","3","0","","","","01","X","9","0","","",null,null,null,null,null,null,null,null,null,null,null,null,null,null,null,null,null,null,null,null,null,null,null,null,null,null,null,null,null,null,null,null,null,null,null,null,null,null,null,null,null,null,null,null,null,null,null,null,null,null,null,null,null,null,null,null,null,null,null,null,null,null,null,null,null,null,null,null,null,null,null,null,null,null,null,null,null,null,null,null,null,null,null,null,null,null,4,"0000004000","X"]
[null,null,null,null,null,null,null,null,null,null,null,null,null,null,null,null,null,null,null,null,null,null,null,null,null,null,null,null,null,null,null,null,null,null,null,null,null,null,null,null,null,null,null,null,null,null,null,null,null,null,null,null,null,null,null,null,null,null,null,null,null,null,null,null,null,null,null,null,null,null,null,null,null,null,null,null,null,null,null,null,null,null,null,null,null,null,null,null,null,null,null,null,null,null,null,null,null,null,null,null,null,null,null,null,null,null,null,null,null,null,4,"ZISJARS01___F00029","ZJRSRBCD","JARS Rate Base Code","0000","X","2","0","0","","","","","0000","","",null,null,null,null,4,"45B8PWVY2ARQQ4HMAE19S864H","0000000000000000000000000","3","0","","","","01","X","10","0","","",null,null,null,null,null,null,null,null,null,null,null,null,null,null,null,null,null,null,null,null,null,null,null,null,null,null,null,null,null,null,null,null,null,null,null,null,null,null,null,null,null,null,null,null,null,null,null,null,null,null,null,null,null,null,null,null,null,null,null,null,null,null,null,null,null,null,null,null,null,null,null,null,null,null,null,null,null,null,null,null,null,null,null,null,null,null,4,"0000000020",""]
[null,null,null,null,null,null,null,null,null,null,null,null,null,null,null,null,null,null,null,null,null,null,null,null,null,null,null,null,null,null,null,null,null,null,null,null,null,null,null,null,null,null,null,null,null,null,null,null,null,null,null,null,null,null,null,null,null,null,null,null,null,null,null,null,null,null,null,null,null,null,null,null,null,null,null,null,null,null,null,null,null,null,null,null,null,null,null,null,null,null,null,null,null,null,null,null,null,null,null,null,null,null,null,null,null,null,null,null,null,null,4,"ZISJARS01___F00011","0CHRT_ACCTS","Chart of accounts","0000","X","0","0","0","","","","","0000","","",null,null,null,null,4,"45B8PX3ML9DG8R12G83M2A4U9","0000000000000000000000000","3","0","","","","01","X","11","0","","",null,null,null,null,null,null,null,null,null,null,null,null,null,null,null,null,null,null,null,null,null,null,null,null,null,null,null,null,null,null,null,null,null,null,null,null,null,null,null,null,null,null,null,null,null,null,null,null,null,null,null,null,null,null,null,null,null,null,null,null,null,null,null,null,null,null,null,null,null,null,null,null,null,null,null,null,null,null,null,null,null,null,null,null,null,null,4,"0000009001","JARS - Jurisdiction by FERC Account (Period Balance)"]
[null,null,null,null,null,null,null,null,null,null,null,null,null,null,null,null,null,null,null,null,null,null,null,null,null,null,null,null,null,null,null,null,null,null,null,null,null,null,null,null,null,null,null,null,null,null,null,null,null,null,null,null,null,null,null,null,null,null,null,null,null,null,null,null,null,null,null,null,null,null,null,null,null,null,null,null,null,null,null,null,null,null,null,null,null,null,null,null,null,null,null,null,null,null,null,null,null,null,null,null,null,null,null,null,null,null,null,null,null,null,4,"ZISJARS01___F00011","0COMPANY","Company","0000","X","0","0","0","","","","","0000","","",null,null,null,null,4,"45B8PXBB47Z5RDKIM25YCC3K1","0000000000000000000000000","3","0","","","","01","X","12","0","","",null,null,null,null,null,null,null,null,null,null,null,null,null,null,null,null,null,null,null,null,null,null,null,null,null,null,null,null,null,null,null,null,null,null,null,null,null,null,null,null,null,null,null,null,null,null,null,null,null,null,null,null,null,null,null,null,null,null,null,null,null,null,null,null,null,null,null,null,null,null,null,null,null,null,null,null,null,null,null,null,null,null,null,null,null,null,4,"0000000114","1"]
[null,null,null,null,null,null,null,null,null,null,null,null,null,null,null,null,null,null,null,null,null,null,null,null,null,null,null,null,null,null,null,null,null,null,null,null,null,null,null,null,null,null,null,null,null,null,null,null,null,null,null,null,null,null,null,null,null,null,null,null,null,null,null,null,null,null,null,null,null,null,null,null,null,null,null,null,null,null,null,null,null,null,null,null,null,null,null,null,null,null,null,null,null,null,null,null,null,null,null,null,null,null,null,null,null,null,null,null,null,null,4,"ZISJARS01___F00011","0COUNTRY","Country","0000","X","0","0","0","","","","","0000","","",null,null,null,null,4,"45B8PXIZN6KVA03YRW8AME29T","0000000000000000000000000","3","0","","","","01","X","15","0","","",null,null,null,null,null,null,null,null,null,null,null,null,null,null,null,null,null,null,null,null,null,null,null,null,null,null,null,null,null,null,null,null,null,null,null,null,null,null,null,null,null,null,null,null,null,null,null,null,null,null,null,null,null,null,null,null,null,null,null,null,null,null,null,null,null,null,null,null,null,null,null,null,null,null,null,null,null,null,null,null,null,null,null,null,null,null,5,"0000000100",""]
[null,null,null,null,null,null,null,null,null,null,null,null,null,null,null,null,null,null,null,null,null,null,null,null,null,null,null,null,null,null,null,null,null,null,null,null,null,null,null,null,null,null,null,null,null,null,null,null,null,null,null,null,null,null,null,null,null,null,null,null,null,null,null,null,null,null,null,null,null,null,null,null,null,null,null,null,null,null,null,null,null,null,null,null,null,null,null,null,null,null,null,null,null,null,null,null,null,null,null,null,null,null,null,null,null,null,null,null,null,null,4,"ZISJARS01___F00011","0CURRENCY","Currency","0000","X","0","0","0","","","","","0000","","",null,null,null,null,5,"45B8PUYTBNCD2HMKTVG79QHOH","0000000000000000000000000","3","0","","","","01","X","1","0","","",null,null,null,null,null,null,null,null,null,null,null,null,null,null,null,null,null,null,null,null,null,null,null,null,null,null,null,null,null,null,null,null,null,null,null,null,null,null,null,null,null,null,null,null,null,null,null,null,null,null,null,null,null,null,null,null,null,null,null,null,null,null,null,null,null,null,null,null,null,null,null,null,null,null,null,null,null,null,null,null,null,null,null,null,null,null,5,"0000000108","6"]
[null,null,null,null,null,null,null,null,null,null,null,null,null,null,null,null,null,null,null,null,null,null,null,null,null,null,null,null,null,null,null,null,null,null,null,null,null,null,null,null,null,null,null,null,null,null,null,null,null,null,null,null,null,null,null,null,null,null,null,null,null,null,null,null,null,null,null,null,null,null,null,null,null,null,null,null,null,null,null,null,null,null,null,null,null,null,null,null,null,null,null,null,null,null,null,null,null,null,null,null,null,null,null,null,null,null,null,null,null,null,4,"ZISJARS01___F00011","0C_CTR_AREA","Credit Control Area","0000","X","0","0","0","","","","","0000","","",null,null,null,null,5,"45B8PV6HULY2L460ZPIJJSGE9","0000000000000000000000000","3","0","","","","01","X","2","0","","",null,null,null,null,null,null,null,null,null,null,null,null,null,null,null,null,null,null,null,null,null,null,null,null,null,null,null,null,null,null,null,null,null,null,null,null,null,null,null,null,null,null,null,null,null,null,null,null,null,null,null,null,null,null,null,null,null,null,null,null,null,null,null,null,null,null,null,null,null,null,null,null,null,null,null,null,null,null,null,null,null,null,null,null,null,null,5,"0000000101",""]
[null,null,null,null,null,null,null,null,null,null,null,null,null,null,null,null,null,null,null,null,null,null,null,null,null,null,null,null,null,null,null,null,null,null,null,null,null,null,null,null,null,null,null,null,null,null,null,null,null,null,null,null,null,null,null,null,null,null,null,null,null,null,null,null,null,null,null,null,null,null,null,null,null,null,null,null,null,null,null,null,null,null,null,null,null,null,null,null,null,null,null,null,null,null,null,null,null,null,null,null,null,null,null,null,null,null,null,null,null,null,4,"ZISJARS01___F00011","0FISCVARNT","Fiscal Year Variant","0000","X","2","0","0","","","","","0000","","",null,null,null,null,5,"45B8PVE6DKJS3QPH5JKVTUF41","0000000000000000000000000","3","0","","","","01","X","3","0","","",null,null,null,null,null,null,null,null,null,null,null,null,null,null,null,null,null,null,null,null,null,null,null,null,null,null,null,null,null,null,null,null,null,null,null,null,null,null,null,null,null,null,null,null,null,null,null,null,null,null,null,null,null,null,null,null,null,null,null,null,null,null,null,null,null,null,null,null,null,null,null,null,null,null,null,null,null,null,null,null,null,null,null,null,null,null,5,"0000000104","1"]
[null,null,null,null,null,null,null,null,null,null,null,null,null,null,null,null,null,null,null,null,null,null,null,null,null,null,null,null,null,null,null,null,null,null,null,null,null,null,null,null,null,null,null,null,null,null,null,null,null,null,null,null,null,null,null,null,null,null,null,null,null,null,null,null,null,null,null,null,null,null,null,null,null,null,null,null,null,null,null,null,null,null,null,null,null,null,null,null,null,null,null,null,null,null,null,null,null,null,null,null,null,null,null,null,null,null,null,null,null,null,4,"ZISJARS01___F00011","0LOGSYS","Source System","0000","X","1","0","0","","","","","0000","","",null,null,null,null,5,"45B8PVLUWJ5HMD8XBDN83WDTT","0000000000000000000000000","3","0","","","","01","X","4","0","","",null,null,null,null,null,null,null,null,null,null,null,null,null,null,null,null,null,null,null,null,null,null,null,null,null,null,null,null,null,null,null,null,null,null,null,null,null,null,null,null,null,null,null,null,null,null,null,null,null,null,null,null,null,null,null,null,null,null,null,null,null,null,null,null,null,null,null,null,null,null,null,null,null,null,null,null,null,null,null,null,null,null,null,null,null,null,5,"0000000103",""]
[null,null,null,null,null,null,null,null,null,null,null,null,null,null,null,null,null,null,null,null,null,null,null,null,null,null,null,null,null,null,null,null,null,null,null,null,null,null,null,null,null,null,null,null,null,null,null,null,null,null,null,null,null,null,null,null,null,null,null,null,null,null,null,null,null,null,null,null,null,null,null,null,null,null,null,null,null,null,null,null,null,null,null,null,null,null,null,null,null,null,null,null,null,null,null,null,null,null,null,null,null,null,null,null,null,null,null,null,null,null,4,"ZISJARS01___F00011","0SOURSYSTEM","Source system ID","0000","X","1","0","0","","","","","0000","","",null,null,null,null,5,"45B8PVTJFHR74ZSDH7PKDYCJL","0000000000000000000000000","3","0","","","","01","X","5","0","","",null,null,null,null,null,null,null,null,null,null,null,null,null,null,null,null,null,null,null,null,null,null,null,null,null,null,null,null,null,null,null,null,null,null,null,null,null,null,null,null,null,null,null,null,null,null,null,null,null,null,null,null,null,null,null,null,null,null,null,null,null,null,null,null,null,null,null,null,null,null,null,null,null,null,null,null,null,null,null,null,null,null,null,null,null,null,5,"0000000102","3"]
[null,null,null,null,null,null,null,null,null,null,null,null,null,null,null,null,null,null,null,null,null,null,null,null,null,null,null,null,null,null,null,null,null,null,null,null,null,null,null,null,null,null,null,null,null,null,null,null,null,null,null,null,null,null,null,null,null,null,null,null,null,null,null,null,null,null,null,null,null,null,null,null,null,null,null,null,null,null,null,null,null,null,null,null,null,null,null,null,null,null,null,null,null,null,null,null,null,null,null,null,null,null,null,null,null,null,null,null,null,null,4,"ZISJARS01___F00002","0CHANGEDBY","Changed by","0000","X","2","0","0","","","","","0000","","",null,null,null,null,5,"45B8PW17YGCWNMBTN1RWO0B9D","0000000000000000000000000","3","0","","","","01","X","6","0","","",null,null,null,null,null,null,null,null,null,null,null,null,null,null,null,null,null,null,null,null,null,null,null,null,null,null,null,null,null,null,null,null,null,null,null,null,null,null,null,null,null,null,null,null,null,null,null,null,null,null,null,null,null,null,null,null,null,null,null,null,null,null,null,null,null,null,null,null,null,null,null,null,null,null,null,null,null,null,null,null,null,null,null,null,null,null,5,"0000009000",""]
[null,null,null,null,null,null,null,null,null,null,null,null,null,null,null,null,null,null,null,null,null,null,null,null,null,null,null,null,null,null,null,null,null,null,null,null,null,null,null,null,null,null,null,null,null,null,null,null,null,null,null,null,null,null,null,null,null,null,null,null,null,null,null,null,null,null,null,null,null,null,null,null,null,null,null,null,null,null,null,null,null,null,null,null,null,null,null,null,null,null,null,null,null,null,null,null,null,null,null,null,null,null,null,null,null,null,null,null,null,null,4,"ZISJARS01___F00002","0CH_AT","Last Changed At","0000","X","2","0","0","","","","","0000","","",null,null,null,null,5,"45B8PW8WHEYM68V9SVU8Y29Z5","0000000000000000000000000","3","0","","","","01","X","7","0","","",null,null,null,null,null,null,null,null,null,null,null,null,null,null,null,null,null,null,null,null,null,null,null,null,null,null,null,null,null,null,null,null,null,null,null,null,null,null,null,null,null,null,null,null,null,null,null,null,null,null,null,null,null,null,null,null,null,null,null,null,null,null,null,null,null,null,null,null,null,null,null,null,null,null,null,null,null,null,null,null,null,null,null,null,null,null,5,"0000000107","45B2RMIN1001EBND0GG8VQVI9"]
[null,null,null,null,null,null,null,null,null,null,null,null,null,null,null,null,null,null,null,null,null,null,null,null,null,null,null,null,null,null,null,null,null,null,null,null,null,null,null,null,null,null,null,null,null,null,null,null,null,null,null,null,null,null,null,null,null,null,null,null,null,null,null,null,null,null,null,null,null,null,null,null,null,null,null,null,null,null,null,null,null,null,null,null,null,null,null,null,null,null,null,null,null,null,null,null,null,null,null,null,null,null,null,null,null,null,null,null,null,null,4,"ZISJARS01___F00002","0CH_ON","Changed on","0000","X","2","0","0","","","","","0000","","",null,null,null,null,5,"45B8PWGL0DKBOVEPYPWL848OX","0000000000000000000000000","3","0","","","","01","X","8","0","","",null,null,null,null,null,null,null,null,null,null,null,null,null,null,null,null,null,null,null,null,null,null,null,null,null,null,null,null,null,null,null,null,null,null,null,null,null,null,null,null,null,null,null,null,null,null,null,null,null,null,null,null,null,null,null,null,null,null,null,null,null,null,null,null,null,null,null,null,null,null,null,null,null,null,null,null,null,null,null,null,null,null,null,null,null,null,5,"0000010001","45B2RPXJGDNDOCAJLTHPCMAYP"]
[null,null,null,null,null,null,null,null,null,null,null,null,null,null,null,null,null,null,null,null,null,null,null,null,null,null,null,null,null,null,null,null,null,null,null,null,null,null,null,null,null,null,null,null,null,null,null,null,null,null,null,null,null,null,null,null,null,null,null,null,null,null,null,null,null,null,null,null,null,null,null,null,null,null,null,null,null,null,null,null,null,null,null,null,null,null,null,null,null,null,null,null,null,null,null,null,null,null,null,null,null,null,null,null,null,null,null,null,null,null,4,"ZISJARS01___F00002","0COUNTRY","Country","0000","X","0","0","0","","","","","0000","","",null,null,null,null,5,"45B8PWO9JC617HY64JYXI67EP","0000000000000000000000000","3","0","","","","01","X","9","0","","",null,null,null,null,null,null,null,null,null,null,null,null,null,null,null,null,null,null,null,null,null,null,null,null,null,null,null,null,null,null,null,null,null,null,null,null,null,null,null,null,null,null,null,null,null,null,null,null,null,null,null,null,null,null,null,null,null,null,null,null,null,null,null,null,null,null,null,null,null,null,null,null,null,null,null,null,null,null,null,null,null,null,null,null,null,null,5,"0000010003","ZMJRS_C1"]
[null,null,null,null,null,null,null,null,null,null,null,null,null,null,null,null,null,null,null,null,null,null,null,null,null,null,null,null,null,null,null,null,null,null,null,null,null,null,null,null,null,null,null,null,null,null,null,null,null,null,null,null,null,null,null,null,null,null,null,null,null,null,null,null,null,null,null,null,null,null,null,null,null,null,null,null,null,null,null,null,null,null,null,null,null,null,null,null,null,null,null,null,null,null,null,null,null,null,null,null,null,null,null,null,null,null,null,null,null,null,4,"ZISJARS01___F00002","0REGION","Region","0000","X","0","0","0","","","","","0000","","",null,null,null,null,5,"45B8PWVY2ARQQ4HMAE19S864H","0000000000000000000000000","3","0","","","","01","X","10","0","","",null,null,null,null,null,null,null,null,null,null,null,null,null,null,null,null,null,null,null,null,null,null,null,null,null,null,null,null,null,null,null,null,null,null,null,null,null,null,null,null,null,null,null,null,null,null,null,null,null,null,null,null,null,null,null,null,null,null,null,null,null,null,null,null,null,null,null,null,null,null,null,null,null,null,null,null,null,null,null,null,null,null,null,null,null,null,5,"0000000010",""]
[null,null,null,null,null,null,null,null,null,null,null,null,null,null,null,null,null,null,null,null,null,null,null,null,null,null,null,null,null,null,null,null,null,null,null,null,null,null,null,null,null,null,null,null,null,null,null,null,null,null,null,null,null,null,null,null,null,null,null,null,null,null,null,null,null,null,null,null,null,null,null,null,null,null,null,null,null,null,null,null,null,null,null,null,null,null,null,null,null,null,null,null,null,null,null,null,null,null,null,null,null,null,null,null,null,null,null,null,null,null,4,"ZISJARS01___F00002","ZFRCDVSN","FERC Division Code","0000","X","2","0","0","","","","","0000","","",null,null,null,null,5,"45B8PX3ML9DG8R12G83M2A4U9","0000000000000000000000000","3","0","","","","01","X","11","0","","",null,null,null,null,null,null,null,null,null,null,null,null,null,null,null,null,null,null,null,null,null,null,null,null,null,null,null,null,null,null,null,null,null,null,null,null,null,null,null,null,null,null,null,null,null,null,null,null,null,null,null,null,null,null,null,null,null,null,null,null,null,null,null,null,null,null,null,null,null,null,null,null,null,null,null,null,null,null,null,null,null,null,null,null,null,null,5,"0000000109","2"]
[null,null,null,null,null,null,null,null,null,null,null,null,null,null,null,null,null,null,null,null,null,null,null,null,null,null,null,null,null,null,null,null,null,null,null,null,null,null,null,null,null,null,null,null,null,null,null,null,null,null,null,null,null,null,null,null,null,null,null,null,null,null,null,null,null,null,null,null,null,null,null,null,null,null,null,null,null,null,null,null,null,null,null,null,null,null,null,null,null,null,null,null,null,null,null,null,null,null,null,null,null,null,null,null,null,null,null,null,null,null,4,"ZISJARS01___F00002","ZFRCPFUN","FERC Plant Function","0000","X","2","0","0","","","","","0000","","",null,null,null,null,5,"45B8PXBB47Z5RDKIM25YCC3K1","0000000000000000000000000","3","0","","","","01","X","12","0","","",null,null,null,null,null,null,null,null,null,null,null,null,null,null,null,null,null,null,null,null,null,null,null,null,null,null,null,null,null,null,null,null,null,null,null,null,null,null,null,null,null,null,null,null,null,null,null,null,null,null,null,null,null,null,null,null,null,null,null,null,null,null,null,null,null,null,null,null,null,null,null,null,null,null,null,null,null,null,null,null,null,null,null,null,null,null,5,"0000000113",""]
[null,null,null,null,null,null,null,null,null,null,null,null,null,null,null,null,null,null,null,null,null,null,null,null,null,null,null,null,null,null,null,null,null,null,null,null,null,null,null,null,null,null,null,null,null,null,null,null,null,null,null,null,null,null,null,null,null,null,null,null,null,null,null,null,null,null,null,null,null,null,null,null,null,null,null,null,null,null,null,null,null,null,null,null,null,null,null,null,null,null,null,null,null,null,null,null,null,null,null,null,null,null,null,null,null,null,null,null,null,null,4,"ZISJARS01___F00012","0LOGSYS","Source System","0000","X","1","0","0","","","","","0000","","",null,null,null,null,5,"45B8PXIZN6KVA03YRW8AME29T","0000000000000000000000000","3","0","","","","01","X","15","0","","",null,null,null,null,null,null,null,null,null,null,null,null,null,null,null,null,null,null,null,null,null,null,null,null,null,null,null,null,null,null,null,null,null,null,null,null,null,null,null,null,null,null,null,null,null,null,null,null,null,null,null,null,null,null,null,null,null,null,null,null,null,null,null,null,null,null,null,null,null,null,null,null,null,null,null,null,null,null,null,null,null,null,null,null,null,null,5,"0000009002","45B8PUR4SOQNJV34O1DUZOIYP"]
[null,null,null,null,null,null,null,null,null,null,null,null,null,null,null,null,null,null,null,null,null,null,null,null,null,null,null,null,null,null,null,null,null,null,null,null,null,null,null,null,null,null,null,null,null,null,null,null,null,null,null,null,null,null,null,null,null,null,null,null,null,null,null,null,null,null,null,null,null,null,null,null,null,null,null,null,null,null,null,null,null,null,null,null,null,null,null,null,null,null,null,null,null,null,null,null,null,null,null,null,null,null,null,null,null,null,null,null,null,null,4,"ZISJARS01___F00012","0OBJ_CURR","Object currency","0000","X","0","0","0","","","","","0000","","",null,null,null,null,null,null,null,null,null,null,null,null,null,null,null,null,null,null,null,null,null,null,null,null,null,null,null,null,null,null,null,null,null,null,null,null,null,null,null,null,null,null,null,null,null,null,null,null,null,null,null,null,null,null,null,null,null,null,null,null,null,null,null,null,null,null,null,null,null,null,null,null,null,null,null,null,null,null,null,null,null,null,null,null,null,null,null,null,null,null,null,null,null,null,null,null,null,null,null,null,null,null,null,null,5,"0000000120",""]
[null,null,null,null,null,null,null,null,null,null,null,null,null,null,null,null,null,null,null,null,null,null,null,null,null,null,null,null,null,null,null,null,null,null,null,null,null,null,null,null,null,null,null,null,null,null,null,null,null,null,null,null,null,null,null,null,null,null,null,null,null,null,null,null,null,null,null,null,null,null,null,null,null,null,null,null,null,null,null,null,null,null,null,null,null,null,null,null,null,null,null,null,null,null,null,null,null,null,null,null,null,null,null,null,null,null,null,null,null,null,4,"ZISJARS01___F00012","0RESP_PERS","Person responsible","0000","X","2","0","0","","","","","0000","","",null,null,null,null,null,null,null,null,null,null,null,null,null,null,null,null,null,null,null,null,null,null,null,null,null,null,null,null,null,null,null,null,null,null,null,null,null,null,null,null,null,null,null,null,null,null,null,null,null,null,null,null,null,null,null,null,null,null,null,null,null,null,null,null,null,null,null,null,null,null,null,null,null,null,null,null,null,null,null,null,null,null,null,null,null,null,null,null,null,null,null,null,null,null,null,null,null,null,null,null,null,null,null,null,5,"0000000121",""]
[null,null,null,null,null,null,null,null,null,null,null,null,null,null,null,null,null,null,null,null,null,null,null,null,null,null,null,null,null,null,null,null,null,null,null,null,null,null,null,null,null,null,null,null,null,null,null,null,null,null,null,null,null,null,null,null,null,null,null,null,null,null,null,null,null,null,null,null,null,null,null,null,null,null,null,null,null,null,null,null,null,null,null,null,null,null,null,null,null,null,null,null,null,null,null,null,null,null,null,null,null,null,null,null,null,null,null,null,null,null,4,"ZISJARS01___F00012","0SOURSYSTEM","Source system ID","0000","X","1","0","0","","","","","0000","","",null,null,null,null,null,null,null,null,null,null,null,null,null,null,null,null,null,null,null,null,null,null,null,null,null,null,null,null,null,null,null,null,null,null,null,null,null,null,null,null,null,null,null,null,null,null,null,null,null,null,null,null,null,null,null,null,null,null,null,null,null,null,null,null,null,null,null,null,null,null,null,null,null,null,null,null,null,null,null,null,null,null,null,null,null,null,null,null,null,null,null,null,null,null,null,null,null,null,null,null,null,null,null,null,5,"0000000023",""]
[null,null,null,null,null,null,null,null,null,null,null,null,null,null,null,null,null,null,null,null,null,null,null,null,null,null,null,null,null,null,null,null,null,null,null,null,null,null,null,null,null,null,null,null,null,null,null,null,null,null,null,null,null,null,null,null,null,null,null,null,null,null,null,null,null,null,null,null,null,null,null,null,null,null,null,null,null,null,null,null,null,null,null,null,null,null,null,null,null,null,null,null,null,null,null,null,null,null,null,null,null,null,null,null,null,null,null,null,null,null,4,"ZISJARS01___F00003","0CHANGEDBY","Changed by","0000","X","2","0","0","","","","","0000","","",null,null,null,null,null,null,null,null,null,null,null,null,null,null,null,null,null,null,null,null,null,null,null,null,null,null,null,null,null,null,null,null,null,null,null,null,null,null,null,null,null,null,null,null,null,null,null,null,null,null,null,null,null,null,null,null,null,null,null,null,null,null,null,null,null,null,null,null,null,null,null,null,null,null,null,null,null,null,null,null,null,null,null,null,null,null,null,null,null,null,null,null,null,null,null,null,null,null,null,null,null,null,null,null,5,"0000000022",""]
[null,null,null,null,null,null,null,null,null,null,null,null,null,null,null,null,null,null,null,null,null,null,null,null,null,null,null,null,null,null,null,null,null,null,null,null,null,null,null,null,null,null,null,null,null,null,null,null,null,null,null,null,null,null,null,null,null,null,null,null,null,null,null,null,null,null,null,null,null,null,null,null,null,null,null,null,null,null,null,null,null,null,null,null,null,null,null,null,null,null,null,null,null,null,null,null,null,null,null,null,null,null,null,null,null,null,null,null,null,null,4,"ZISJARS01___F00003","0CH_AT","Last Changed At","0000","X","2","0","0","","","","","0000","","",null,null,null,null,null,null,null,null,null,null,null,null,null,null,null,null,null,null,null,null,null,null,null,null,null,null,null,null,null,null,null,null,null,null,null,null,null,null,null,null,null,null,null,null,null,null,null,null,null,null,null,null,null,null,null,null,null,null,null,null,null,null,null,null,null,null,null,null,null,null,null,null,null,null,null,null,null,null,null,null,null,null,null,null,null,null,null,null,null,null,null,null,null,null,null,null,null,null,null,null,null,null,null,null,5,"0000000021",""]
[null,null,null,null,null,null,null,null,null,null,null,null,null,null,null,null,null,null,null,null,null,null,null,null,null,null,null,null,null,null,null,null,null,null,null,null,null,null,null,null,null,null,null,null,null,null,null,null,null,null,null,null,null,null,null,null,null,null,null,null,null,null,null,null,null,null,null,null,null,null,null,null,null,null,null,null,null,null,null,null,null,null,null,null,null,null,null,null,null,null,null,null,null,null,null,null,null,null,null,null,null,null,null,null,null,null,null,null,null,null,4,"ZISJARS01___F00003","0CH_ON","Changed on","0000","X","2","0","0","","","","","0000","","",null,null,null,null,null,null,null,null,null,null,null,null,null,null,null,null,null,null,null,null,null,null,null,null,null,null,null,null,null,null,null,null,null,null,null,null,null,null,null,null,null,null,null,null,null,null,null,null,null,null,null,null,null,null,null,null,null,null,null,null,null,null,null,null,null,null,null,null,null,null,null,null,null,null,null,null,null,null,null,null,null,null,null,null,null,null,null,null,null,null,null,null,null,null,null,null,null,null,null,null,null,null,null,null,5,"0000000030",""]
[null,null,null,null,null,null,null,null,null,null,null,null,null,null,null,null,null,null,null,null,null,null,null,null,null,null,null,null,null,null,null,null,null,null,null,null,null,null,null,null,null,null,null,null,null,null,null,null,null,null,null,null,null,null,null,null,null,null,null,null,null,null,null,null,null,null,null,null,null,null,null,null,null,null,null,null,null,null,null,null,null,null,null,null,null,null,null,null,null,null,null,null,null,null,null,null,null,null,null,null,null,null,null,null,null,null,null,null,null,null,4,"ZISJARS01___F00003","ZFRCSCTY","FERC 2ndary Acct Typ","0000","X","2","0","0","","","","","0000","","",null,null,null,null,null,null,null,null,null,null,null,null,null,null,null,null,null,null,null,null,null,null,null,null,null,null,null,null,null,null,null,null,null,null,null,null,null,null,null,null,null,null,null,null,null,null,null,null,null,null,null,null,null,null,null,null,null,null,null,null,null,null,null,null,null,null,null,null,null,null,null,null,null,null,null,null,null,null,null,null,null,null,null,null,null,null,null,null,null,null,null,null,null,null,null,null,null,null,null,null,null,null,null,null,5,"0000000040",""]
[null,null,null,null,null,null,null,null,null,null,null,null,null,null,null,null,null,null,null,null,null,null,null,null,null,null,null,null,null,null,null,null,null,null,null,null,null,null,null,null,null,null,null,null,null,null,null,null,null,null,null,null,null,null,null,null,null,null,null,null,null,null,null,null,null,null,null,null,null,null,null,null,null,null,null,null,null,null,null,null,null,null,null,null,null,null,null,null,null,null,null,null,null,null,null,null,null,null,null,null,null,null,null,null,null,null,null,null,null,null,4,"ZISJARS01___F00003","ZJRSDEPR","JARS Depreciation","0000","X","2","0","0","","","","","0000","","",null,null,null,null,null,null,null,null,null,null,null,null,null,null,null,null,null,null,null,null,null,null,null,null,null,null,null,null,null,null,null,null,null,null,null,null,null,null,null,null,null,null,null,null,null,null,null,null,null,null,null,null,null,null,null,null,null,null,null,null,null,null,null,null,null,null,null,null,null,null,null,null,null,null,null,null,null,null,null,null,null,null,null,null,null,null,null,null,null,null,null,null,null,null,null,null,null,null,null,null,null,null,null,null,5,"0000000041",""]
[null,null,null,null,null,null,null,null,null,null,null,null,null,null,null,null,null,null,null,null,null,null,null,null,null,null,null,null,null,null,null,null,null,null,null,null,null,null,null,null,null,null,null,null,null,null,null,null,null,null,null,null,null,null,null,null,null,null,null,null,null,null,null,null,null,null,null,null,null,null,null,null,null,null,null,null,null,null,null,null,null,null,null,null,null,null,null,null,null,null,null,null,null,null,null,null,null,null,null,null,null,null,null,null,null,null,null,null,null,null,4,"ZISJARS01___F00003","ZJRSFRMDT","JARS 2ndary From DT","0000","X","2","0","0","","","","","0000","","",null,null,null,null,null,null,null,null,null,null,null,null,null,null,null,null,null,null,null,null,null,null,null,null,null,null,null,null,null,null,null,null,null,null,null,null,null,null,null,null,null,null,null,null,null,null,null,null,null,null,null,null,null,null,null,null,null,null,null,null,null,null,null,null,null,null,null,null,null,null,null,null,null,null,null,null,null,null,null,null,null,null,null,null,null,null,null,null,null,null,null,null,null,null,null,null,null,null,null,null,null,null,null,null,5,"0000000042","0"]
[null,null,null,null,null,null,null,null,null,null,null,null,null,null,null,null,null,null,null,null,null,null,null,null,null,null,null,null,null,null,null,null,null,null,null,null,null,null,null,null,null,null,null,null,null,null,null,null,null,null,null,null,null,null,null,null,null,null,null,null,null,null,null,null,null,null,null,null,null,null,null,null,null,null,null,null,null,null,null,null,null,null,null,null,null,null,null,null,null,null,null,null,null,null,null,null,null,null,null,null,null,null,null,null,null,null,null,null,null,null,4,"ZISJARS01___F00003","ZJRSSCLVL","JARS 2ndary Acct Lvl","0000","X","2","0","0","","","","","0000","","",null,null,null,null,null,null,null,null,null,null,null,null,null,null,null,null,null,null,null,null,null,null,null,null,null,null,null,null,null,null,null,null,null,null,null,null,null,null,null,null,null,null,null,null,null,null,null,null,null,null,null,null,null,null,null,null,null,null,null,null,null,null,null,null,null,null,null,null,null,null,null,null,null,null,null,null,null,null,null,null,null,null,null,null,null,null,null,null,null,null,null,null,null,null,null,null,null,null,null,null,null,null,null,null,5,"0000000043","0"]
[null,null,null,null,null,null,null,null,null,null,null,null,null,null,null,null,null,null,null,null,null,null,null,null,null,null,null,null,null,null,null,null,null,null,null,null,null,null,null,null,null,null,null,null,null,null,null,null,null,null,null,null,null,null,null,null,null,null,null,null,null,null,null,null,null,null,null,null,null,null,null,null,null,null,null,null,null,null,null,null,null,null,null,null,null,null,null,null,null,null,null,null,null,null,null,null,null,null,null,null,null,null,null,null,null,null,null,null,null,null,4,"ZISJARS01___F00003","ZJRSTODT","JARS 2ndary To DT","0000","X","2","0","0","","","","","0000","","",null,null,null,null,null,null,null,null,null,null,null,null,null,null,null,null,null,null,null,null,null,null,null,null,null,null,null,null,null,null,null,null,null,null,null,null,null,null,null,null,null,null,null,null,null,null,null,null,null,null,null,null,null,null,null,null,null,null,null,null,null,null,null,null,null,null,null,null,null,null,null,null,null,null,null,null,null,null,null,null,null,null,null,null,null,null,null,null,null,null,null,null,null,null,null,null,null,null,null,null,null,null,null,null,5,"0000010002","45B2RMIN1001EBND0GG8VQVI9"]
[null,null,null,null,null,null,null,null,null,null,null,null,null,null,null,null,null,null,null,null,null,null,null,null,null,null,null,null,null,null,null,null,null,null,null,null,null,null,null,null,null,null,null,null,null,null,null,null,null,null,null,null,null,null,null,null,null,null,null,null,null,null,null,null,null,null,null,null,null,null,null,null,null,null,null,null,null,null,null,null,null,null,null,null,null,null,null,null,null,null,null,null,null,null,null,null,null,null,null,null,null,null,null,null,null,null,null,null,null,null,4,"ZISJARS01___F00003","ZOLDFSEC","Old FERC Sec Account","0000","X","3","0","0","","","","","0000","","",null,null,null,null,null,null,null,null,null,null,null,null,null,null,null,null,null,null,null,null,null,null,null,null,null,null,null,null,null,null,null,null,null,null,null,null,null,null,null,null,null,null,null,null,null,null,null,null,null,null,null,null,null,null,null,null,null,null,null,null,null,null,null,null,null,null,null,null,null,null,null,null,null,null,null,null,null,null,null,null,null,null,null,null,null,null,null,null,null,null,null,null,null,null,null,null,null,null,null,null,null,null,null,null,5,"0000000105",""]
[null,null,null,null,null,null,null,null,null,null,null,null,null,null,null,null,null,null,null,null,null,null,null,null,null,null,null,null,null,null,null,null,null,null,null,null,null,null,null,null,null,null,null,null,null,null,null,null,null,null,null,null,null,null,null,null,null,null,null,null,null,null,null,null,null,null,null,null,null,null,null,null,null,null,null,null,null,null,null,null,null,null,null,null,null,null,null,null,null,null,null,null,null,null,null,null,null,null,null,null,null,null,null,null,null,null,null,null,null,null,4,"ZISJARS01___F00003","ZSECDWN","JARS Reportng Struct","0000","X","2","0","0","","","","","0000","","",null,null,null,null,null,null,null,null,null,null,null,null,null,null,null,null,null,null,null,null,null,null,null,null,null,null,null,null,null,null,null,null,null,null,null,null,null,null,null,null,null,null,null,null,null,null,null,null,null,null,null,null,null,null,null,null,null,null,null,null,null,null,null,null,null,null,null,null,null,null,null,null,null,null,null,null,null,null,null,null,null,null,null,null,null,null,null,null,null,null,null,null,null,null,null,null,null,null,null,null,null,null,null,null,5,"0000000106",""]
[null,null,null,null,null,null,null,null,null,null,null,null,null,null,null,null,null,null,null,null,null,null,null,null,null,null,null,null,null,null,null,null,null,null,null,null,null,null,null,null,null,null,null,null,null,null,null,null,null,null,null,null,null,null,null,null,null,null,null,null,null,null,null,null,null,null,null,null,null,null,null,null,null,null,null,null,null,null,null,null,null,null,null,null,null,null,null,null,null,null,null,null,null,null,null,null,null,null,null,null,null,null,null,null,null,null,null,null,null,null,4,"ZISJARS01___F00001","ZFRCBSAIN","FERC Balance Sheet A","0000","X","2","0","0","","","","","0000","","",null,null,null,null,null,null,null,null,null,null,null,null,null,null,null,null,null,null,null,null,null,null,null,null,null,null,null,null,null,null,null,null,null,null,null,null,null,null,null,null,null,null,null,null,null,null,null,null,null,null,null,null,null,null,null,null,null,null,null,null,null,null,null,null,null,null,null,null,null,null,null,null,null,null,null,null,null,null,null,null,null,null,null,null,null,null,null,null,null,null,null,null,null,null,null,null,null,null,null,null,null,null,null,null,5,"0000000112","0"]
[null,null,null,null,null,null,null,null,null,null,null,null,null,null,null,null,null,null,null,null,null,null,null,null,null,null,null,null,null,null,null,null,null,null,null,null,null,null,null,null,null,null,null,null,null,null,null,null,null,null,null,null,null,null,null,null,null,null,null,null,null,null,null,null,null,null,null,null,null,null,null,null,null,null,null,null,null,null,null,null,null,null,null,null,null,null,null,null,null,null,null,null,null,null,null,null,null,null,null,null,null,null,null,null,null,null,null,null,null,null,4,"ZISJARS01___F00001","ZFRCFILEN","FERC SAP to JARS int","0000","X","2","0","0","","","","","0000","","",null,null,null,null,null,null,null,null,null,null,null,null,null,null,null,null,null,null,null,null,null,null,null,null,null,null,null,null,null,null,null,null,null,null,null,null,null,null,null,null,null,null,null,null,null,null,null,null,null,null,null,null,null,null,null,null,null,null,null,null,null,null,null,null,null,null,null,null,null,null,null,null,null,null,null,null,null,null,null,null,null,null,null,null,null,null,null,null,null,null,null,null,null,null,null,null,null,null,null,null,null,null,null,null,5,"0000000200","X"]
[null,null,null,null,null,null,null,null,null,null,null,null,null,null,null,null,null,null,null,null,null,null,null,null,null,null,null,null,null,null,null,null,null,null,null,null,null,null,null,null,null,null,null,null,null,null,null,null,null,null,null,null,null,null,null,null,null,null,null,null,null,null,null,null,null,null,null,null,null,null,null,null,null,null,null,null,null,null,null,null,null,null,null,null,null,null,null,null,null,null,null,null,null,null,null,null,null,null,null,null,null,null,null,null,null,null,null,null,null,null,4,"ZISJARS01___F00001","ZFRCKWHI","FERC KWH in JARS Ind","0000","X","2","0","0","","","","","0000","","",null,null,null,null,null,null,null,null,null,null,null,null,null,null,null,null,null,null,null,null,null,null,null,null,null,null,null,null,null,null,null,null,null,null,null,null,null,null,null,null,null,null,null,null,null,null,null,null,null,null,null,null,null,null,null,null,null,null,null,null,null,null,null,null,null,null,null,null,null,null,null,null,null,null,null,null,null,null,null,null,null,null,null,null,null,null,null,null,null,null,null,null,null,null,null,null,null,null,null,null,null,null,null,null,5,"0000004000","X"]
[null,null,null,null,null,null,null,null,null,null,null,null,null,null,null,null,null,null,null,null,null,null,null,null,null,null,null,null,null,null,null,null,null,null,null,null,null,null,null,null,null,null,null,null,null,null,null,null,null,null,null,null,null,null,null,null,null,null,null,null,null,null,null,null,null,null,null,null,null,null,null,null,null,null,null,null,null,null,null,null,null,null,null,null,null,null,null,null,null,null,null,null,null,null,null,null,null,null,null,null,null,null,null,null,null,null,null,null,null,null,4,"ZISJARS01___F00001","ZFRCLGTX","FERC Account Long Te","0000","X","2","0","0","","","","","0000","","",null,null,null,null,null,null,null,null,null,null,null,null,null,null,null,null,null,null,null,null,null,null,null,null,null,null,null,null,null,null,null,null,null,null,null,null,null,null,null,null,null,null,null,null,null,null,null,null,null,null,null,null,null,null,null,null,null,null,null,null,null,null,null,null,null,null,null,null,null,null,null,null,null,null,null,null,null,null,null,null,null,null,null,null,null,null,null,null,null,null,null,null,null,null,null,null,null,null,null,null,null,null,null,null,5,"0000000020",""]
[null,null,null,null,null,null,null,null,null,null,null,null,null,null,null,null,null,null,null,null,null,null,null,null,null,null,null,null,null,null,null,null,null,null,null,null,null,null,null,null,null,null,null,null,null,null,null,null,null,null,null,null,null,null,null,null,null,null,null,null,null,null,null,null,null,null,null,null,null,null,null,null,null,null,null,null,null,null,null,null,null,null,null,null,null,null,null,null,null,null,null,null,null,null,null,null,null,null,null,null,null,null,null,null,null,null,null,null,null,null,4,"ZISJARS01___F00001","ZFRCLOC","FERC Location Code","0000","X","1","0","0","","","","","0000","","",null,null,null,null,null,null,null,null,null,null,null,null,null,null,null,null,null,null,null,null,null,null,null,null,null,null,null,null,null,null,null,null,null,null,null,null,null,null,null,null,null,null,null,null,null,null,null,null,null,null,null,null,null,null,null,null,null,null,null,null,null,null,null,null,null,null,null,null,null,null,null,null,null,null,null,null,null,null,null,null,null,null,null,null,null,null,null,null,null,null,null,null,null,null,null,null,null,null,null,null,null,null,null,null,5,"0000009001","JARS - Jurisdiction by FERC Account (Period Balance)"]
[null,null,null,null,null,null,null,null,null,null,null,null,null,null,null,null,null,null,null,null,null,null,null,null,null,null,null,null,null,null,null,null,null,null,null,null,null,null,null,null,null,null,null,null,null,null,null,null,null,null,null,null,null,null,null,null,null,null,null,null,null,null,null,null,null,null,null,null,null,null,null,null,null,null,null,null,null,null,null,null,null,null,null,null,null,null,null,null,null,null,null,null,null,null,null,null,null,null,null,null,null,null,null,null,null,null,null,null,null,null,4,"ZISJARS01___F00001","ZFRCSECD","FERC Secondary Accou","0000","X","2","0","0","","","","","0000","","",null,null,null,null,null,null,null,null,null,null,null,null,null,null,null,null,null,null,null,null,null,null,null,null,null,null,null,null,null,null,null,null,null,null,null,null,null,null,null,null,null,null,null,null,null,null,null,null,null,null,null,null,null,null,null,null,null,null,null,null,null,null,null,null,null,null,null,null,null,null,null,null,null,null,null,null,null,null,null,null,null,null,null,null,null,null,null,null,null,null,null,null,null,null,null,null,null,null,null,null,null,null,null,null,5,"0000000114","1"]
[null,null,null,null,null,null,null,null,null,null,null,null,null,null,null,null,null,null,null,null,null,null,null,null,null,null,null,null,null,null,null,null,null,null,null,null,null,null,null,null,null,null,null,null,null,null,null,null,null,null,null,null,null,null,null,null,null,null,null,null,null,null,null,null,null,null,null,null,null,null,null,null,null,null,null,null,null,null,null,null,null,null,null,null,null,null,null,null,null,null,null,null,null,null,null,null,null,null,null,null,null,null,null,null,null,null,null,null,null,null,4,"ZISJARS01___F00001","ZFRCSHTX","FERC Account Short T","0000","X","2","0","0","","","","","0000","",""]
[null,null,null,null,null,null,null,null,null,null,null,null,null,null,null,null,null,null,null,null,null,null,null,null,null,null,null,null,null,null,null,null,null,null,null,null,null,null,null,null,null,null,null,null,null,null,null,null,null,null,null,null,null,null,null,null,null,null,null,null,null,null,null,null,null,null,null,null,null,null,null,null,null,null,null,null,null,null,null,null,null,null,null,null,null,null,null,null,null,null,null,null,null,null,null,null,null,null,null,null,null,null,null,null,null,null,null,null,null,null,4,"ZISJARS01___F00011","0RETROPOST","Post to Prev. Allwd","0001","X","2","0","0","","","","","0000","",""]
[null,null,null,null,null,null,null,null,null,null,null,null,null,null,null,null,null,null,null,null,null,null,null,null,null,null,null,null,null,null,null,null,null,null,null,null,null,null,null,null,null,null,null,null,null,null,null,null,null,null,null,null,null,null,null,null,null,null,null,null,null,null,null,null,null,null,null,null,null,null,null,null,null,null,null,null,null,null,null,null,null,null,null,null,null,null,null,null,null,null,null,null,null,null,null,null,null,null,null,null,null,null,null,null,null,null,null,null,null,null,4,"ZISJARS01___F00011","0OFYEAR","Open Fiscal Year","0002","X","2","0","0","","","","","0000","",""]
[null,null,null,null,null,null,null,null,null,null,null,null,null,null,null,null,null,null,null,null,null,null,null,null,null,null,null,null,null,null,null,null,null,null,null,null,null,null,null,null,null,null,null,null,null,null,null,null,null,null,null,null,null,null,null,null,null,null,null,null,null,null,null,null,null,null,null,null,null,null,null,null,null,null,null,null,null,null,null,null,null,null,null,null,null,null,null,null,null,null,null,null,null,null,null,null,null,null,null,null,null,null,null,null,null,null,null,null,null,null,4,"ZISJARS01___F00011","0OFPER3","Open Posting Period","0003","X","2","0","0","","","","","0000","",""]
[null,null,null,null,null,null,null,null,null,null,null,null,null,null,null,null,null,null,null,null,null,null,null,null,null,null,null,null,null,null,null,null,null,null,null,null,null,null,null,null,null,null,null,null,null,null,null,null,null,null,null,null,null,null,null,null,null,null,null,null,null,null,null,null,null,null,null,null,null,null,null,null,null,null,null,null,null,null,null,null,null,null,null,null,null,null,null,null,null,null,null,null,null,null,null,null,null,null,null,null,null,null,null,null,null,null,null,null,null,null,4,"ZISJARS01___F00011","0OFPER","Open FY Period","0004","X","1","0","0","","","","","0000","",""]
[null,null,null,null,null,null,null,null,null,null,null,null,null,null,null,null,null,null,null,null,null,null,null,null,null,null,null,null,null,null,null,null,null,null,null,null,null,null,null,null,null,null,null,null,null,null,null,null,null,null,null,null,null,null,null,null,null,null,null,null,null,null,null,null,null,null,null,null,null,null,null,null,null,null,null,null,null,null,null,null,null,null,null,null,null,null,null,null,null,null,null,null,null,null,null,null,null,null,null,null,null,null,null,null,null,null,null,null,null,null,4,"ZISJARS01___F00012","0SEGMENT","Segment","0005","X","1","0","0","","","","","0000","",""]
[null,null,null,null,null,null,null,null,null,null,null,null,null,null,null,null,null,null,null,null,null,null,null,null,null,null,null,null,null,null,null,null,null,null,null,null,null,null,null,null,null,null,null,null,null,null,null,null,null,null,null,null,null,null,null,null,null,null,null,null,null,null,null,null,null,null,null,null,null,null,null,null,null,null,null,null,null,null,null,null,null,null,null,null,null,null,null,null,null,null,null,null,null,null,null,null,null,null,null,null,null,null,null,null,null,null,null,null,null,null,4,"ZISJARS01___F00012","0RESP_USER","Person Responsible","0006","X","2","0","0","","","","","0000","",""]
[null,null,null,null,null,null,null,null,null,null,null,null,null,null,null,null,null,null,null,null,null,null,null,null,null,null,null,null,null,null,null,null,null,null,null,null,null,null,null,null,null,null,null,null,null,null,null,null,null,null,null,null,null,null,null,null,null,null,null,null,null,null,null,null,null,null,null,null,null,null,null,null,null,null,null,null,null,null,null,null,null,null,null,null,null,null,null,null,null,null,null,null,null,null,null,null,null,null,null,null,null,null,null,null,null,null,null,null,null,null,4,"ZISJARS01___F00012","0PCA_HIEND","Hierarchy Area","0007","X","2","0","0","","","","","0000","",""]
[null,null,null,null,null,null,null,null,null,null,null,null,null,null,null,null,null,null,null,null,null,null,null,null,null,null,null,null,null,null,null,null,null,null,null,null,null,null,null,null,null,null,null,null,null,null,null,null,null,null,null,null,null,null,null,null,null,null,null,null,null,null,null,null,null,null,null,null,null,null,null,null,null,null,null,null,null,null,null,null,null,null,null,null,null,null,null,null,null,null,null,null,null,null,null,null,null,null,null,null,null,null,null,null,null,null,null,null,null,null,4,"ZISJARS01___F00012","0PCA_DEPART","Department","0008","X","2","0","0","","","","","0000","",""]
[null,null,null,null,null,null,null,null,null,null,null,null,null,null,null,null,null,null,null,null,null,null,null,null,null,null,null,null,null,null,null,null,null,null,null,null,null,null,null,null,null,null,null,null,null,null,null,null,null,null,null,null,null,null,null,null,null,null,null,null,null,null,null,null,null,null,null,null,null,null,null,null,null,null,null,null,null,null,null,null,null,null,null,null,null,null,null,null,null,null,null,null,null,null,null,null,null,null,null,null,null,null,null,null,null,null,null,null,null,null,4,"ZISJARS01___F00014","0CALMONTH2","Calendar month","0009","X","2","0","0","","","","","0000","",""]
[null,null,null,null,null,null,null,null,null,null,null,null,null,null,null,null,null,null,null,null,null,null,null,null,null,null,null,null,null,null,null,null,null,null,null,null,null,null,null,null,null,null,null,null,null,null,null,null,null,null,null,null,null,null,null,null,null,null,null,null,null,null,null,null,null,null,null,null,null,null,null,null,null,null,null,null,null,null,null,null,null,null,null,null,null,null,null,null,null,null,null,null,null,null,null,null,null,null,null,null,null,null,null,null,null,null,null,null,null,null,4,"ZISJARS01___F00014","0CALYEAR","Calendar year","0010","X","2","0","0","","","","","0000","",""]
[null,null,null,null,null,null,null,null,null,null,null,null,null,null,null,null,null,null,null,null,null,null,null,null,null,null,null,null,null,null,null,null,null,null,null,null,null,null,null,null,null,null,null,null,null,null,null,null,null,null,null,null,null,null,null,null,null,null,null,null,null,null,null,null,null,null,null,null,null,null,null,null,null,null,null,null,null,null,null,null,null,null,null,null,null,null,null,null,null,null,null,null,null,null,null,null,null,null,null,null,null,null,null,null,null,null,null,null,null,null,4,"ZISJARS01___F00014","0DATEFROM","Valid From","0011","X","2","0","0","","","","","0000","",""]
[null,null,null,null,null,null,null,null,null,null,null,null,null,null,null,null,null,null,null,null,null,null,null,null,null,null,null,null,null,null,null,null,null,null,null,null,null,null,null,null,null,null,null,null,null,null,null,null,null,null,null,null,null,null,null,null,null,null,null,null,null,null,null,null,null,null,null,null,null,null,null,null,null,null,null,null,null,null,null,null,null,null,null,null,null,null,null,null,null,null,null,null,null,null,null,null,null,null,null,null,null,null,null,null,null,null,null,null,null,null,4,"ZISJARS01___F00014","0DATETO","Valid To","0012","X","2","0","0","","","","","0000","",""]
[null,null,null,null,null,null,null,null,null,null,null,null,null,null,null,null,null,null,null,null,null,null,null,null,null,null,null,null,null,null,null,null,null,null,null,null,null,null,null,null,null,null,null,null,null,null,null,null,null,null,null,null,null,null,null,null,null,null,null,null,null,null,null,null,null,null,null,null,null,null,null,null,null,null,null,null,null,null,null,null,null,null,null,null,null,null,null,null,null,null,null,null,null,null,null,null,null,null,null,null,null,null,null,null,null,null,null,null,null,null,4,"ZISJARS01___F00014","0NUMDAY","Number of Days","0013","X","2","0","0","","","","","0000","",""]
[null,null,null,null,null,null,null,null,null,null,null,null,null,null,null,null,null,null,null,null,null,null,null,null,null,null,null,null,null,null,null,null,null,null,null,null,null,null,null,null,null,null,null,null,null,null,null,null,null,null,null,null,null,null,null,null,null,null,null,null,null,null,null,null,null,null,null,null,null,null,null,null,null,null,null,null,null,null,null,null,null,null,null,null,null,null,null,null,null,null,null,null,null,null,null,null,null,null,null,null,null,null,null,null,null,null,null,null,null,null,4,"ZISJARS01___F00014","0NUMWDAY","Number of Workdays","0014","X","2","0","0","","","","","0000","",""]
[null,null,null,null,null,null,null,null,null,null,null,null,null,null,null,null,null,null,null,null,null,null,null,null,null,null,null,null,null,null,null,null,null,null,null,null,null,null,null,null,null,null,null,null,null,null,null,null,null,null,null,null,null,null,null,null,null,null,null,null,null,null,null,null,null,null,null,null,null,null,null,null,null,null,null,null,null,null,null,null,null,null,null,null,null,null,null,null,null,null,null,null,null,null,null,null,null,null,null,null,null,null,null,null,null,null,null,null,null,null,5,"ZISJARS01___F00006","0BAL_FLAG","Balance Sheet Acct","0000","X","2","0","0","","","","","0000","",""]
[null,null,null,null,null,null,null,null,null,null,null,null,null,null,null,null,null,null,null,null,null,null,null,null,null,null,null,null,null,null,null,null,null,null,null,null,null,null,null,null,null,null,null,null,null,null,null,null,null,null,null,null,null,null,null,null,null,null,null,null,null,null,null,null,null,null,null,null,null,null,null,null,null,null,null,null,null,null,null,null,null,null,null,null,null,null,null,null,null,null,null,null,null,null,null,null,null,null,null,null,null,null,null,null,null,null,null,null,null,null,5,"ZISJARS01___F00006","0CSTEL_FLAG","Ind.: Cost Element","0000","X","2","0","0","","","","","0000","",""]
[null,null,null,null,null,null,null,null,null,null,null,null,null,null,null,null,null,null,null,null,null,null,null,null,null,null,null,null,null,null,null,null,null,null,null,null,null,null,null,null,null,null,null,null,null,null,null,null,null,null,null,null,null,null,null,null,null,null,null,null,null,null,null,null,null,null,null,null,null,null,null,null,null,null,null,null,null,null,null,null,null,null,null,null,null,null,null,null,null,null,null,null,null,null,null,null,null,null,null,null,null,null,null,null,null,null,null,null,null,null,5,"ZISJARS01___F00006","0GLACC_FLAG","G/L account","0000","X","2","0","0","","","","","0000","",""]
[null,null,null,null,null,null,null,null,null,null,null,null,null,null,null,null,null,null,null,null,null,null,null,null,null,null,null,null,null,null,null,null,null,null,null,null,null,null,null,null,null,null,null,null,null,null,null,null,null,null,null,null,null,null,null,null,null,null,null,null,null,null,null,null,null,null,null,null,null,null,null,null,null,null,null,null,null,null,null,null,null,null,null,null,null,null,null,null,null,null,null,null,null,null,null,null,null,null,null,null,null,null,null,null,null,null,null,null,null,null,5,"ZISJARS01___F00006","0LOGSYS","Source System","0000","X","1","0","0","","","","","0000","",""]
[null,null,null,null,null,null,null,null,null,null,null,null,null,null,null,null,null,null,null,null,null,null,null,null,null,null,null,null,null,null,null,null,null,null,null,null,null,null,null,null,null,null,null,null,null,null,null,null,null,null,null,null,null,null,null,null,null,null,null,null,null,null,null,null,null,null,null,null,null,null,null,null,null,null,null,null,null,null,null,null,null,null,null,null,null,null,null,null,null,null,null,null,null,null,null,null,null,null,null,null,null,null,null,null,null,null,null,null,null,null,5,"ZISJARS01___F00006","0SEM_POSIT","Planning Item","0000","X","1","0","0","","","","","0000","",""]
[null,null,null,null,null,null,null,null,null,null,null,null,null,null,null,null,null,null,null,null,null,null,null,null,null,null,null,null,null,null,null,null,null,null,null,null,null,null,null,null,null,null,null,null,null,null,null,null,null,null,null,null,null,null,null,null,null,null,null,null,null,null,null,null,null,null,null,null,null,null,null,null,null,null,null,null,null,null,null,null,null,null,null,null,null,null,null,null,null,null,null,null,null,null,null,null,null,null,null,null,null,null,null,null,null,null,null,null,null,null,5,"ZISJARS01___F00029","ZJRSRBCD","JARS Rate Base Code","0000","X","2","0","0","","","","","0000","",""]
[null,null,null,null,null,null,null,null,null,null,null,null,null,null,null,null,null,null,null,null,null,null,null,null,null,null,null,null,null,null,null,null,null,null,null,null,null,null,null,null,null,null,null,null,null,null,null,null,null,null,null,null,null,null,null,null,null,null,null,null,null,null,null,null,null,null,null,null,null,null,null,null,null,null,null,null,null,null,null,null,null,null,null,null,null,null,null,null,null,null,null,null,null,null,null,null,null,null,null,null,null,null,null,null,null,null,null,null,null,null,5,"ZISJARS01___F00011","0CHRT_ACCTS","Chart of accounts","0000","X","0","0","0","","","","","0000","",""]
[null,null,null,null,null,null,null,null,null,null,null,null,null,null,null,null,null,null,null,null,null,null,null,null,null,null,null,null,null,null,null,null,null,null,null,null,null,null,null,null,null,null,null,null,null,null,null,null,null,null,null,null,null,null,null,null,null,null,null,null,null,null,null,null,null,null,null,null,null,null,null,null,null,null,null,null,null,null,null,null,null,null,null,null,null,null,null,null,null,null,null,null,null,null,null,null,null,null,null,null,null,null,null,null,null,null,null,null,null,null,5,"ZISJARS01___F00011","0COMPANY","Company","0000","X","0","0","0","","","","","0000","",""]
[null,null,null,null,null,null,null,null,null,null,null,null,null,null,null,null,null,null,null,null,null,null,null,null,null,null,null,null,null,null,null,null,null,null,null,null,null,null,null,null,null,null,null,null,null,null,null,null,null,null,null,null,null,null,null,null,null,null,null,null,null,null,null,null,null,null,null,null,null,null,null,null,null,null,null,null,null,null,null,null,null,null,null,null,null,null,null,null,null,null,null,null,null,null,null,null,null,null,null,null,null,null,null,null,null,null,null,null,null,null,5,"ZISJARS01___F00011","0COUNTRY","Country","0000","X","0","0","0","","","","","0000","",""]
[null,null,null,null,null,null,null,null,null,null,null,null,null,null,null,null,null,null,null,null,null,null,null,null,null,null,null,null,null,null,null,null,null,null,null,null,null,null,null,null,null,null,null,null,null,null,null,null,null,null,null,null,null,null,null,null,null,null,null,null,null,null,null,null,null,null,null,null,null,null,null,null,null,null,null,null,null,null,null,null,null,null,null,null,null,null,null,null,null,null,null,null,null,null,null,null,null,null,null,null,null,null,null,null,null,null,null,null,null,null,5,"ZISJARS01___F00011","0CURRENCY","Currency","0000","X","0","0","0","","","","","0000","",""]
[null,null,null,null,null,null,null,null,null,null,null,null,null,null,null,null,null,null,null,null,null,null,null,null,null,null,null,null,null,null,null,null,null,null,null,null,null,null,null,null,null,null,null,null,null,null,null,null,null,null,null,null,null,null,null,null,null,null,null,null,null,null,null,null,null,null,null,null,null,null,null,null,null,null,null,null,null,null,null,null,null,null,null,null,null,null,null,null,null,null,null,null,null,null,null,null,null,null,null,null,null,null,null,null,null,null,null,null,null,null,5,"ZISJARS01___F00011","0C_CTR_AREA","Credit Control Area","0000","X","0","0","0","","","","","0000","",""]
[null,null,null,null,null,null,null,null,null,null,null,null,null,null,null,null,null,null,null,null,null,null,null,null,null,null,null,null,null,null,null,null,null,null,null,null,null,null,null,null,null,null,null,null,null,null,null,null,null,null,null,null,null,null,null,null,null,null,null,null,null,null,null,null,null,null,null,null,null,null,null,null,null,null,null,null,null,null,null,null,null,null,null,null,null,null,null,null,null,null,null,null,null,null,null,null,null,null,null,null,null,null,null,null,null,null,null,null,null,null,5,"ZISJARS01___F00011","0FISCVARNT","Fiscal Year Variant","0000","X","2","0","0","","","","","0000","",""]
[null,null,null,null,null,null,null,null,null,null,null,null,null,null,null,null,null,null,null,null,null,null,null,null,null,null,null,null,null,null,null,null,null,null,null,null,null,null,null,null,null,null,null,null,null,null,null,null,null,null,null,null,null,null,null,null,null,null,null,null,null,null,null,null,null,null,null,null,null,null,null,null,null,null,null,null,null,null,null,null,null,null,null,null,null,null,null,null,null,null,null,null,null,null,null,null,null,null,null,null,null,null,null,null,null,null,null,null,null,null,5,"ZISJARS01___F00011","0LOGSYS","Source System","0000","X","1","0","0","","","","","0000","",""]
[null,null,null,null,null,null,null,null,null,null,null,null,null,null,null,null,null,null,null,null,null,null,null,null,null,null,null,null,null,null,null,null,null,null,null,null,null,null,null,null,null,null,null,null,null,null,null,null,null,null,null,null,null,null,null,null,null,null,null,null,null,null,null,null,null,null,null,null,null,null,null,null,null,null,null,null,null,null,null,null,null,null,null,null,null,null,null,null,null,null,null,null,null,null,null,null,null,null,null,null,null,null,null,null,null,null,null,null,null,null,5,"ZISJARS01___F00011","0SOURSYSTEM","Source system ID","0000","X","1","0","0","","","","","0000","",""]
[null,null,null,null,null,null,null,null,null,null,null,null,null,null,null,null,null,null,null,null,null,null,null,null,null,null,null,null,null,null,null,null,null,null,null,null,null,null,null,null,null,null,null,null,null,null,null,null,null,null,null,null,null,null,null,null,null,null,null,null,null,null,null,null,null,null,null,null,null,null,null,null,null,null,null,null,null,null,null,null,null,null,null,null,null,null,null,null,null,null,null,null,null,null,null,null,null,null,null,null,null,null,null,null,null,null,null,null,null,null,5,"ZISJARS01___F00002","0CHANGEDBY","Changed by","0000","X","2","0","0","","","","","0000","",""]
[null,null,null,null,null,null,null,null,null,null,null,null,null,null,null,null,null,null,null,null,null,null,null,null,null,null,null,null,null,null,null,null,null,null,null,null,null,null,null,null,null,null,null,null,null,null,null,null,null,null,null,null,null,null,null,null,null,null,null,null,null,null,null,null,null,null,null,null,null,null,null,null,null,null,null,null,null,null,null,null,null,null,null,null,null,null,null,null,null,null,null,null,null,null,null,null,null,null,null,null,null,null,null,null,null,null,null,null,null,null,5,"ZISJARS01___F00002","0CH_AT","Last Changed At","0000","X","2","0","0","","","","","0000","",""]
[null,null,null,null,null,null,null,null,null,null,null,null,null,null,null,null,null,null,null,null,null,null,null,null,null,null,null,null,null,null,null,null,null,null,null,null,null,null,null,null,null,null,null,null,null,null,null,null,null,null,null,null,null,null,null,null,null,null,null,null,null,null,null,null,null,null,null,null,null,null,null,null,null,null,null,null,null,null,null,null,null,null,null,null,null,null,null,null,null,null,null,null,null,null,null,null,null,null,null,null,null,null,null,null,null,null,null,null,null,null,5,"ZISJARS01___F00002","0CH_ON","Changed on","0000","X","2","0","0","","","","","0000","",""]
[null,null,null,null,null,null,null,null,null,null,null,null,null,null,null,null,null,null,null,null,null,null,null,null,null,null,null,null,null,null,null,null,null,null,null,null,null,null,null,null,null,null,null,null,null,null,null,null,null,null,null,null,null,null,null,null,null,null,null,null,null,null,null,null,null,null,null,null,null,null,null,null,null,null,null,null,null,null,null,null,null,null,null,null,null,null,null,null,null,null,null,null,null,null,null,null,null,null,null,null,null,null,null,null,null,null,null,null,null,null,5,"ZISJARS01___F00002","0COUNTRY","Country","0000","X","0","0","0","","","","","0000","",""]
[null,null,null,null,null,null,null,null,null,null,null,null,null,null,null,null,null,null,null,null,null,null,null,null,null,null,null,null,null,null,null,null,null,null,null,null,null,null,null,null,null,null,null,null,null,null,null,null,null,null,null,null,null,null,null,null,null,null,null,null,null,null,null,null,null,null,null,null,null,null,null,null,null,null,null,null,null,null,null,null,null,null,null,null,null,null,null,null,null,null,null,null,null,null,null,null,null,null,null,null,null,null,null,null,null,null,null,null,null,null,5,"ZISJARS01___F00002","0REGION","Region","0000","X","0","0","0","","","","","0000","",""]
[null,null,null,null,null,null,null,null,null,null,null,null,null,null,null,null,null,null,null,null,null,null,null,null,null,null,null,null,null,null,null,null,null,null,null,null,null,null,null,null,null,null,null,null,null,null,null,null,null,null,null,null,null,null,null,null,null,null,null,null,null,null,null,null,null,null,null,null,null,null,null,null,null,null,null,null,null,null,null,null,null,null,null,null,null,null,null,null,null,null,null,null,null,null,null,null,null,null,null,null,null,null,null,null,null,null,null,null,null,null,5,"ZISJARS01___F00002","ZFRCDVSN","FERC Division Code","0000","X","2","0","0","","","","","0000","",""]
[null,null,null,null,null,null,null,null,null,null,null,null,null,null,null,null,null,null,null,null,null,null,null,null,null,null,null,null,null,null,null,null,null,null,null,null,null,null,null,null,null,null,null,null,null,null,null,null,null,null,null,null,null,null,null,null,null,null,null,null,null,null,null,null,null,null,null,null,null,null,null,null,null,null,null,null,null,null,null,null,null,null,null,null,null,null,null,null,null,null,null,null,null,null,null,null,null,null,null,null,null,null,null,null,null,null,null,null,null,null,5,"ZISJARS01___F00002","ZFRCPFUN","FERC Plant Function","0000","X","2","0","0","","","","","0000","",""]
[null,null,null,null,null,null,null,null,null,null,null,null,null,null,null,null,null,null,null,null,null,null,null,null,null,null,null,null,null,null,null,null,null,null,null,null,null,null,null,null,null,null,null,null,null,null,null,null,null,null,null,null,null,null,null,null,null,null,null,null,null,null,null,null,null,null,null,null,null,null,null,null,null,null,null,null,null,null,null,null,null,null,null,null,null,null,null,null,null,null,null,null,null,null,null,null,null,null,null,null,null,null,null,null,null,null,null,null,null,null,5,"ZISJARS01___F00012","0LOGSYS","Source System","0000","X","1","0","0","","","","","0000","",""]
[null,null,null,null,null,null,null,null,null,null,null,null,null,null,null,null,null,null,null,null,null,null,null,null,null,null,null,null,null,null,null,null,null,null,null,null,null,null,null,null,null,null,null,null,null,null,null,null,null,null,null,null,null,null,null,null,null,null,null,null,null,null,null,null,null,null,null,null,null,null,null,null,null,null,null,null,null,null,null,null,null,null,null,null,null,null,null,null,null,null,null,null,null,null,null,null,null,null,null,null,null,null,null,null,null,null,null,null,null,null,5,"ZISJARS01___F00012","0OBJ_CURR","Object currency","0000","X","0","0","0","","","","","0000","",""]
[null,null,null,null,null,null,null,null,null,null,null,null,null,null,null,null,null,null,null,null,null,null,null,null,null,null,null,null,null,null,null,null,null,null,null,null,null,null,null,null,null,null,null,null,null,null,null,null,null,null,null,null,null,null,null,null,null,null,null,null,null,null,null,null,null,null,null,null,null,null,null,null,null,null,null,null,null,null,null,null,null,null,null,null,null,null,null,null,null,null,null,null,null,null,null,null,null,null,null,null,null,null,null,null,null,null,null,null,null,null,5,"ZISJARS01___F00012","0RESP_PERS","Person responsible","0000","X","2","0","0","","","","","0000","",""]
[null,null,null,null,null,null,null,null,null,null,null,null,null,null,null,null,null,null,null,null,null,null,null,null,null,null,null,null,null,null,null,null,null,null,null,null,null,null,null,null,null,null,null,null,null,null,null,null,null,null,null,null,null,null,null,null,null,null,null,null,null,null,null,null,null,null,null,null,null,null,null,null,null,null,null,null,null,null,null,null,null,null,null,null,null,null,null,null,null,null,null,null,null,null,null,null,null,null,null,null,null,null,null,null,null,null,null,null,null,null,5,"ZISJARS01___F00012","0SOURSYSTEM","Source system ID","0000","X","1","0","0","","","","","0000","",""]
[null,null,null,null,null,null,null,null,null,null,null,null,null,null,null,null,null,null,null,null,null,null,null,null,null,null,null,null,null,null,null,null,null,null,null,null,null,null,null,null,null,null,null,null,null,null,null,null,null,null,null,null,null,null,null,null,null,null,null,null,null,null,null,null,null,null,null,null,null,null,null,null,null,null,null,null,null,null,null,null,null,null,null,null,null,null,null,null,null,null,null,null,null,null,null,null,null,null,null,null,null,null,null,null,null,null,null,null,null,null,5,"ZISJARS01___F00003","0CHANGEDBY","Changed by","0000","X","2","0","0","","","","","0000","",""]
[null,null,null,null,null,null,null,null,null,null,null,null,null,null,null,null,null,null,null,null,null,null,null,null,null,null,null,null,null,null,null,null,null,null,null,null,null,null,null,null,null,null,null,null,null,null,null,null,null,null,null,null,null,null,null,null,null,null,null,null,null,null,null,null,null,null,null,null,null,null,null,null,null,null,null,null,null,null,null,null,null,null,null,null,null,null,null,null,null,null,null,null,null,null,null,null,null,null,null,null,null,null,null,null,null,null,null,null,null,null,5,"ZISJARS01___F00003","0CH_AT","Last Changed At","0000","X","2","0","0","","","","","0000","",""]
[null,null,null,null,null,null,null,null,null,null,null,null,null,null,null,null,null,null,null,null,null,null,null,null,null,null,null,null,null,null,null,null,null,null,null,null,null,null,null,null,null,null,null,null,null,null,null,null,null,null,null,null,null,null,null,null,null,null,null,null,null,null,null,null,null,null,null,null,null,null,null,null,null,null,null,null,null,null,null,null,null,null,null,null,null,null,null,null,null,null,null,null,null,null,null,null,null,null,null,null,null,null,null,null,null,null,null,null,null,null,5,"ZISJARS01___F00003","0CH_ON","Changed on","0000","X","2","0","0","","","","","0000","",""]
[null,null,null,null,null,null,null,null,null,null,null,null,null,null,null,null,null,null,null,null,null,null,null,null,null,null,null,null,null,null,null,null,null,null,null,null,null,null,null,null,null,null,null,null,null,null,null,null,null,null,null,null,null,null,null,null,null,null,null,null,null,null,null,null,null,null,null,null,null,null,null,null,null,null,null,null,null,null,null,null,null,null,null,null,null,null,null,null,null,null,null,null,null,null,null,null,null,null,null,null,null,null,null,null,null,null,null,null,null,null,5,"ZISJARS01___F00003","ZFRCSCTY","FERC 2ndary Acct Typ","0000","X","2","0","0","","","","","0000","",""]
[null,null,null,null,null,null,null,null,null,null,null,null,null,null,null,null,null,null,null,null,null,null,null,null,null,null,null,null,null,null,null,null,null,null,null,null,null,null,null,null,null,null,null,null,null,null,null,null,null,null,null,null,null,null,null,null,null,null,null,null,null,null,null,null,null,null,null,null,null,null,null,null,null,null,null,null,null,null,null,null,null,null,null,null,null,null,null,null,null,null,null,null,null,null,null,null,null,null,null,null,null,null,null,null,null,null,null,null,null,null,5,"ZISJARS01___F00003","ZJRSDEPR","JARS Depreciation","0000","X","2","0","0","","","","","0000","",""]
[null,null,null,null,null,null,null,null,null,null,null,null,null,null,null,null,null,null,null,null,null,null,null,null,null,null,null,null,null,null,null,null,null,null,null,null,null,null,null,null,null,null,null,null,null,null,null,null,null,null,null,null,null,null,null,null,null,null,null,null,null,null,null,null,null,null,null,null,null,null,null,null,null,null,null,null,null,null,null,null,null,null,null,null,null,null,null,null,null,null,null,null,null,null,null,null,null,null,null,null,null,null,null,null,null,null,null,null,null,null,5,"ZISJARS01___F00003","ZJRSFRMDT","JARS 2ndary From DT","0000","X","2","0","0","","","","","0000","",""]
[null,null,null,null,null,null,null,null,null,null,null,null,null,null,null,null,null,null,null,null,null,null,null,null,null,null,null,null,null,null,null,null,null,null,null,null,null,null,null,null,null,null,null,null,null,null,null,null,null,null,null,null,null,null,null,null,null,null,null,null,null,null,null,null,null,null,null,null,null,null,null,null,null,null,null,null,null,null,null,null,null,null,null,null,null,null,null,null,null,null,null,null,null,null,null,null,null,null,null,null,null,null,null,null,null,null,null,null,null,null,5,"ZISJARS01___F00003","ZJRSSCLVL","JARS 2ndary Acct Lvl","0000","X","2","0","0","","","","","0000","",""]
[null,null,null,null,null,null,null,null,null,null,null,null,null,null,null,null,null,null,null,null,null,null,null,null,null,null,null,null,null,null,null,null,null,null,null,null,null,null,null,null,null,null,null,null,null,null,null,null,null,null,null,null,null,null,null,null,null,null,null,null,null,null,null,null,null,null,null,null,null,null,null,null,null,null,null,null,null,null,null,null,null,null,null,null,null,null,null,null,null,null,null,null,null,null,null,null,null,null,null,null,null,null,null,null,null,null,null,null,null,null,5,"ZISJARS01___F00003","ZJRSTODT","JARS 2ndary To DT","0000","X","2","0","0","","","","","0000","",""]
[null,null,null,null,null,null,null,null,null,null,null,null,null,null,null,null,null,null,null,null,null,null,null,null,null,null,null,null,null,null,null,null,null,null,null,null,null,null,null,null,null,null,null,null,null,null,null,null,null,null,null,null,null,null,null,null,null,null,null,null,null,null,null,null,null,null,null,null,null,null,null,null,null,null,null,null,null,null,null,null,null,null,null,null,null,null,null,null,null,null,null,null,null,null,null,null,null,null,null,null,null,null,null,null,null,null,null,null,null,null,5,"ZISJARS01___F00003","ZOLDFSEC","Old FERC Sec Account","0000","X","3","0","0","","","","","0000","",""]
[null,null,null,null,null,null,null,null,null,null,null,null,null,null,null,null,null,null,null,null,null,null,null,null,null,null,null,null,null,null,null,null,null,null,null,null,null,null,null,null,null,null,null,null,null,null,null,null,null,null,null,null,null,null,null,null,null,null,null,null,null,null,null,null,null,null,null,null,null,null,null,null,null,null,null,null,null,null,null,null,null,null,null,null,null,null,null,null,null,null,null,null,null,null,null,null,null,null,null,null,null,null,null,null,null,null,null,null,null,null,5,"ZISJARS01___F00003","ZSECDWN","JARS Reportng Struct","0000","X","2","0","0","","","","","0000","",""]
[null,null,null,null,null,null,null,null,null,null,null,null,null,null,null,null,null,null,null,null,null,null,null,null,null,null,null,null,null,null,null,null,null,null,null,null,null,null,null,null,null,null,null,null,null,null,null,null,null,null,null,null,null,null,null,null,null,null,null,null,null,null,null,null,null,null,null,null,null,null,null,null,null,null,null,null,null,null,null,null,null,null,null,null,null,null,null,null,null,null,null,null,null,null,null,null,null,null,null,null,null,null,null,null,null,null,null,null,null,null,5,"ZISJARS01___F00001","ZFRCBSAIN","FERC Balance Sheet A","0000","X","2","0","0","","","","","0000","",""]
[null,null,null,null,null,null,null,null,null,null,null,null,null,null,null,null,null,null,null,null,null,null,null,null,null,null,null,null,null,null,null,null,null,null,null,null,null,null,null,null,null,null,null,null,null,null,null,null,null,null,null,null,null,null,null,null,null,null,null,null,null,null,null,null,null,null,null,null,null,null,null,null,null,null,null,null,null,null,null,null,null,null,null,null,null,null,null,null,null,null,null,null,null,null,null,null,null,null,null,null,null,null,null,null,null,null,null,null,null,null,5,"ZISJARS01___F00001","ZFRCFILEN","FERC SAP to JARS int","0000","X","2","0","0","","","","","0000","",""]
[null,null,null,null,null,null,null,null,null,null,null,null,null,null,null,null,null,null,null,null,null,null,null,null,null,null,null,null,null,null,null,null,null,null,null,null,null,null,null,null,null,null,null,null,null,null,null,null,null,null,null,null,null,null,null,null,null,null,null,null,null,null,null,null,null,null,null,null,null,null,null,null,null,null,null,null,null,null,null,null,null,null,null,null,null,null,null,null,null,null,null,null,null,null,null,null,null,null,null,null,null,null,null,null,null,null,null,null,null,null,5,"ZISJARS01___F00001","ZFRCKWHI","FERC KWH in JARS Ind","0000","X","2","0","0","","","","","0000","",""]
[null,null,null,null,null,null,null,null,null,null,null,null,null,null,null,null,null,null,null,null,null,null,null,null,null,null,null,null,null,null,null,null,null,null,null,null,null,null,null,null,null,null,null,null,null,null,null,null,null,null,null,null,null,null,null,null,null,null,null,null,null,null,null,null,null,null,null,null,null,null,null,null,null,null,null,null,null,null,null,null,null,null,null,null,null,null,null,null,null,null,null,null,null,null,null,null,null,null,null,null,null,null,null,null,null,null,null,null,null,null,5,"ZISJARS01___F00001","ZFRCLGTX","FERC Account Long Te","0000","X","2","0","0","","","","","0000","",""]
[null,null,null,null,null,null,null,null,null,null,null,null,null,null,null,null,null,null,null,null,null,null,null,null,null,null,null,null,null,null,null,null,null,null,null,null,null,null,null,null,null,null,null,null,null,null,null,null,null,null,null,null,null,null,null,null,null,null,null,null,null,null,null,null,null,null,null,null,null,null,null,null,null,null,null,null,null,null,null,null,null,null,null,null,null,null,null,null,null,null,null,null,null,null,null,null,null,null,null,null,null,null,null,null,null,null,null,null,null,null,5,"ZISJARS01___F00001","ZFRCLOC","FERC Location Code","0000","X","1","0","0","","","","","0000","",""]
[null,null,null,null,null,null,null,null,null,null,null,null,null,null,null,null,null,null,null,null,null,null,null,null,null,null,null,null,null,null,null,null,null,null,null,null,null,null,null,null,null,null,null,null,null,null,null,null,null,null,null,null,null,null,null,null,null,null,null,null,null,null,null,null,null,null,null,null,null,null,null,null,null,null,null,null,null,null,null,null,null,null,null,null,null,null,null,null,null,null,null,null,null,null,null,null,null,null,null,null,null,null,null,null,null,null,null,null,null,null,5,"ZISJARS01___F00001","ZFRCSECD","FERC Secondary Accou","0000","X","2","0","0","","","","","0000","",""]
[null,null,null,null,null,null,null,null,null,null,null,null,null,null,null,null,null,null,null,null,null,null,null,null,null,null,null,null,null,null,null,null,null,null,null,null,null,null,null,null,null,null,null,null,null,null,null,null,null,null,null,null,null,null,null,null,null,null,null,null,null,null,null,null,null,null,null,null,null,null,null,null,null,null,null,null,null,null,null,null,null,null,null,null,null,null,null,null,null,null,null,null,null,null,null,null,null,null,null,null,null,null,null,null,null,null,null,null,null,null,5,"ZISJARS01___F00001","ZFRCSHTX","FERC Account Short T","0000","X","2","0","0","","","","","0000","",""]
[null,null,null,null,null,null,null,null,null,null,null,null,null,null,null,null,null,null,null,null,null,null,null,null,null,null,null,null,null,null,null,null,null,null,null,null,null,null,null,null,null,null,null,null,null,null,null,null,null,null,null,null,null,null,null,null,null,null,null,null,null,null,null,null,null,null,null,null,null,null,null,null,null,null,null,null,null,null,null,null,null,null,null,null,null,null,null,null,null,null,null,null,null,null,null,null,null,null,null,null,null,null,null,null,null,null,null,null,null,null,5,"ZISJARS01___F00011","0RETROPOST","Post to Prev. Allwd","0001","X","2","0","0","","","","","0000","",""]
[null,null,null,null,null,null,null,null,null,null,null,null,null,null,null,null,null,null,null,null,null,null,null,null,null,null,null,null,null,null,null,null,null,null,null,null,null,null,null,null,null,null,null,null,null,null,null,null,null,null,null,null,null,null,null,null,null,null,null,null,null,null,null,null,null,null,null,null,null,null,null,null,null,null,null,null,null,null,null,null,null,null,null,null,null,null,null,null,null,null,null,null,null,null,null,null,null,null,null,null,null,null,null,null,null,null,null,null,null,null,5,"ZISJARS01___F00011","0OFYEAR","Open Fiscal Year","0002","X","2","0","0","","","","","0000","",""]
[null,null,null,null,null,null,null,null,null,null,null,null,null,null,null,null,null,null,null,null,null,null,null,null,null,null,null,null,null,null,null,null,null,null,null,null,null,null,null,null,null,null,null,null,null,null,null,null,null,null,null,null,null,null,null,null,null,null,null,null,null,null,null,null,null,null,null,null,null,null,null,null,null,null,null,null,null,null,null,null,null,null,null,null,null,null,null,null,null,null,null,null,null,null,null,null,null,null,null,null,null,null,null,null,null,null,null,null,null,null,5,"ZISJARS01___F00011","0OFPER3","Open Posting Period","0003","X","2","0","0","","","","","0000","",""]
[null,null,null,null,null,null,null,null,null,null,null,null,null,null,null,null,null,null,null,null,null,null,null,null,null,null,null,null,null,null,null,null,null,null,null,null,null,null,null,null,null,null,null,null,null,null,null,null,null,null,null,null,null,null,null,null,null,null,null,null,null,null,null,null,null,null,null,null,null,null,null,null,null,null,null,null,null,null,null,null,null,null,null,null,null,null,null,null,null,null,null,null,null,null,null,null,null,null,null,null,null,null,null,null,null,null,null,null,null,null,5,"ZISJARS01___F00011","0OFPER","Open FY Period","0004","X","1","0","0","","","","","0000","",""]
[null,null,null,null,null,null,null,null,null,null,null,null,null,null,null,null,null,null,null,null,null,null,null,null,null,null,null,null,null,null,null,null,null,null,null,null,null,null,null,null,null,null,null,null,null,null,null,null,null,null,null,null,null,null,null,null,null,null,null,null,null,null,null,null,null,null,null,null,null,null,null,null,null,null,null,null,null,null,null,null,null,null,null,null,null,null,null,null,null,null,null,null,null,null,null,null,null,null,null,null,null,null,null,null,null,null,null,null,null,null,5,"ZISJARS01___F00012","0SEGMENT","Segment","0005","X","1","0","0","","","","","0000","",""]
[null,null,null,null,null,null,null,null,null,null,null,null,null,null,null,null,null,null,null,null,null,null,null,null,null,null,null,null,null,null,null,null,null,null,null,null,null,null,null,null,null,null,null,null,null,null,null,null,null,null,null,null,null,null,null,null,null,null,null,null,null,null,null,null,null,null,null,null,null,null,null,null,null,null,null,null,null,null,null,null,null,null,null,null,null,null,null,null,null,null,null,null,null,null,null,null,null,null,null,null,null,null,null,null,null,null,null,null,null,null,5,"ZISJARS01___F00012","0RESP_USER","Person Responsible","0006","X","2","0","0","","","","","0000","",""]
[null,null,null,null,null,null,null,null,null,null,null,null,null,null,null,null,null,null,null,null,null,null,null,null,null,null,null,null,null,null,null,null,null,null,null,null,null,null,null,null,null,null,null,null,null,null,null,null,null,null,null,null,null,null,null,null,null,null,null,null,null,null,null,null,null,null,null,null,null,null,null,null,null,null,null,null,null,null,null,null,null,null,null,null,null,null,null,null,null,null,null,null,null,null,null,null,null,null,null,null,null,null,null,null,null,null,null,null,null,null,5,"ZISJARS01___F00012","0PCA_HIEND","Hierarchy Area","0007","X","2","0","0","","","","","0000","",""]
[null,null,null,null,null,null,null,null,null,null,null,null,null,null,null,null,null,null,null,null,null,null,null,null,null,null,null,null,null,null,null,null,null,null,null,null,null,null,null,null,null,null,null,null,null,null,null,null,null,null,null,null,null,null,null,null,null,null,null,null,null,null,null,null,null,null,null,null,null,null,null,null,null,null,null,null,null,null,null,null,null,null,null,null,null,null,null,null,null,null,null,null,null,null,null,null,null,null,null,null,null,null,null,null,null,null,null,null,null,null,5,"ZISJARS01___F00012","0PCA_DEPART","Department","0008","X","2","0","0","","","","","0000","",""]
[null,null,null,null,null,null,null,null,null,null,null,null,null,null,null,null,null,null,null,null,null,null,null,null,null,null,null,null,null,null,null,null,null,null,null,null,null,null,null,null,null,null,null,null,null,null,null,null,null,null,null,null,null,null,null,null,null,null,null,null,null,null,null,null,null,null,null,null,null,null,null,null,null,null,null,null,null,null,null,null,null,null,null,null,null,null,null,null,null,null,null,null,null,null,null,null,null,null,null,null,null,null,null,null,null,null,null,null,null,null,5,"ZISJARS01___F00014","0CALMONTH2","Calendar month","0009","X","2","0","0","","","","","0000","",""]
[null,null,null,null,null,null,null,null,null,null,null,null,null,null,null,null,null,null,null,null,null,null,null,null,null,null,null,null,null,null,null,null,null,null,null,null,null,null,null,null,null,null,null,null,null,null,null,null,null,null,null,null,null,null,null,null,null,null,null,null,null,null,null,null,null,null,null,null,null,null,null,null,null,null,null,null,null,null,null,null,null,null,null,null,null,null,null,null,null,null,null,null,null,null,null,null,null,null,null,null,null,null,null,null,null,null,null,null,null,null,5,"ZISJARS01___F00014","0CALYEAR","Calendar year","0010","X","2","0","0","","","","","0000","",""]
[null,null,null,null,null,null,null,null,null,null,null,null,null,null,null,null,null,null,null,null,null,null,null,null,null,null,null,null,null,null,null,null,null,null,null,null,null,null,null,null,null,null,null,null,null,null,null,null,null,null,null,null,null,null,null,null,null,null,null,null,null,null,null,null,null,null,null,null,null,null,null,null,null,null,null,null,null,null,null,null,null,null,null,null,null,null,null,null,null,null,null,null,null,null,null,null,null,null,null,null,null,null,null,null,null,null,null,null,null,null,5,"ZISJARS01___F00014","0DATEFROM","Valid From","0011","X","2","0","0","","","","","0000","",""]
[null,null,null,null,null,null,null,null,null,null,null,null,null,null,null,null,null,null,null,null,null,null,null,null,null,null,null,null,null,null,null,null,null,null,null,null,null,null,null,null,null,null,null,null,null,null,null,null,null,null,null,null,null,null,null,null,null,null,null,null,null,null,null,null,null,null,null,null,null,null,null,null,null,null,null,null,null,null,null,null,null,null,null,null,null,null,null,null,null,null,null,null,null,null,null,null,null,null,null,null,null,null,null,null,null,null,null,null,null,null,5,"ZISJARS01___F00014","0DATETO","Valid To","0012","X","2","0","0","","","","","0000","",""]
[null,null,null,null,null,null,null,null,null,null,null,null,null,null,null,null,null,null,null,null,null,null,null,null,null,null,null,null,null,null,null,null,null,null,null,null,null,null,null,null,null,null,null,null,null,null,null,null,null,null,null,null,null,null,null,null,null,null,null,null,null,null,null,null,null,null,null,null,null,null,null,null,null,null,null,null,null,null,null,null,null,null,null,null,null,null,null,null,null,null,null,null,null,null,null,null,null,null,null,null,null,null,null,null,null,null,null,null,null,null,5,"ZISJARS01___F00014","0NUMDAY","Number of Days","0013","X","2","0","0","","","","","0000","",""]
[null,null,null,null,null,null,null,null,null,null,null,null,null,null,null,null,null,null,null,null,null,null,null,null,null,null,null,null,null,null,null,null,null,null,null,null,null,null,null,null,null,null,null,null,null,null,null,null,null,null,null,null,null,null,null,null,null,null,null,null,null,null,null,null,null,null,null,null,null,null,null,null,null,null,null,null,null,null,null,null,null,null,null,null,null,null,null,null,null,null,null,null,null,null,null,null,null,null,null,null,null,null,null,null,null,null,null,null,null,null,5,"ZISJARS01___F00014","0NUMWDAY","Number of Workdays","0014","X","2","0","0","","","","","0000","",""]

{"sheet":"SAPBEXfilters","index":1,"n_rows":8,"n_cols":237,"rows_kept":8,"cut":false,"hidden":true,"merged":[]}
[]
[null,null,null,null,null,null,null,null,null,null,null,null,null,null,null,null,null,null,null,null,null,null,null,null,null,null,null,null,null,null,null,null,null,null,null,null,null,null,null,null,null,null,null,null,null,null,null,null,null,null,null,null,null,null,null,null,null,null,null,null,null,null,null,null,null,null,null,null,null,null,null,null,null,null,null,null,null,null,null,null,null,null,null,null,null,null,null,null,null,null,null,null,null,null,null,null,null,null,null,null,0,null,null,null,null,null,null,null,null,null,null,null,null,null,null,null,null,null,null,null,null,null,null,null,null,null,null,null,null,null,null,null,null,null,null,null,null,null,null,null,null,null,null,null,null,null,null,null,null,null,null,null,null,null,null,5,null,null,null,null,null,null,null,null,null,null,null,null,null,null,null,null,null,null,null,null,null,null,null,null,null,null,null,null,null,null,null,null,null,null,null,null,null,null,null,null,null,null,null,null,null,null,null,null,null,5]
[null,null,null,null,null,null,null,null,null,null,null,null,null,null,null,null,null,null,null,null,null,null,null,null,null,null,null,null,null,null,null,null,null,null,null,null,null,null,null,null,null,null,null,null,null,null,null,null,null,null,null,null,null,null,null,null,null,null,null,null,null,null,null,null,null,null,null,null,null,null,null,null,null,null,null,null,null,null,null,null,null,null,null,null,null,null,null,null,null,null,null,null,null,null,null,null,null,null,null,null,8,null,null,null,null,null,null,null,null,null,null,null,null,null,null,null,null,null,null,null,null,null,null,null,null,null,null,null,null,null,null,null,null,null,null,null,null,null,null,null,null,null,null,null,null,null,null,null,null,null,null,null,null,null,null,12,null,null,null,null,null,null,null,null,null,null,null,null,null,null,null,null,null,null,null,null,null,null,null,null,null,null,null,null,null,null,null,null,null,null,null,null,null,null,null,null,null,null,null,null,null,null,null,null,null,31]
[null,null,null,null,null,null,null,null,null,null,null,null,null,null,null,null,null,null,null,null,null,null,null,null,null,null,null,null,null,null,null,null,null,null,null,null,null,null,null,null,null,null,null,null,null,null,null,null,null,null,null,null,null,null,null,null,null,null,null,null,null,null,null,null,null,null,null,null,null,null,null,null,null,null,null,null,null,null,null,null,null,null,null,null,null,null,null,null,null,null,null,null,null,null,null,null,null,null,null,null,null,null,null,null,null,null,null,null,null,null,null,null,null,null,null,null,null,null,null,null,null,null,null,null,null,null,null,null,null,null,null,null,null,null,null,null,null,null,null,null,null,null,null,null,null,null,null,null,null,null,null,null,null,null,null,6,"4V9I5OO07UU5BE392ZFVUVL5D","","X","3","0","ZISJARS01___F00035","","","0","","","",null,null,null,null,null,null,null,null,null,null,null,null,null,null,null,null,null,null,null,null,null,null,null,null,null,null,null,null,null,null,null,null,null,null,null,null,null,6,"4V9I5OO07UU5BE392ZFVUVL5D","","","0001","0001","0","0000","I","EQ","DEPE","","DEPE","","1","","0","","","","","","","0","","","0","","0","","","00"]
[null,null,null,null,null,null,null,null,null,null,null,null,null,null,null,null,null,null,null,null,null,null,null,null,null,null,null,null,null,null,null,null,null,null,null,null,null,null,null,null,null,null,null,null,null,null,null,null,null,null,null,null,null,null,null,null,null,null,null,null,null,null,null,null,null,null,null,null,null,null,null,null,null,null,null,null,null,null,null,null,null,null,null,null,null,null,null,null,null,null,null,null,null,null,null,null,null,null,null,null,null,null,null,null,null,null,null,null,null,null,null,null,null,null,null,null,null,null,null,null,null,null,null,null,null,null,null,null,null,null,null,null,null,null,null,null,null,null,null,null,null,null,null,null,null,null,null,null,null,null,null,null,null,null,null,4,"4V9I5ZRFLU707Y6LIETMDPQDT","","X","3","0","ZISJARS01___F00008","","","0","","","",null,null,null,null,null,null,null,null,null,null,null,null,null,null,null,null,null,null,null,null,null,null,null,null,null,null,null,null,null,null,null,null,null,null,null,null,null,4,"4V9I5ZRFLU707Y6LIETMDPQDT","","","0001","0001","0","0000","I","EQ","001","","1","","1","","0","","Budget  (Original)","","","","","0","","","0","","0","","","00"]
[null,null,null,null,null,null,null,null,null,null,null,null,null,null,null,null,null,null,null,null,null,null,null,null,null,null,null,null,null,null,null,null,null,null,null,null,null,null,null,null,null,null,null,null,null,null,null,null,null,null,null,null,null,null,null,null,null,null,null,null,null,null,null,null,null,null,null,null,null,null,null,null,null,null,null,null,null,null,null,null,null,null,null,null,null,null,null,null,null,null,null,null,null,null,null,null,null,null,null,null,null,null,null,null,null,null,null,null,null,null,null,null,null,null,null,null,null,null,null,null,null,null,null,null,null,null,null,null,null,null,null,null,null,null,null,null,null,null,null,null,null,null,null,null,null,null,null,null,null,null,null,null,null,null,null,4,"4V9I5ZZ44SSPQKQ1O8VYNRP3L","","X","3","0","ZISJARS01___F00035","","","0","","","",null,null,null,null,null,null,null,null,null,null,null,null,null,null,null,null,null,null,null,null,null,null,null,null,null,null,null,null,null,null,null,null,null,null,null,null,null,4,"4V9I5ZZ44SSPQKQ1O8VYNRP3L","","","0001","0001","0","0000","I","EQ","DEPE","","DEPE","","1","","0","","","","","","","0","","","0","","0","","","00"]
[null,null,null,null,null,null,null,null,null,null,null,null,null,null,null,null,null,null,null,null,null,null,null,null,null,null,null,null,null,null,null,null,null,null,null,null,null,null,null,null,null,null,null,null,null,null,null,null,null,null,null,null,null,null,null,null,null,null,null,null,null,null,null,null,null,null,null,null,null,null,null,null,null,null,null,null,null,null,null,null,null,null,null,null,null,null,null,null,null,null,null,null,null,null,null,null,null,null,null,null,null,null,null,null,null,null,null,null,null,null,null,null,null,null,null,null,null,null,null,null,null,null,null,null,null,null,null,null,null,null,null,null,null,null,null,null,null,null,null,null,null,null,null,null,null,null,null,null,null,null,null,null,null,null,null,5,"4V9I5U01DVWV91LH4V2EU8P1T","","X","3","0","ZISJARS01___F00008","","","0","","","",null,null,null,null,null,null,null,null,null,null,null,null,null,null,null,null,null,null,null,null,null,null,null,null,null,null,null,null,null,null,null,null,null,null,null,null,null,5,"4V9I5U01DVWV91LH4V2EU8P1T","","","0001","0001","0","0000","I","EQ","000","","0","","1","","0","","Actuals / Detailed Plan","","","","","0","","","0","","0","","","00"]
[null,null,null,null,null,null,null,null,null,null,null,null,null,null,null,null,null,null,null,null,null,null,null,null,null,null,null,null,null,null,null,null,null,null,null,null,null,null,null,null,null,null,null,null,null,null,null,null,null,null,null,null,null,null,null,null,null,null,null,null,null,null,null,null,null,null,null,null,null,null,null,null,null,null,null,null,null,null,null,null,null,null,null,null,null,null,null,null,null,null,null,null,null,null,null,null,null,null,null,null,null,null,null,null,null,null,null,null,null,null,null,null,null,null,null,null,null,null,null,null,null,null,null,null,null,null,null,null,null,null,null,null,null,null,null,null,null,null,null,null,null,null,null,null,null,null,null,null,null,null,null,null,null,null,null,5,"4V9I5U7PWUIKRO4XAP4R4ANRL","","X","3","0","ZISJARS01___F00035","","","0","","","",null,null,null,null,null,null,null,null,null,null,null,null,null,null,null,null,null,null,null,null,null,null,null,null,null,null,null,null,null,null,null,null,null,null,null,null,null,5,"4V9I5U7PWUIKRO4XAP4R4ANRL","","","0001","0001","0","0000","I","EQ","DEPE","","DEPE","","1","","0","","","","","","","0","","","0","","0","","","00"]

{"sheet":"Page B3, 1-5","index":2,"n_rows":331,"n_cols":19,"rows_kept":331,"cut":false,"hidden":false,"merged":[]}
[]
[]
[]
[]
["Depreciation Expense (Actuals)"]
["Twelve Months Ending - June 2013"]
[{"$f":"+\"Allocation Method - \" &$B$30","v":"Allocation Method - Factor 2010 Protocol"}]
["(Allocated in Thousands)"]
[]
["Current User","P33583","Key Date","9/26/2013"]
["Last Refreshed","9/26/2013 09:37:50","Status of Data","9/12/2013 11:08:07"]
[]
["Account Number",""]
["Allocation Version",""]
["Calendar Year/Month",""]
["Company code",""]
["FERC Location Code",""]
["FERC Merger Code",""]
["JARS Primary Group","DEPE"]
["Profit Center",""]
["Secondary Account",""]
["Version","0"]
["Jurisdictional Areas (Period Balance)",""]
["Primary Account",""]
["Alloc",""]
[]
["Calendar Year/ Month","07/2012..06/2013"]
["Rates Month (Mandatory, Single Value)","06/2011"]
["Allocation Factor (Optional, Selection Options)","]NUTIL["]
["Allocation Method (Mandatory, Single Value)","Factor 2010 Protocol"]
["Allocation Version (Mandatory, Single Value)","Average"]
["Profit Center Hierarchy Nodes","Empty Demarcation"]
["Company Code (Selection Options, Optional)","1000, 2010, 2030, 2040, 2050, 2060"]
["FERC Account (Selection Option, Optional)","Empty Demarcation"]
[]
["Primary Account"," ","Secondary Account"," ","Alloc","Total","Calif","Oregon","Wash","Id-PPL","Mont","Wyoming","Wy-PPL","Utah","Idaho","Wy-UPL","FERC","Other","Nutil"]
["4030000","DEPN EXPENSE-ELECT","3102000","LAND RIGHTS","SG",862.95031000000097,13.552275573201976,224.55677494380271,67.804200514540526,0,0,137.78380797345861,108.62801446104436,367.86119508032817,48.110449956054737,29.155793512414245,3.2816059586143025,0,0]
["4030000","DEPN EXPENSE-ELECT","3110000","STRUCTURES AND IMPROVEMENTS","SG",19252.844830000198,302.35791757726969,5009.9718296854262,1512.7449821863636,0,0,3074.0243606836875,2423.5443018839665,8207.1637564623888,1073.3677443205399,650.48005879972084,73.214239084525218,0,0]
["4030000","DEPN EXPENSE-ELECT","3120000","BOILER PLANT EQUIPMENT","SG",93224.340809999499,1464.0494848274761,24258.82125073389,7324.8735458673891,0,0,14884.75584720193,11735.061595412073,39739.967670840961,5197.3618078028931,3149.6942517898565,354.5112027249686,0,0]
["4030000","DEPN EXPENSE-ELECT","3140000","TURBOGENERATOR UNITS","SG",23419.4629799998,367.79292202972715,6094.2084576162079,1840.1267667877232,0,0,3739.2915358913442,2948.0373710756398,9983.3229562919096,1305.6613905115298,791.25416481570414,89.058950871359357,0,0]
["4030000","DEPN EXPENSE-ELECT","3150000","ACCESSORY ELECTRIC EQUIPMENT","SG",8274.0339600000007,129.94026078738125,2153.0676335617736,650.11189078541179,0,0,1321.0817507099732,1041.5337595255644,3527.0814383980196,461.28669536867886,279.54799118440889,31.464290388763015,0,0]
["4030000","DEPN EXPENSE-ELECT","3157000","ACCESSORY ELECTRIC EQUIP-SUPV & ALARM","SG",0.90605000000000002,1.4229138272283183E-2,0.23577216854795757,7.1190652769102525E-2,0,0,0.14466536226674748,0.11405339491960914,0.3862338676285208,5.0513306128464504E-2,3.0611967347138329E-2,3.4455043869240694E-3,0,0]
["4030000","DEPN EXPENSE-ELECT","3160000","MISCELLANEOUS POWER PLANT EQUIPMENT","SG",958.38445000001104,15.051029034883532,249.39062974355082,75.302703602735036,0,0,153.02139357658973,120.64124514172912,408.54316295848679,53.431010553071729,32.380148434860615,3.6445205306935042,0,0]
["4030000","DEPN EXPENSE-ELECT","3302000","LAND RIGHTS","SG-P",88.028450000000007,1.3824501814963486,22.906747475763432,6.9166191907204935,0,0,14.055148842812502,11.081003887214909,37.525046857065128,4.9076850536551309,2.974144955597593,0.33475239848697763,0,0]
["4030000","DEPN EXPENSE-ELECT","3302000","LAND RIGHTS","SG-U",1.43174,2.2484880999899259E-2,0.37256712609332021,0.11249545300550173,0,0,0.22860017192405829,0.18022714821720787,0.61032666810712244,7.9821114636463519E-2,4.8373023706850427E-2,5.4445852336346412E-3,0,0]
["4030000","DEPN EXPENSE-ELECT","3303000","WATER RIGHTS","SG-U",1.61321,2.5334791846178414E-2,0.41978921695629451,0.12675401242055503,0,0,0.25757475753251996,0.20307055594974083,0.68768427525744269,8.993827115446193E-2,5.4504201582779119E-2,6.1346748325476277E-3,0,0]
["4030000","DEPN EXPENSE-ELECT","3304000","FLOOD RIGHTS","SG-P",3.43737,5.3982465672973948E-2,0.89447180508988788,0.27008290282978858,0,0,0.54883105379929331,0.43269545620530531,1.4652929855639849,0.19163724196986925,0.11613559759398805,1.3071545074202514E-2,0,0]
["4030000","DEPN EXPENSE-ELECT","3304000","FLOOD RIGHTS","SG-U",2.2837399999999999,3.5865186510616404E-2,0.59427441333228026,0.17943925981448064,0,0,0.36463558790691664,0.28747673981977612,0.97351993031064288,0.12732107249911101,7.7158848087140533E-2,8.6845496259521805E-3,0,0]
["4030000","DEPN EXPENSE-ELECT","3305000","LAND RIGHTS - FISH/WILDLIFE","SG-P",2.6321500000000002,4.133682059863162E-2,0.68493760106341428,0.20681471959184727,0,0,0.42026481241699615,0.33133452175669026,1.12204125012793,0.14674532169972723,8.8930290660305888E-2,1.0009474501453772E-2,0,0]
["4030000","DEPN EXPENSE-ELECT","3310000","STRUCTURES AND IMPROVE","SG-P",41.112430000000003,0.6456536076149918,10.69826916326484,3.2303081823564193,0,0,6.5642564754884347,5.1752245625459814,17.525537052598452,2.2920641932289256,1.3890319129424538,0.15634132544794296,0,0]
["4030000","DEPN EXPENSE-ELECT","3310000","STRUCTURES AND IMPROVE","SG-U",181.97869000000301,2.8578996110799619,47.354462083568485,14.298528482055476,0,0,29.055806096439017,22.907441529190962,77.574453136882937,10.145516557394288,6.1483645672480547,0.69202403258286593,0,0]
["4030000","DEPN EXPENSE-ELECT","3311000","STRUCTURES AND IMPROVE-PRODUCTION","SG-P",1460.9748400000501,22.944001998441049,380.17461091641428,114.79250873443924,0,0,233.26798133790703,183.9072240981607,622.78898842357341,81.450989833791709,49.360757239746341,5.5557587554835415,0,0]
["4030000","DEPN EXPENSE-ELECT","3311000","STRUCTURES AND IMPROVE-PRODUCTION","SG-U",108.826349999999,1.7090725476716193,28.318773284762191,8.5507630870026468,0,0,17.375865953223013,13.699039428518837,46.390841631692162,6.0671913607343662,3.6768265247041736,0.41384213491300781,0,0]
["4030000","DEPN EXPENSE-ELECT","3312000","STRUCTURES AND IMPROVE-FISH/WILDLIFE","SG-P",1621.7676200000101,25.469185707733295,422.01607929834154,127.4264063877209,0,0,258.9411183265629,204.14778746393219,691.33224465239789,90.415368090383325,54.793330862630704,6.1672175368704174,0,0]
["4030000","DEPN EXPENSE-ELECT","3312000","STRUCTURES AND IMPROVE-FISH/WILDLIFE","SG-U",10.46889,0.16440956168790097,2.7242126787594807,0.82256731181273623,0,0,1.6715255939305003,1.3178218040284166,4.462711632335461,0.58365238716982593,0.35370378990208373,3.9810834304095273E-2,0,0]
["4030000","DEPN EXPENSE-ELECT","3313000","STRUCTURES AND IMPROVE-RECREATION","SG-P",310.00290000000598,4.8684665624511467,80.668899055413107,24.357716253314095,0,0,49.49691720351322,39.023103780061568,132.14901941731679,17.283010196360102,10.473813423451654,1.1788713116375522,0,0]
["4030000","DEPN EXPENSE-ELECT","3313000","STRUCTURES AND IMPROVE-RECREATION","SG-U",69.27852,1.0879903320778499,18.027644052969539,5.4433895057417629,0,0,11.061422871921096,8.7207664047304672,29.532267229380089,3.862355376510072,2.3406564671906294,0.26345063139959923,0,0]
["4030000","DEPN EXPENSE-ELECT","3320000","\"RESERVOIRS, DAMS & WATERWAYS\"","SG-P",73.042569999999998,1.14710317122998,19.007124469086683,5.7391404869851161,0,0,11.662413608458982,9.1945842747676121,31.136818401442483,4.0722053957505633,2.4678293336913697,0.27776446704619878,0,0]
["4030000","DEPN EXPENSE-ELECT","3320000","\"RESERVOIRS, DAMS & WATERWAYS\"","SG-U",545.78282000000604,8.5712921057521427,142.02350756318194,42.883544203920323,0,0,87.142949477697584,68.703033507862301,232.65803151459974,30.428005812391088,18.439915969835287,2.0754893224632309,0,0]
["4030000","DEPN EXPENSE-ELECT","3321000","\"RESERVOIRS, DAMS, & WTRWYS-PRODUCTION\"","SG-P",7148.9716900000203,112.27162593857764,1860.3041313826629,561.71288696974284,0,0,1141.4475794587217,899.91114334603822,3047.4863256945096,398.56320896274741,241.53643611268353,27.185931593058935,0,0]
["4030000","DEPN EXPENSE-ELECT","3321000","\"RESERVOIRS, DAMS, & WTRWYS-PRODUCTION\"","SG-U",1579.18193,24.800395164793358,410.93443868202519,124.08034042036439,0,0,252.14163234760935,198.78710922377414,673.17868165440314,88.041167995838421,53.3545231238352,6.0052737349663028,0,0]
["4030000","DEPN EXPENSE-ELECT","3322000","\"RESERVOIRS, DAMS, & WTRWYS-FISH/WILDLIF","SG-P",315.02624000000202,4.9473560271039076,81.976071689542309,24.752412852487279,0,0,50.298973713516503,39.655440826400088,134.29038472454212,17.56306704885959,10.643532887116411,1.1979739439503356,0,0]
["4030000","DEPN EXPENSE-ELECT","3322000","\"RESERVOIRS, DAMS, & WTRWYS-FISH/WILDLIF","SG-U",15.29227,0.24015873773752877,3.9793517575419401,1.2015525452473521,0,0,2.4416552943335512,1.9249879250894446,6.5188373565692839,0.85256124486411777,0.51666736924410683,5.8153063706227401E-2,0,0]
["4030000","DEPN EXPENSE-ELECT","3323000","\"RESERVOIRS, DAMS, & WTRWYS-RECREATION\"","SG-P",2.4519799999999998,3.8507325711465056E-2,0.63805379596735379,0.19265830448295787,0,0,0.39149779258409517,0.30865475776721285,1.0452378111006901,0.13670064164325632,8.2843034816882322E-2,9.324328510181645E-3,0,0]
["4030000","DEPN EXPENSE-ELECT","3323000","\"RESERVOIRS, DAMS, & WTRWYS-RECREATION\"","SG-U",1.8991800000000001,2.9825831713431682E-2,0.49420427908273279,0.14922340260032463,0,0,0.3032344381764378,0.23906840302789392,0.80958847384000232,0.10588142015678741,6.4166035148543868E-2,7.2221544302835984E-3,0,0]
["4030000","DEPN EXPENSE-ELECT","3330000","\"WATER WHEELS, TURB & GENERATORS\"","SG-P",2591.0896800000201,40.691985356885681,674.25289195501148,203.58850582471871,0,0,413.70887613579129,326.1658567906473,1104.5379266914122,144.45616269758418,87.543019345143989,9.8533313386167993,0,0]
["4030000","DEPN EXPENSE-ELECT","3330000","\"WATER WHEELS, TURB & GENERATORS\"","SG-U",1095.69162999998,17.207381167764538,285.12067950437796,86.091277935368396,0,0,174.94467919716365,137.92544582142042,467.0749031323773,61.086040205932626,37.019233375743234,4.1666688569956571,0,0]
["4030000","DEPN EXPENSE-ELECT","3340000","ACCESSORY ELECTRIC EQUIPMENT","SG-P",2596.2038500000599,40.772301268897742,675.58370035546648,203.99033916799448,0,0,414.525435106874,326.80962749943882,1106.7180112991325,144.74128342470192,87.715807607435181,9.8727793769928418,0,0]
["4030000","DEPN EXPENSE-ELECT","3340000","ACCESSORY ELECTRIC EQUIPMENT","SG-U",334.86653000000501,5.2589395266593852,87.138908396038701,26.311314895673096,0,0,53.466793083670204,42.152932610175725,142.74796647121462,18.669185521844156,11.313860473494477,1.2734221049048702,0,0]
["4030000","DEPN EXPENSE-ELECT","3347000","ACCESSORY ELECT EQUIP - SUPV & ALARM","SG-P",142.57733000000201,2.2391176458947935,37.101447248913679,11.20266342119738,0,0,22.764749291403227,17.947606120052608,60.778316430714305,7.9488464403390626,4.8171431713506179,0.54218952153957023,0,0]
["4030000","DEPN EXPENSE-ELECT","3347000","ACCESSORY ELECT EQUIP - SUPV & ALARM","SG-U",1.45723,2.2885190844345479E-2,0.37920012932303981,0.11449826713174688,0,0,0.23267005778486002,0.1834358243791204,0.62119262615121607,8.1242210793645311E-2,4.9234233405739625E-2,5.5415179711465826E-3,0,0]
["4030000","DEPN EXPENSE-ELECT","3350000","MISC POWER PLANT EQUIP","SG-U",4.7711300000000003,7.4928611539140738E-2,1.2415425931507278,0.37487981805225773,0,0,0.76178715288532295,0.60058890138821786,2.0338524285177026,0.26599586145212833,0.16119825149710512,1.8143534402720641E-2,0,0]
["4030000","DEPN EXPENSE-ELECT","3351000","MISC POWER PLANT EQUIP - PRODUCTION","SG-P",47.17089,0.74079920118830089,12.274800538201164,3.7063367924502293,0,0,7.5315864359526472,5.9378623098939816,20.108156596412464,2.6298301494642957,1.5937241260586654,0.17938028633090083,0,0]
["4030000","DEPN EXPENSE-ELECT","3353000","MISC POWER PLANT EQUIP - RECREATION","SG-P",9.0389999999999998E-2,1.4195373416827735E-3,2.352126959334461E-2,7.1021721801216011E-3,0,0,1.443220804071663E-2,1.1378275334455571E-2,3.8531735880957992E-2,5.039344121132285E-3,3.0539327062610597E-3,3.4373284204411084E-4,0,0]
["4030000","DEPN EXPENSE-ELECT","3360000","\"ROADS, RAILROADS & BRIDGES\"","SG-P",446.74932000001098,7.0160121928465786,116.25302794959221,35.102230246623748,0,0,71.330668528474902,56.236716101791394,190.44171703991603,24.906776848787491,15.093952426683503,1.6988871937700818,0,0]
["4030000","DEPN EXPENSE-ELECT","3360000","\"ROADS, RAILROADS & BRIDGES\"","SG-U",46.12189,0.72432509264282874,12.001829946283713,3.6239141946302542,0,0,7.3640968216732823,5.805814397228378,19.660985549403669,2.5713472201240171,1.5582824244449045,0.17539117524223757,0,0]
["4030000","DEPN EXPENSE-ELECT","3410000","STRUCTURES & IMPROVEMENTS","SG",5036.2004800000004,79.091433140399474,1310.5191859299871,395.70707979390482,0,0,804.10989116182054,633.95592101955208,2146.8475134297369,280.77383871812805,170.15397014226852,19.151537826024065,0,0]
["4030000","DEPN EXPENSE-ELECT","3420000","\"FUEL HOLDERS,PRODUCERS, ACCES\"","SG",297.24542000000099,4.6681156470204765,77.349149897189633,23.355328604851952,0,0,47.459981641666189,37.417194719171349,126.71072038128629,16.571766343738265,10.042786922494837,1.1303574842482103,0,0]
["4030000","DEPN EXPENSE-ELECT","3430000","PRIME MOVERS","SG",91777.055439999705,1441.3204702596493,23882.20891124646,7211.1566536059718,0,0,14653.673608523728,11552.877599091826,39123.014273106623,5116.6740213120293,3100.7960094319023,349.00750194524858,0,0]
["4030000","DEPN EXPENSE-ELECT","3440000","GENERATORS","SG",10056.0532699999,157.92613261108551,2616.78437889924,790.12968000900707,0,0,1605.6096123594129,1265.8539980530054,4286.7262817178907,560.63627533982833,339.75561430640755,38.240909063436661,0,0]
["4030000","DEPN EXPENSE-ELECT","3450000","ACCESSORY ELECTRIC EQUIPMENT","SG",8066.6965600000003,126.68411318667965,2099.1143325087464,633.82086396630848,0,0,1287.9770212994047,1015.4341685937118,3438.6969939346436,449.72740221920594,272.54285270569295,30.675832885012195,0,0]
["4030000","DEPN EXPENSE-ELECT","3460000","MISCELLANEOUS PWR PLANT EQUIP","SG",355.18538000000001,5.5780386119016008,92.426275899928655,27.907818615133525,0,0,56.711022205785952,44.710665432163175,151.40955029248479,19.801984252850279,12.000356773622778,1.3506901219152283,0,0]
["4030000","DEPN EXPENSE-ELECT","3502000","LAND RIGHTS","SG",2009.8062300004001,31.563170627638506,522.9914168184863,157.91558683641904,0,0,320.89768373596803,252.99401099511775,856.74657402676553,112.0489568510627,67.903672740850311,7.6428411040601549,0,0]
["4030000","DEPN EXPENSE-ELECT","3520000","STRUCTURES & IMPROVEMENTS","SG",2202.9771800004401,34.596840025286397,573.25832679252574,173.09351965086694,0,0,351.74051300716451,277.310332000968,939.09209925384016,122.81845448637898,74.430181006196506,8.377426784377386,0,0]
["4030000","DEPN EXPENSE-ELECT","3530000","STATION EQUIPMENT","SG",27189.118600002101,426.99379511167865,7075.1475671652815,2136.3181958508872,0,0,4341.1772992471342,3422.5608754507257,11590.263709827674,1515.8239293692782,918.61642379640818,103.39410343017057,0,0]
["4030000","DEPN EXPENSE-ELECT","3534000","STATION EQUIPMENT, STEP-UP TRANSFORMERS","SG",2370.0115700000601,37.220045622693902,616.72398580946276,186.21783647550333,0,0,378.41022278068721,298.33658799984522,1010.2960487892124,132.13080951759375,80.073634780841985,9.0126210049070234,0,0]
["4030000","DEPN EXPENSE-ELECT","3537000","STATION EQUIPMENT-SUPERVISORY & ALARM","SG",676.56258000007495,10.625133823380297,176.05499326198188,53.159242546607231,0,0,108.02402817927945,85.165563848107936,288.40724238856512,37.719124461792994,22.858464331171522,2.5728153384679926,0,0]
["4030000","DEPN EXPENSE-ELECT","3540000","TOWERS AND FIXTURES","SG",15477.4646400004,243.06714250531354,4027.5430735580021,1216.1037590997526,0,0,2471.224578242296,1948.3001897690544,6597.7827150720441,862.88605424957223,522.92438847324138,58.857317273421486,0,0]
["4030000","DEPN EXPENSE-ELECT","3550000","POLES AND FIXTURES","SG",17661.206620000001,277.36190171772319,4595.7960200551224,1387.6859201675347,0,0,2819.8938841677377,2223.1891985957459,7528.6751722631589,984.63212471069357,596.70468557199194,67.161596918031478,0,0]
["4030000","DEPN EXPENSE-ELECT","3560000","OVERHEAD CONDUCTORS & DEVICES","SG",20556.2800000022,322.82782460548606,5349.1514959213373,1615.1591983936905,0,0,3282.1386160333468,2587.6204634604205,8762.7962347063167,1146.0357204376619,694.5181525729264,78.170909904361878,0,0]
["4030000","DEPN EXPENSE-ELECT","3570000","UNDERGROUND CONDUIT","SG",54.300089999999997,0.85276032096178056,14.129959683957027,4.2664961674532487,0,0,8.6698771491275224,6.8352845968106823,23.147214583385864,3.0272910644811812,1.8345925523168394,0.20649103063337759,0,0]
["4030000","DEPN EXPENSE-ELECT","3580000","UNDERGROUND CONDUCTORS & DEVICES","SG",123.24463,1.9355056360977652,32.070695521208172,9.6836440152160641,0,0,19.677974776647265,15.514009665152154,52.537111759114858,6.8710266805135927,4.1639651114951102,0.46867161120228878,0,0]
["4030000","DEPN EXPENSE-ELECT","3590000","ROADS AND TRAILS","SG",161.87011000000501,2.5421027287012414,42.121811001376983,12.718546211254109,0,0,25.84514994018982,20.376177453243358,69.002503878103894,9.0244406152844512,5.4689724869464627,0.61555562509452999,0,0]
["4030000","DEPN EXPENSE-ELECT","3602000","LAND RIGHTS","CA",22.499410000000001,22.499410000000001,0,0,0,0,0,0,0,0,0,0,0,0]
["4030000","DEPN EXPENSE-ELECT","3602000","LAND RIGHTS","IDU",19.154260000000001,0,0,0,0,0,0,0,0,19.154260000000001,0,0,0,0]
["4030000","DEPN EXPENSE-ELECT","3602000","LAND RIGHTS","OR",73.959100000000007,0,73.959100000000007,0,0,0,0,0,0,0,0,0,0,0]
["4030000","DEPN EXPENSE-ELECT","3602000","LAND RIGHTS","UT",206.68042,0,0,0,0,0,0,0,206.68042,0,0,0,0,0]
["4030000","DEPN EXPENSE-ELECT","3602000","LAND RIGHTS","WA",4.86571,0,0,4.86571,0,0,0,0,0,0,0,0,0,0]
["4030000","DEPN EXPENSE-ELECT","3602000","LAND RIGHTS","WYP",35.218119999999999,0,0,0,0,0,35.218119999999999,35.218119999999999,0,0,0,0,0,0]
["4030000","DEPN EXPENSE-ELECT","3602000","LAND RIGHTS","WYU",49.857520000000001,0,0,0,0,0,49.857520000000001,0,0,0,49.857520000000001,0,0,0]
["4030000","DEPN EXPENSE-ELECT","3610000","STRUCTURES & IMPROVEMENTS","CA",85.553290000000004,85.553290000000004,0,0,0,0,0,0,0,0,0,0,0,0]
["4030000","DEPN EXPENSE-ELECT","3610000","STRUCTURES & IMPROVEMENTS","IDU",33.439480000000003,0,0,0,0,0,0,0,0,33.439480000000003,0,0,0,0]
["4030000","DEPN EXPENSE-ELECT","3610000","STRUCTURES & IMPROVEMENTS","OR",355.40368999999998,0,355.40368999999998,0,0,0,0,0,0,0,0,0,0,0]
["4030000","DEPN EXPENSE-ELECT","3610000","STRUCTURES & IMPROVEMENTS","UT",739.94961999999998,0,0,0,0,0,0,0,739.94961999999998,0,0,0,0,0]
["4030000","DEPN EXPENSE-ELECT","3610000","STRUCTURES & IMPROVEMENTS","WA",42.604970000000002,0,0,42.604970000000002,0,0,0,0,0,0,0,0,0,0]
["4030000","DEPN EXPENSE-ELECT","3610000","STRUCTURES & IMPROVEMENTS","WYP",184.56724,0,0,0,0,0,184.56724,184.56724,0,0,0,0,0,0]
["4030000","DEPN EXPENSE-ELECT","3610000","STRUCTURES & IMPROVEMENTS","WYU",38.093719999999998,0,0,0,0,0,38.093719999999998,0,0,0,38.093719999999998,0,0,0]
["4030000","DEPN EXPENSE-ELECT","3620000","STATION EQUIPMENT","CA",527.64437999999996,527.64437999999996,0,0,0,0,0,0,0,0,0,0,0,0]
["4030000","DEPN EXPENSE-ELECT","3620000","STATION EQUIPMENT","IDU",631.73668999999995,0,0,0,0,0,0,0,0,631.73668999999995,0,0,0,0]
["4030000","DEPN EXPENSE-ELECT","3620000","STATION EQUIPMENT","OR",4390.5991000000004,0,4390.5991000000004,0,0,0,0,0,0,0,0,0,0,0]
["4030000","DEPN EXPENSE-ELECT","3620000","STATION EQUIPMENT","UT",9870.8231199999991,0,0,0,0,0,0,0,9870.8231199999991,0,0,0,0,0]
["4030000","DEPN EXPENSE-ELECT","3620000","STATION EQUIPMENT","WA",966.44682,0,0,966.44682,0,0,0,0,0,0,0,0,0,0]
["4030000","DEPN EXPENSE-ELECT","3620000","STATION EQUIPMENT","WYP",2336.35502,0,0,0,0,0,2336.35502,2336.35502,0,0,0,0,0,0]
["4030000","DEPN EXPENSE-ELECT","3620000","STATION EQUIPMENT","WYU",216.04255000000001,0,0,0,0,0,216.04255000000001,0,0,0,216.04255000000001,0,0,0]
["4030000","DEPN EXPENSE-ELECT","3627000","STATION EQUIPMENT-SUPERVISORY & ALARM","CA",15.31837,15.31837,0,0,0,0,0,0,0,0,0,0,0,0]
["4030000","DEPN EXPENSE-ELECT","3627000","STATION EQUIPMENT-SUPERVISORY & ALARM","IDU",11.401859999999999,0,0,0,0,0,0,0,0,11.401859999999999,0,0,0,0]
["4030000","DEPN EXPENSE-ELECT","3627000","STATION EQUIPMENT-SUPERVISORY & ALARM","OR",139.75448,0,139.75448,0,0,0,0,0,0,0,0,0,0,0]
["4030000","DEPN EXPENSE-ELECT","3627000","STATION EQUIPMENT-SUPERVISORY & ALARM","UT",201.01521,0,0,0,0,0,0,0,201.01521,0,0,0,0,0]
["4030000","DEPN EXPENSE-ELECT","3627000","STATION EQUIPMENT-SUPERVISORY & ALARM","WA",38.847279999999998,0,0,38.847279999999998,0,0,0,0,0,0,0,0,0,0]
["4030000","DEPN EXPENSE-ELECT","3627000","STATION EQUIPMENT-SUPERVISORY & ALARM","WYP",74.176789999999997,0,0,0,0,0,74.176789999999997,74.176789999999997,0,0,0,0,0,0]
["4030000","DEPN EXPENSE-ELECT","3627000","STATION EQUIPMENT-SUPERVISORY & ALARM","WYU",3.1420300000000001,0,0,0,0,0,3.1420300000000001,0,0,0,3.1420300000000001,0,0,0]
["4030000","DEPN EXPENSE-ELECT","3640000","\"POLES, TOWERS AND FIXTURES\"","CA",2167.6164699999999,2167.6164699999999,0,0,0,0,0,0,0,0,0,0,0,0]
["4030000","DEPN EXPENSE-ELECT","3640000","\"POLES, TOWERS AND FIXTURES\"","IDU",2463.7831900000001,0,0,0,0,0,0,0,0,2463.7831900000001,0,0,0,0]
["4030000","DEPN EXPENSE-ELECT","3640000","\"POLES, TOWERS AND FIXTURES\"","OR",13263.512290000001,0,13263.512290000001,0,0,0,0,0,0,0,0,0,0,0]
["4030000","DEPN EXPENSE-ELECT","3640000","\"POLES, TOWERS AND FIXTURES\"","UT",11598.755370000001,0,0,0,0,0,0,0,11598.755370000001,0,0,0,0,0]
["4030000","DEPN EXPENSE-ELECT","3640000","\"POLES, TOWERS AND FIXTURES\"","WA",3863.51514,0,0,3863.51514,0,0,0,0,0,0,0,0,0,0]
["4030000","DEPN EXPENSE-ELECT","3640000","\"POLES, TOWERS AND FIXTURES\"","WYP",3457.5448900000001,0,0,0,0,0,3457.5448900000001,3457.5448900000001,0,0,0,0,0,0]
["4030000","DEPN EXPENSE-ELECT","3640000","\"POLES, TOWERS AND FIXTURES\"","WYU",737.01009999999997,0,0,0,0,0,737.01009999999997,0,0,0,737.01009999999997,0,0,0]
["4030000","DEPN EXPENSE-ELECT","3650000","OVERHEAD CONDUCTORS & DEVICES","CA",1028.43878,1028.43878,0,0,0,0,0,0,0,0,0,0,0,0]
["4030000","DEPN EXPENSE-ELECT","3650000","OVERHEAD CONDUCTORS & DEVICES","IDU",993.84923000000003,0,0,0,0,0,0,0,0,993.84923000000003,0,0,0,0]
["4030000","DEPN EXPENSE-ELECT","3650000","OVERHEAD CONDUCTORS & DEVICES","OR",7206.14077,0,7206.14077,0,0,0,0,0,0,0,0,0,0,0]
["4030000","DEPN EXPENSE-ELECT","3650000","OVERHEAD CONDUCTORS & DEVICES","UT",6759.3539499999997,0,0,0,0,0,0,0,6759.3539499999997,0,0,0,0,0]
["4030000","DEPN EXPENSE-ELECT","3650000","OVERHEAD CONDUCTORS & DEVICES","WA",1752.1594700000001,0,0,1752.1594700000001,0,0,0,0,0,0,0,0,0,0]
["4030000","DEPN EXPENSE-ELECT","3650000","OVERHEAD CONDUCTORS & DEVICES","WYP",2317.8050800000001,0,0,0,0,0,2317.8050800000001,2317.8050800000001,0,0,0,0,0,0]
["4030000","DEPN EXPENSE-ELECT","3650000","OVERHEAD CONDUCTORS & DEVICES","WYU",333.70857000000001,0,0,0,0,0,333.70857000000001,0,0,0,333.70857000000001,0,0,0]
["4030000","DEPN EXPENSE-ELECT","3660000","UNDERGROUND CONDUIT","CA",481.35928999999999,481.35928999999999,0,0,0,0,0,0,0,0,0,0,0,0]
["4030000","DEPN EXPENSE-ELECT","3660000","UNDERGROUND CONDUIT","IDU",179.71075999999999,0,0,0,0,0,0,0,0,179.71075999999999,0,0,0,0]
["4030000","DEPN EXPENSE-ELECT","3660000","UNDERGROUND CONDUIT","OR",2249.7507599999999,0,2249.7507599999999,0,0,0,0,0,0,0,0,0,0,0]
["4030000","DEPN EXPENSE-ELECT","3660000","UNDERGROUND CONDUIT","UT",4007.15265,0,0,0,0,0,0,0,4007.15265,0,0,0,0,0]
["4030000","DEPN EXPENSE-ELECT","3660000","UNDERGROUND CONDUIT","WA",727.48310000000004,0,0,727.48310000000004,0,0,0,0,0,0,0,0,0,0]
["4030000","DEPN EXPENSE-ELECT","3660000","UNDERGROUND CONDUIT","WYP",614.49614999999994,0,0,0,0,0,614.49614999999994,614.49614999999994,0,0,0,0,0,0]
["4030000","DEPN EXPENSE-ELECT","3660000","UNDERGROUND CONDUIT","WYU",155.11376000000001,0,0,0,0,0,155.11376000000001,0,0,0,155.11376000000001,0,0,0]
["4030000","DEPN EXPENSE-ELECT","3670000","UNDERGROUND CONDUCTORS & DEVICES","CA",423.61160999999998,423.61160999999998,0,0,0,0,0,0,0,0,0,0,0,0]
["4030000","DEPN EXPENSE-ELECT","3670000","UNDERGROUND CONDUCTORS & DEVICES","IDU",506.44448999999997,0,0,0,0,0,0,0,0,506.44448999999997,0,0,0,0]
["4030000","DEPN EXPENSE-ELECT","3670000","UNDERGROUND CONDUCTORS & DEVICES","OR",3936.8490099999999,0,3936.8490099999999,0,0,0,0,0,0,0,0,0,0,0]
["4030000","DEPN EXPENSE-ELECT","3670000","UNDERGROUND CONDUCTORS & DEVICES","UT",11267.664140000001,0,0,0,0,0,0,0,11267.664140000001,0,0,0,0,0]
["4030000","DEPN EXPENSE-ELECT","3670000","UNDERGROUND CONDUCTORS & DEVICES","WA",677.58218999999997,0,0,677.58218999999997,0,0,0,0,0,0,0,0,0,0]
["4030000","DEPN EXPENSE-ELECT","3670000","UNDERGROUND CONDUCTORS & DEVICES","WYP",1204.0224599999999,0,0,0,0,0,1204.0224599999999,1204.0224599999999,0,0,0,0,0,0]
["4030000","DEPN EXPENSE-ELECT","3670000","UNDERGROUND CONDUCTORS & DEVICES","WYU",586.51444000000004,0,0,0,0,0,586.51444000000004,0,0,0,586.51444000000004,0,0,0]
["4030000","DEPN EXPENSE-ELECT","3680000","LINE TRANSFORMERS","CA",1234.2479499999999,1234.2479499999999,0,0,0,0,0,0,0,0,0,0,0,0]
["4030000","DEPN EXPENSE-ELECT","3680000","LINE TRANSFORMERS","IDU",1566.8702599999999,0,0,0,0,0,0,0,0,1566.8702599999999,0,0,0,0]
["4030000","DEPN EXPENSE-ELECT","3680000","LINE TRANSFORMERS","OR",11555.59942,0,11555.59942,0,0,0,0,0,0,0,0,0,0,0]
["4030000","DEPN EXPENSE-ELECT","3680000","LINE TRANSFORMERS","UT",9293.1317400000007,0,0,0,0,0,0,0,9293.1317400000007,0,0,0,0,0]
["4030000","DEPN EXPENSE-ELECT","3680000","LINE TRANSFORMERS","WA",2911.8179799999998,0,0,2911.8179799999998,0,0,0,0,0,0,0,0,0,0]
["4030000","DEPN EXPENSE-ELECT","3680000","LINE TRANSFORMERS","WYP",2632.0715599999999,0,0,0,0,0,2632.0715599999999,2632.0715599999999,0,0,0,0,0,0]
["4030000","DEPN EXPENSE-ELECT","3680000","LINE TRANSFORMERS","WYU",406.68284999999997,0,0,0,0,0,406.68284999999997,0,0,0,406.68284999999997,0,0,0]
["4030000","DEPN EXPENSE-ELECT","3691000","SERVICES - OVERHEAD","CA",156.33457000000001,156.33457000000001,0,0,0,0,0,0,0,0,0,0,0,0]
["4030000","DEPN EXPENSE-ELECT","3691000","SERVICES - OVERHEAD","IDU",136.90615,0,0,0,0,0,0,0,0,136.90615,0,0,0,0]
["4030000","DEPN EXPENSE-ELECT","3691000","SERVICES - OVERHEAD","OR",1450.47191,0,1450.47191,0,0,0,0,0,0,0,0,0,0,0]
["4030000","DEPN EXPENSE-ELECT","3691000","SERVICES - OVERHEAD","UT",1345.3469399999999,0,0,0,0,0,0,0,1345.3469399999999,0,0,0,0,0]
["4030000","DEPN EXPENSE-ELECT","3691000","SERVICES - OVERHEAD","WA",436.11795000000001,0,0,436.11795000000001,0,0,0,0,0,0,0,0,0,0]
["4030000","DEPN EXPENSE-ELECT","3691000","SERVICES - OVERHEAD","WYP",267.81547,0,0,0,0,0,267.81547,267.81547,0,0,0,0,0,0]
["4030000","DEPN EXPENSE-ELECT","3691000","SERVICES - OVERHEAD","WYU",41.885599999999997,0,0,0,0,0,41.885599999999997,0,0,0,41.885599999999997,0,0,0]
["4030000","DEPN EXPENSE-ELECT","3692000","SERVICES - UNDERGROUND","CA",268.60248000000001,268.60248000000001,0,0,0,0,0,0,0,0,0,0,0,0]
["4030000","DEPN EXPENSE-ELECT","3692000","SERVICES - UNDERGROUND","IDU",467.48554000000001,0,0,0,0,0,0,0,0,467.48554000000001,0,0,0,0]
["4030000","DEPN EXPENSE-ELECT","3692000","SERVICES - UNDERGROUND","OR",3321.3455899999999,0,3321.3455899999999,0,0,0,0,0,0,0,0,0,0,0]
["4030000","DEPN EXPENSE-ELECT","3692000","SERVICES - UNDERGROUND","UT",2960.58014,0,0,0,0,0,0,0,2960.58014,0,0,0,0,0]
["4030000","DEPN EXPENSE-ELECT","3692000","SERVICES - UNDERGROUND","WA",878.11455000000001,0,0,878.11455000000001,0,0,0,0,0,0,0,0,0,0]
["4030000","DEPN EXPENSE-ELECT","3692000","SERVICES - UNDERGROUND","WYP",792.50728000000004,0,0,0,0,0,792.50728000000004,792.50728000000004,0,0,0,0,0,0]
["4030000","DEPN EXPENSE-ELECT","3692000","SERVICES - UNDERGROUND","WYU",251.90034,0,0,0,0,0,251.90034,0,0,0,251.90034,0,0,0]
["4030000","DEPN EXPENSE-ELECT","3700000","METERS","CA",183.92643000000001,183.92643000000001,0,0,0,0,0,0,0,0,0,0,0,0]
["4030000","DEPN EXPENSE-ELECT","3700000","METERS","IDU",435.25891999999999,0,0,0,0,0,0,0,0,435.25891999999999,0,0,0,0]
["4030000","DEPN EXPENSE-ELECT","3700000","METERS","OR",2170.4176200000002,0,2170.4176200000002,0,0,0,0,0,0,0,0,0,0,0]
["4030000","DEPN EXPENSE-ELECT","3700000","METERS","UT",2405.3174399999998,0,0,0,0,0,0,0,2405.3174399999998,0,0,0,0,0]
["4030000","DEPN EXPENSE-ELECT","3700000","METERS","WA",439.55327999999997,0,0,439.55327999999997,0,0,0,0,0,0,0,0,0,0]
["4030000","DEPN EXPENSE-ELECT","3700000","METERS","WYP",425.95605,0,0,0,0,0,425.95605,425.95605,0,0,0,0,0,0]
["4030000","DEPN EXPENSE-ELECT","3700000","METERS","WYU",77.092489999999998,0,0,0,0,0,77.092489999999998,0,0,0,77.092489999999998,0,0,0]
["4030000","DEPN EXPENSE-ELECT","3710000","INSTALL ON CUSTOMERS PREMISES","CA",12.993830000000001,12.993830000000001,0,0,0,0,0,0,0,0,0,0,0,0]
["4030000","DEPN EXPENSE-ELECT","3710000","INSTALL ON CUSTOMERS PREMISES","IDU",7.6989799999999997,0,0,0,0,0,0,0,0,7.6989799999999997,0,0,0,0]
["4030000","DEPN EXPENSE-ELECT","3710000","INSTALL ON CUSTOMERS PREMISES","OR",121.29978,0,121.29978,0,0,0,0,0,0,0,0,0,0,0]
["4030000","DEPN EXPENSE-ELECT","3710000","INSTALL ON CUSTOMERS PREMISES","UT",268.39661999999998,0,0,0,0,0,0,0,268.39661999999998,0,0,0,0,0]
["4030000","DEPN EXPENSE-ELECT","3710000","INSTALL ON CUSTOMERS PREMISES","WA",19.059249999999999,0,0,19.059249999999999,0,0,0,0,0,0,0,0,0,0]
["4030000","DEPN EXPENSE-ELECT","3710000","INSTALL ON CUSTOMERS PREMISES","WYP",47.172600000000003,0,0,0,0,0,47.172600000000003,47.172600000000003,0,0,0,0,0,0]
["4030000","DEPN EXPENSE-ELECT","3710000","INSTALL ON CUSTOMERS PREMISES","WYU",9.0464400000000005,0,0,0,0,0,9.0464400000000005,0,0,0,9.0464400000000005,0,0,0]
["4030000","DEPN EXPENSE-ELECT","3730000","STREET LIGHTING & SIGNAL SYSTEMS","CA",21.05265,21.05265,0,0,0,0,0,0,0,0,0,0,0,0]
["4030000","DEPN EXPENSE-ELECT","3730000","STREET LIGHTING & SIGNAL SYSTEMS","IDU",30.046430000000001,0,0,0,0,0,0,0,0,30.046430000000001,0,0,0,0]
["4030000","DEPN EXPENSE-ELECT","3730000","STREET LIGHTING & SIGNAL SYSTEMS","OR",685.25151000000005,0,685.25151000000005,0,0,0,0,0,0,0,0,0,0,0]
["4030000","DEPN EXPENSE-ELECT","3730000","STREET LIGHTING & SIGNAL SYSTEMS","UT",1009.48754,0,0,0,0,0,0,0,1009.48754,0,0,0,0,0]
["4030000","DEPN EXPENSE-ELECT","3730000","STREET LIGHTING & SIGNAL SYSTEMS","WA",129.19472999999999,0,0,129.19472999999999,0,0,0,0,0,0,0,0,0,0]
["4030000","DEPN EXPENSE-ELECT","3730000","STREET LIGHTING & SIGNAL SYSTEMS","WYP",219.51282,0,0,0,0,0,219.51282,219.51282,0,0,0,0,0,0]
["4030000","DEPN EXPENSE-ELECT","3730000","STREET LIGHTING & SIGNAL SYSTEMS","WYU",62.53192,0,0,0,0,0,62.53192,0,0,0,62.53192,0,0,0]
["4030000","DEPN EXPENSE-ELECT","3892000","LAND RIGHTS","IDU",9.7839999999999996E-2,0,0,0,0,0,0,0,0,9.7839999999999996E-2,0,0,0,0]
["4030000","DEPN EXPENSE-ELECT","3892000","LAND RIGHTS","SG",2.8490000000000001E-2,4.4742359624452057E-4,7.4136626918286088E-3,2.2385317558542362E-3,0,0,4.5488838044033279E-3,3.5863155689638149E-3,1.2144807558894716E-2,1.5883495299375905E-3,9.6256823543951328E-4,1.0834106283700319E-4,0,0]
["4030000","DEPN EXPENSE-ELECT","3892000","LAND RIGHTS","UT",1.9510099999999999,0,0,0,0,0,0,0,1.9510099999999999,0,0,0,0,0]
["4030000","DEPN EXPENSE-ELECT","3892000","LAND RIGHTS","WYP",1.05202,0,0,0,0,0,1.05202,1.05202,0,0,0,0,0,0]
["4030000","DEPN EXPENSE-ELECT","3892000","LAND RIGHTS","WYU",0.43963000000000002,0,0,0,0,0,0.43963000000000002,0,0,0,0.43963000000000002,0,0,0]
["4030000","DEPN EXPENSE-ELECT","3900000","STRUCTURES AND IMPROVEMENTS","CA",43.443089999999998,43.443089999999998,0,0,0,0,0,0,0,0,0,0,0,0]
["4030000","DEPN EXPENSE-ELECT","3900000","STRUCTURES AND IMPROVEMENTS","CN",174.507460000001,4.5008781226920433,55.696982225004945,12.610562463692162,0,0,13.878188782242662,12.297868682499308,80.4984366915876,7.3224117147815981,1.580320099743354,0,0,0]
["4030000","DEPN EXPENSE-ELECT","3900000","STRUCTURES AND IMPROVEMENTS","IDU",216.27253999999999,0,0,0,0,0,0,0,0,216.27253999999999,0,0,0,0]
["4030000","DEPN EXPENSE-ELECT","3900000","STRUCTURES AND IMPROVEMENTS","OR",640.22862999999995,0,640.22862999999995,0,0,0,0,0,0,0,0,0,0,0]
["4030000","DEPN EXPENSE-ELECT","3900000","STRUCTURES AND IMPROVEMENTS","SE",0.12189,1.8216171266325911E-3,3.020168765688205E-2,9.1057112087352052E-3,0,0,2.1475925650924859E-2,1.6750015800112091E-2,5.1159332765376618E-2,7.6496315609626258E-3,4.725909850812767E-3,4.7609403048604466E-4,0,0]
["4030000","DEPN EXPENSE-ELECT","3900000","STRUCTURES AND IMPROVEMENTS","SG",164.15978000000999,2.5780610433946576,42.717628518247324,12.898451406250175,0,0,26.210732347366051,20.664400660291697,69.978551667624245,9.1520922919506535,5.5463316870743524,0.62426272517689363,0,0]
["4030000","DEPN EXPENSE-ELECT","3900000","STRUCTURES AND IMPROVEMENTS","SO",1680.57385000003,36.825150131622578,458.09738631762826,128.91268759696163,0,0,245.85915290174916,196.60700292875836,713.74450436559516,92.49112858380019,49.2521499729908,4.6438401026731926,0,0]
["4030000","DEPN EXPENSE-ELECT","3900000","STRUCTURES AND IMPROVEMENTS","UT",896.34340999999995,0,0,0,0,0,0,0,896.34340999999995,0,0,0,0,0]
["4030000","DEPN EXPENSE-ELECT","3900000","STRUCTURES AND IMPROVEMENTS","WA",417.88769000000002,0,0,417.88769000000002,0,0,0,0,0,0,0,0,0,0]
["4030000","DEPN EXPENSE-ELECT","3900000","STRUCTURES AND IMPROVEMENTS","WYP",166.48510999999999,0,0,0,0,0,166.48510999999999,166.48510999999999,0,0,0,0,0,0]
["4030000","DEPN EXPENSE-ELECT","3900000","STRUCTURES AND IMPROVEMENTS","WYU",117.23336999999999,0,0,0,0,0,117.23336999999999,0,0,0,117.23336999999999,0,0,0]
["4030000","DEPN EXPENSE-ELECT","3903000","STRUCTURES & IMPROVEMENTS - PANELS","CA",-2.552,-2.552,0,0,0,0,0,0,0,0,0,0,0,0]
["4030000","DEPN EXPENSE-ELECT","3903000","STRUCTURES & IMPROVEMENTS - PANELS","CN",-7.3873600000000001,-0.1905340150412487,-2.3577998247737386,-0.53383829391465776,0,0,-0.58750025175077081,-0.52060114329981977,-3.407710657630127,-0.3099769568894572,-6.6899108450951025E-2,0,0,0]
["4030000","DEPN EXPENSE-ELECT","3903000","STRUCTURES & IMPROVEMENTS - PANELS","IDU",0.63127,0,0,0,0,0,0,0,0,0.63127,0,0,0,0]
["4030000","DEPN EXPENSE-ELECT","3903000","STRUCTURES & IMPROVEMENTS - PANELS","OR",-13.424200000000001,0,-13.424200000000001,0,0,0,0,0,0,0,0,0,0,0]
["4030000","DEPN EXPENSE-ELECT","3903000","STRUCTURES & IMPROVEMENTS - PANELS","SG",-2.2762600000000002,-3.5747716222799313E-2,-0.59232796907342189,-0.17885153719132202,0,0,-0.3634412863675367,-0.28653515889819492,-0.97033133218707213,-0.12690405408970656,-7.6906127469341751E-2,-8.6561048681416952E-3,0,0]
["4030000","DEPN EXPENSE-ELECT","3903000","STRUCTURES & IMPROVEMENTS - PANELS","SO",-355.28976999999998,-7.7851973720044629,-96.846273683473285,-27.253404619145734,0,0,-51.977032658728881,-41.564645820799029,-150.89257802911294,-19.553530362011884,-10.41238683792985,-0.98175327552282543,0,0]
["4030000","DEPN EXPENSE-ELECT","3903000","STRUCTURES & IMPROVEMENTS - PANELS","UT",-5.7571300000000001,0,0,0,0,0,0,0,-5.7571300000000001,0,0,0,0,0]
["4030000","DEPN EXPENSE-ELECT","3903000","STRUCTURES & IMPROVEMENTS - PANELS","WA",-0.62243000000000004,0,0,-0.62243000000000004,0,0,0,0,0,0,0,0,0,0]
["4030000","DEPN EXPENSE-ELECT","3903000","STRUCTURES & IMPROVEMENTS - PANELS","WYP",-8.2716499999999993,0,0,0,0,0,-8.2716499999999993,-8.2716499999999993,0,0,0,0,0,0]
["4030000","DEPN EXPENSE-ELECT","3903000","STRUCTURES & IMPROVEMENTS - PANELS","WYU",-0.20871999999999999,0,0,0,0,0,-0.20871999999999999,0,0,0,-0.20871999999999999,0,0,0]
["4030000","DEPN EXPENSE-ELECT","3910000","OFFICE FURNITURE","CA",7.3990299999999998,7.3990299999999998,0,0,0,0,0,0,0,0,0,0,0,0]
["4030000","DEPN EXPENSE-ELECT","3910000","OFFICE FURNITURE","CN",141.71593000000101,3.6551224169669192,45.23101553486628,10.240923725353795,0,0,11.270351594087089,9.9869879336864251,65.372052399905854,5.9464643288210732,1.2833636604006642,0,0,0]
["4030000","DEPN EXPENSE-ELECT","3910000","OFFICE FURNITURE","IDU",1.7287300000000001,0,0,0,0,0,0,0,0,1.7287300000000001,0,0,0,0]
["4030000","DEPN EXPENSE-ELECT","3910000","OFFICE FURNITURE","OR",78.907470000000004,0,78.907470000000004,0,0,0,0,0,0,0,0,0,0,0]
["4030000","DEPN EXPENSE-ELECT","3910000","OFFICE FURNITURE","SG",79.937790000000007,1.2553897324548711,20.801397381194459,6.2809154583294919,0,0,12.763345675352557,10.06255320553036,34.076134651924832,4.4566216627149817,2.7007924698221961,0.30398543802882294,0,0]
["4030000","DEPN EXPENSE-ELECT","3910000","OFFICE FURNITURE","SO",1243.7039200000399,27.252348103172125,339.01367387395487,95.401469505240044,0,0,181.94737007944588,145.49845592441636,528.20459985020022,68.44779786672153,36.448914155029499,3.4366607213053655,0,0]
["4030000","DEPN EXPENSE-ELECT","3910000","OFFICE FURNITURE","UT",22.648589999999999,0,0,0,0,0,0,0,22.648589999999999,0,0,0,0,0]
["4030000","DEPN EXPENSE-ELECT","3910000","OFFICE FURNITURE","WA",27.26972,0,0,27.26972,0,0,0,0,0,0,0,0,0,0]
["4030000","DEPN EXPENSE-ELECT","3910000","OFFICE FURNITURE","WYP",29.170590000000001,0,0,0,0,0,29.170590000000001,29.170590000000001,0,0,0,0,0,0]
["4030000","DEPN EXPENSE-ELECT","3910000","OFFICE FURNITURE","WYU",0.55820000000000003,0,0,0,0,0,0.55820000000000003,0,0,0,0.55820000000000003,0,0,0]
["4030000","DEPN EXPENSE-ELECT","3912000","COMPUTER EQUIPMENT - PERSONAL COMPUTERS","CA",33.19659,33.19659,0,0,0,0,0,0,0,0,0,0,0,0]
["4030000","DEPN EXPENSE-ELECT","3912000","COMPUTER EQUIPMENT - PERSONAL COMPUTERS","CN",1210.3909699999999,31.218277068366991,386.31657547130709,87.467383530044259,0,0,96.25969217580564,85.298526513095041,558.34049083410957,50.78855092036644,10.961165662710602,0,0,0]
["4030000","DEPN EXPENSE-ELECT","3912000","COMPUTER EQUIPMENT - PERSONAL COMPUTERS","IDU",125.99861,0,0,0,0,0,0,0,0,125.99861,0,0,0,0]
["4030000","DEPN EXPENSE-ELECT","3912000","COMPUTER EQUIPMENT - PERSONAL COMPUTERS","OR",308.85207000000003,0,308.85207000000003,0,0,0,0,0,0,0,0,0,0,0]
["4030000","DEPN EXPENSE-ELECT","3912000","COMPUTER EQUIPMENT - PERSONAL COMPUTERS","SE",7.7556399999999996,0.11590619945850184,1.9216787009534884,0.57937991696542046,0,0,1.3664742638062095,1.0657731769626824,3.2551757122689762,0.48673220542673051,0.30070108684352714,3.0293001120672635E-2,0,0]
["4030000","DEPN EXPENSE-ELECT","3912000","COMPUTER EQUIPMENT - PERSONAL COMPUTERS","SG",378.546770000013,5.9449195219428992,98.50537261710501,29.743382440192306,0,0,60.441041462346462,47.65139258799617,161.36811771468365,21.104408009438885,12.78964887435029,1.4395282343038258,0,0]
["4030000","DEPN EXPENSE-ELECT","3912000","COMPUTER EQUIPMENT - PERSONAL COMPUTERS","SO",8449.1835800001099,185.14060171954887,2303.1114726174055,648.1160963547735,0,0,1236.0713084344127,988.45323629108532,3588.392349792302,465.00457264993707,247.61807214332728,23.347178431731319,0,0]
["4030000","DEPN EXPENSE-ELECT","3912000","COMPUTER EQUIPMENT - PERSONAL COMPUTERS","UT",448.39062000000001,0,0,0,0,0,0,0,448.39062000000001,0,0,0,0,0]
["4030000","DEPN EXPENSE-ELECT","3912000","COMPUTER EQUIPMENT - PERSONAL COMPUTERS","WA",162.35120000000001,0,0,162.35120000000001,0,0,0,0,0,0,0,0,0,0]
["4030000","DEPN EXPENSE-ELECT","3912000","COMPUTER EQUIPMENT - PERSONAL COMPUTERS","WYP",494.24205999999998,0,0,0,0,0,494.24205999999998,494.24205999999998,0,0,0,0,0,0]
["4030000","DEPN EXPENSE-ELECT","3912000","COMPUTER EQUIPMENT - PERSONAL COMPUTERS","WYU",18.110389999999999,0,0,0,0,0,18.110389999999999,0,0,0,18.110389999999999,0,0,0]
["4030000","DEPN EXPENSE-ELECT","3913000","OFFICE EQUIPMENT","CA",0.73650000000000004,0.73650000000000004,0,0,0,0,0,0,0,0,0,0,0,0]
["4030000","DEPN EXPENSE-ELECT","3913000","OFFICE EQUIPMENT","CN",0.8014,2.0669624825926543E-2,0.25578024890809087,5.7912164662776253E-2,0,0,6.373355322511258E-2,5.6476164183209637E-2,0.36967730299116108,3.3627105386932678E-2,7.2573890419029459E-3,0,0,0]
["4030000","DEPN EXPENSE-ELECT","3913000","OFFICE EQUIPMENT","IDU",4.2561400000000003,0,0,0,0,0,0,0,0,4.2561400000000003,0,0,0,0]
["4030000","DEPN EXPENSE-ELECT","3913000","OFFICE EQUIPMENT","OR",59.052160000000001,0,59.052160000000001,0,0,0,0,0,0,0,0,0,0,0]
["4030000","DEPN EXPENSE-ELECT","3913000","OFFICE EQUIPMENT","SG",140.98814999999999,2.2141602352004877,36.687911114248351,11.077797506989835,0,0,22.511011307398633,17.747560455753092,60.100875740069561,7.8602478687002622,4.7634508516455387,0.53614622739286866,0,0]
["4030000","DEPN EXPENSE-ELECT","3913000","OFFICE EQUIPMENT","SO",196.13320000000101,4.2977192200125369,53.462753981392432,15.044895491496595,0,0,28.693259988490677,22.945234228669129,83.298329093741614,10.794277812160393,5.748025759821549,0.54196441270677298,0,0]
["4030000","DEPN EXPENSE-ELECT","3913000","OFFICE EQUIPMENT","UT",27.131119999999999,0,0,0,0,0,0,0,27.131119999999999,0,0,0,0,0]
["4030000","DEPN EXPENSE-ELECT","3913000","OFFICE EQUIPMENT","WA",13.47612,0,0,13.47612,0,0,0,0,0,0,0,0,0,0]
["4030000","DEPN EXPENSE-ELECT","3913000","OFFICE EQUIPMENT","WYP",13.490030000000001,0,0,0,0,0,13.490030000000001,13.490030000000001,0,0,0,0,0,0]
["4030000","DEPN EXPENSE-ELECT","3913000","OFFICE EQUIPMENT","WYU",2.8489,0,0,0,0,0,2.8489,0,0,0,2.8489,0,0,0]
["4030000","DEPN EXPENSE-ELECT","3930000","STORES EQUIPMENT","CA",7.2457700000000003,7.2457700000000003,0,0,0,0,0,0,0,0,0,0,0,0]
["4030000","DEPN EXPENSE-ELECT","3930000","STORES EQUIPMENT","IDU",17.601230000000001,0,0,0,0,0,0,0,0,17.601230000000001,0,0,0,0]
["4030000","DEPN EXPENSE-ELECT","3930000","STORES EQUIPMENT","OR",144.93453,0,144.93453,0,0,0,0,0,0,0,0,0,0,0]
["4030000","DEPN EXPENSE-ELECT","3930000","STORES EQUIPMENT","SG",223.015600000007,3.5023672085164139,58.03307944597487,17.522902865949515,0,0,35.608004597027822,28.073159649063939,95.06779728436382,12.43337042571993,7.534844947963883,0.84807817245464112,0,0]
["4030000","DEPN EXPENSE-ELECT","3930000","STORES EQUIPMENT","SO",16.015640000000001,0.35093866744029689,4.3656057269985071,1.2285203628423504,0,0,2.3430042563016791,1.8736379721640222,6.8018879586265113,0.88142786381677141,0.46936628413765713,4.4255163973886402E-2,0,0]
["4030000","DEPN EXPENSE-ELECT","3930000","STORES EQUIPMENT","UT",152.79495,0,0,0,0,0,0,0,152.79495,0,0,0,0,0]
["4030000","DEPN EXPENSE-ELECT","3930000","STORES EQUIPMENT","WA",28.004740000000002,0,0,28.004740000000002,0,0,0,0,0,0,0,0,0,0]
["4030000","DEPN EXPENSE-ELECT","3930000","STORES EQUIPMENT","WYP",50.499670000000002,0,0,0,0,0,50.499670000000002,50.499670000000002,0,0,0,0,0,0]
["4030000","DEPN EXPENSE-ELECT","3930000","STORES EQUIPMENT","WYU",2.4154,0,0,0,0,0,2.4154,0,0,0,2.4154,0,0,0]
["4030000","DEPN EXPENSE-ELECT","3940000","\"TLS, SHOP, GAR EQUIPMENT\"","CA",25.141190000000002,25.141190000000002,0,0,0,0,0,0,0,0,0,0,0,0]
["4030000","DEPN EXPENSE-ELECT","3940000","\"TLS, SHOP, GAR EQUIPMENT\"","IDU",84.023060000000001,0,0,0,0,0,0,0,0,84.023060000000001,0,0,0,0]
["4030000","DEPN EXPENSE-ELECT","3940000","\"TLS, SHOP, GAR EQUIPMENT\"","OR",467.28185000000002,0,467.28185000000002,0,0,0,0,0,0,0,0,0,0,0]
["4030000","DEPN EXPENSE-ELECT","3940000","\"TLS, SHOP, GAR EQUIPMENT\"","SE",0.30848999999999999,4.6103098481818693E-3,7.6437104153511723E-2,2.3045539837416713E-2,0,0,5.4353173386281151E-2,4.2392422464325043E-2,0.12947856727205703,1.9360364593004845E-2,1.1960750921956111E-2,1.2049409095466397E-3,0,0]
["4030000","DEPN EXPENSE-ELECT","3940000","\"TLS, SHOP, GAR EQUIPMENT\"","SG",1121.4308600000199,17.61160506566495,291.81853732002173,88.113674696559173,0,0,179.05435861046638,141.16549500647778,478.04710373134583,62.521031215813949,37.88886360398859,4.2645493601480053,0,0]
["4030000","DEPN EXPENSE-ELECT","3940000","\"TLS, SHOP, GAR EQUIPMENT\"","SO",183.90279999999899,4.0297236682729549,50.128943763162539,14.106731581361903,0,0,26.904016520463372,21.514423979765017,78.10404335247874,10.121172313683502,5.3895925406983576,0.50816880057598646,0,0]
["4030000","DEPN EXPENSE-ELECT","3940000","\"TLS, SHOP, GAR EQUIPMENT\"","UT",565.64457000000004,0,0,0,0,0,0,0,565.64457000000004,0,0,0,0,0]
["4030000","DEPN EXPENSE-ELECT","3940000","\"TLS, SHOP, GAR EQUIPMENT\"","WA",107.86011000000001,0,0,107.86011000000001,0,0,0,0,0,0,0,0,0,0]
["4030000","DEPN EXPENSE-ELECT","3940000","\"TLS, SHOP, GAR EQUIPMENT\"","WYP",182.48629,0,0,0,0,0,182.48629,182.48629,0,0,0,0,0,0]
["4030000","DEPN EXPENSE-ELECT","3940000","\"TLS, SHOP, GAR EQUIPMENT\"","WYU",21.958909999999999,0,0,0,0,0,21.958909999999999,0,0,0,21.958909999999999,0,0,0]
["4030000","DEPN EXPENSE-ELECT","3950000","LABORATORY EQUIPMENT","CA",18.648859999999999,18.648859999999999,0,0,0,0,0,0,0,0,0,0,0,0]
["4030000","DEPN EXPENSE-ELECT","3950000","LABORATORY EQUIPMENT","IDU",68.44238,0,0,0,0,0,0,0,0,68.44238,0,0,0,0]
["4030000","DEPN EXPENSE-ELECT","3950000","LABORATORY EQUIPMENT","OR",529.19105999999999,0,529.19105999999999,0,0,0,0,0,0,0,0,0,0,0]
["4030000","DEPN EXPENSE-ELECT","3950000","LABORATORY EQUIPMENT","SE",0.24578,3.6731237786837168E-3,6.0898931760673319E-2,1.8360831084444487E-2,0,0,4.3304233378327277E-2,3.3774869828136433E-2,0.10315809998420104,1.5424780089042533E-2,9.5293635501908433E-3,9.5999992462761558E-4,0,0]
["4030000","DEPN EXPENSE-ELECT","3950000","LABORATORY EQUIPMENT","SG",385.17969000001199,6.0490867708022096,100.23138987024211,30.264547833454447,0,0,61.500093142370972,48.486343246602274,164.19561988925477,21.474200756511962,13.013749895768699,1.464751737375525,0,0]
["4030000","DEPN EXPENSE-ELECT","3950000","LABORATORY EQUIPMENT","SO",273.44798000000401,5.9918598142467205,74.537518795639173,20.975522152602874,0,0,40.00400739633919,31.990137062243878,116.13413653608411,15.049331083641663,8.0138703340953121,0.75560422145029404,0,0]
["4030000","DEPN EXPENSE-ELECT","3950000","LABORATORY EQUIPMENT","UT",389.72230000000002,0,0,0,0,0,0,0,389.72230000000002,0,0,0,0,0]
["4030000","DEPN EXPENSE-ELECT","3950000","LABORATORY EQUIPMENT","WA",85.503360000000001,0,0,85.503360000000001,0,0,0,0,0,0,0,0,0,0]
["4030000","DEPN EXPENSE-ELECT","3950000","LABORATORY EQUIPMENT","WYP",142.63211999999999,0,0,0,0,0,142.63211999999999,142.63211999999999,0,0,0,0,0,0]
["4030000","DEPN EXPENSE-ELECT","3950000","LABORATORY EQUIPMENT","WYU",33.726550000000003,0,0,0,0,0,33.726550000000003,0,0,0,33.726550000000003,0,0,0]
["4030000","DEPN EXPENSE-ELECT","3970000","COMMUNICATION EQUIPMENT","CA",151.73683,151.73683,0,0,0,0,0,0,0,0,0,0,0,0]
["4030000","DEPN EXPENSE-ELECT","3970000","COMMUNICATION EQUIPMENT","CN",115.99281000000001,2.991674401303944,37.021050428436354,8.3820747596931877,0,0,9.2246492760985408,8.1742313222259053,53.506250520546772,4.867110613921211,1.0504179538726359,0,0,0]
["4030000","DEPN EXPENSE-ELECT","3970000","COMMUNICATION EQUIPMENT","IDU",295.64625999999998,0,0,0,0,0,0,0,0,295.64625999999998,0,0,0,0]
["4030000","DEPN EXPENSE-ELECT","3970000","COMMUNICATION EQUIPMENT","OR",1902.97876,0,1902.97876,0,0,0,0,0,0,0,0,0,0,0]
["4030000","DEPN EXPENSE-ELECT","3970000","COMMUNICATION EQUIPMENT","SE",7.0420699999999998,0.10524206513204996,1.7448715940429846,0.52607314571907393,0,0,1.2407496246501635,0.96771501981701014,2.9556780907956002,0.44194963431379175,0.27303460483315334,2.7505845346335718E-2,0,0]
["4030000","DEPN EXPENSE-ELECT","3970000","COMMUNICATION EQUIPMENT","SG",5288.5109400005604,83.053863936593217,1376.1753685928256,415.5317543128744,0,0,844.3952883249691,665.71671185536923,2254.4032165467252,294.84043052368179,178.67857646959988,20.111017762891521,0,0]
["4030000","DEPN EXPENSE-ELECT","3970000","COMMUNICATION EQUIPMENT","SO",2542.2172900001001,55.705694439705056,692.96752177865255,195.00723714662789,0,0,371.91307565067359,297.40896074313002,1079.6869293430548,139.91205816831859,74.504114907543595,7.024773473067798,0,0]
["4030000","DEPN EXPENSE-ELECT","3970000","COMMUNICATION EQUIPMENT","UT",1820.4082100000001,0,0,0,0,0,0,0,1820.4082100000001,0,0,0,0,0]
["4030000","DEPN EXPENSE-ELECT","3970000","COMMUNICATION EQUIPMENT","WA",626.68161999999995,0,0,626.68161999999995,0,0,0,0,0,0,0,0,0,0]
["4030000","DEPN EXPENSE-ELECT","3970000","COMMUNICATION EQUIPMENT","WYP",1220.0789299999999,0,0,0,0,0,1220.0789299999999,1220.0789299999999,0,0,0,0,0,0]
["4030000","DEPN EXPENSE-ELECT","3970000","COMMUNICATION EQUIPMENT","WYU",241.48894000000001,0,0,0,0,0,241.48894000000001,0,0,0,241.48894000000001,0,0,0]
["4030000","DEPN EXPENSE-ELECT","3972000","MOBILE RADIO EQUIPMENT","CA",21.007370000000002,21.007370000000002,0,0,0,0,0,0,0,0,0,0,0,0]
["4030000","DEPN EXPENSE-ELECT","3972000","MOBILE RADIO EQUIPMENT","IDU",32.942709999999998,0,0,0,0,0,0,0,0,32.942709999999998,0,0,0,0]
["4030000","DEPN EXPENSE-ELECT","3972000","MOBILE RADIO EQUIPMENT","OR",186.20060000000001,0,186.20060000000001,0,0,0,0,0,0,0,0,0,0,0]
["4030000","DEPN EXPENSE-ELECT","3972000","MOBILE RADIO EQUIPMENT","SE",7.2726600000000001,0.10868817796517992,1.8020067745893824,0.5432992179778503,0,0,1.2813775161576437,0.99940249330415298,3.0524606861058654,0.4564211130375786,0.28197502285349069,2.8406514166499613E-2,0,0]
["4030000","DEPN EXPENSE-ELECT","3972000","MOBILE RADIO EQUIPMENT","SG",285.56528000001703,4.4846839080442642,74.309745960607813,22.437590300085809,0,0,45.595060628009094,35.946901004547989,121.7316732573567,15.92058540731918,9.6481596234611064,1.0859405385941823,0,0]
["4030000","DEPN EXPENSE-ELECT","3972000","MOBILE RADIO EQUIPMENT","SO",40.598990000000001,0.88961511684965056,11.066631321280642,3.1142486922678678,0,0,5.9394196155476333,4.7495953515131086,17.242506775464367,2.2343834544744055,1.1898242640345249,0.11218502411543806,0,0]
["4030000","DEPN EXPENSE-ELECT","3972000","MOBILE RADIO EQUIPMENT","UT",224.06310999999999,0,0,0,0,0,0,0,224.06310999999999,0,0,0,0,0]
["4030000","DEPN EXPENSE-ELECT","3972000","MOBILE RADIO EQUIPMENT","WA",56.808239999999998,0,0,56.808239999999998,0,0,0,0,0,0,0,0,0,0]
["4030000","DEPN EXPENSE-ELECT","3972000","MOBILE RADIO EQUIPMENT","WYP",68.922780000000003,0,0,0,0,0,68.922780000000003,68.922780000000003,0,0,0,0,0,0]
["4030000","DEPN EXPENSE-ELECT","3972000","MOBILE RADIO EQUIPMENT","WYU",13.59897,0,0,0,0,0,13.59897,0,0,0,13.59897,0,0,0]
["4030000","DEPN EXPENSE-ELECT","3980000","MISCELLANEOUS EQUIPMENT","CA",2.5083000000000002,2.5083000000000002,0,0,0,0,0,0,0,0,0,0,0,0]
["4030000","DEPN EXPENSE-ELECT","3980000","MISCELLANEOUS EQUIPMENT","CN",11.79508,0.30421746742174899,3.7645975771036242,0.85235664483481277,0,0,0.9380363850442488,0.83122145574506157,5.4409450498689607,0.49492687572660582,0.10681492929918718,0,0,0]
["4030000","DEPN EXPENSE-ELECT","3980000","MISCELLANEOUS EQUIPMENT","IDU",2.7377500000000001,0,0,0,0,0,0,0,0,2.7377500000000001,0,0,0,0]
["4030000","DEPN EXPENSE-ELECT","3980000","MISCELLANEOUS EQUIPMENT","OR",56.82976,0,56.82976,0,0,0,0,0,0,0,0,0,0,0]
["4030000","DEPN EXPENSE-ELECT","3980000","MISCELLANEOUS EQUIPMENT","SE",9.1859999999999997E-2,1.3728259024732941E-3,2.27609076065402E-2,6.8623400741194178E-3,0,0,1.6184908772614304E-2,1.2623319808009655E-2,3.8555224446857786E-2,5.7649942996966675E-3,3.5615889646046497E-3,3.5879889769831864E-4,0,0]
["4030000","DEPN EXPENSE-ELECT","3980000","MISCELLANEOUS EQUIPMENT","SG",108.519250000002,1.7042496699459138,28.23885977782508,8.5266334589852342,0,0,17.326832530396807,13.660381741217398,46.259930069694967,6.0500701904767649,3.6664507891794074,0.41267430267724375,0,0]
["4030000","DEPN EXPENSE-ELECT","3980000","MISCELLANEOUS EQUIPMENT","SO",166.71029999999601,3.6529973532478701,45.442544939173317,12.787937181751849,0,0,24.388843809508732,19.50310748935717,70.802339597355214,9.1749754368385901,4.8857363201515627,0.46066168212045333,0,0]
["4030000","DEPN EXPENSE-ELECT","3980000","MISCELLANEOUS EQUIPMENT","UT",44.014830000000003,0,0,0,0,0,0,0,44.014830000000003,0,0,0,0,0]
["4030000","DEPN EXPENSE-ELECT","3980000","MISCELLANEOUS EQUIPMENT","WA",10.806940000000001,0,0,10.806940000000001,0,0,0,0,0,0,0,0,0,0]
["4030000","DEPN EXPENSE-ELECT","3980000","MISCELLANEOUS EQUIPMENT","WYP",7.7609700000000004,0,0,0,0,0,7.7609700000000004,7.7609700000000004,0,0,0,0,0,0]
["4030000","DEPN EXPENSE-ELECT","3980000","MISCELLANEOUS EQUIPMENT","WYU",1.1015600000000001,0,0,0,0,0,1.1015600000000001,0,0,0,1.1015600000000001,0,0,0]
["4030000 Total",null,null,null,null,{"$f":"SUBTOTAL(9,F37:F309)","v":567135.26506000513},13250.984335568703,158405.48503318563,45440.830076230195,0,0,83180.999238464719,66510.83277490233,235039.00999460457,30336.227191812173,16670.166463562415,1481.729190139891,0,0]
["4032000","DEPR - STEAM","565131","DEPR - PROD STEAM NOT CLASSIFIED","SG",24.13993,0.37910755681611052,6.281688256383088,1.896735692843045,0,0,3.8543256095623035,3.0387296171532698,10.290445922611067,1.3458282368629813,0.81559599240903358,9.1798724921406047E-2,0,0]
["4032000 Total",null,null,null,null,{"$f":"SUBTOTAL(9,F311:F311)","v":24.13993},0.37910755681611052,6.281688256383088,1.896735692843045,0,0,3.8543256095623035,3.0387296171532698,10.290445922611067,1.3458282368629813,0.81559599240903358,9.1798724921406047E-2,0,0]
["4033000","DEPR - HYDRO","565133","DEPR - PROD HYDRO NOT CLASSIFIED","SG-P",2228.1427100000101,34.992054203377201,579.80689649690999,175.07083934398523,0,0,355.75859204697741,280.47816394335774,949.81974119706138,124.22146107625078,75.280428103619684,8.4731256354482856,0,0]
["4033000","DEPR - HYDRO","565133","DEPR - PROD HYDRO NOT CLASSIFIED","SG-U",1351.01323,21.217100664813113,351.56042047798746,106.15254538203591,0,0,215.71085298285814,170.06527836521906,575.91420455846844,75.32050645173625,45.645574617639078,5.1375994821008293,0,0]
["4033000 Total",null,null,null,null,{"$f":"SUBTOTAL(9,F313:F314)","v":3579.1559400000101},56.209154868190311,931.36731697489745,281.22338472602115,0,0,571.46944502983558,450.5434423085768,1525.7339457555299,199.54196752798703,120.92600272125875,13.610725117549116,0,0]
["4034000","DEPR - OTHER","565134","DEPR - PROD OTHER NOT CLASSIFIED","SG",8.8240300000000005,0.13857771976025052,2.2961875044779361,0.69332647839980543,0,0,1.4088974080929835,1.1107671523342848,3.7615354946968669,0.49194959293279034,0.29813025575869878,3.3555801639368242E-2,0,0]
["4034000 Total",null,null,null,null,{"$f":"SUBTOTAL(9,F316:F316)","v":8.8240300000000005},0.13857771976025052,2.2961875044779361,0.69332647839980543,0,0,1.4088974080929835,1.1107671523342848,3.7615354946968669,0.49194959293279034,0.29813025575869878,3.3555801639368242E-2,0,0]
["4035000","DEPR-TRANSMISSION","565141","DEPR - TRANS ASSETS NOT CLASSIFIED","SG",1237.22172,19.430052345181863,321.94961414826327,97.211657046423241,0,0,197.54221988641731,155.74122557726184,527.40679877447246,68.976501838911091,41.800994309155477,4.7048759603308232,0,0]
["4035000 Total",null,null,null,null,{"$f":"SUBTOTAL(9,F318:F318)","v":1237.22172},19.430052345181863,321.94961414826327,97.211657046423241,0,0,197.54221988641731,155.74122557726184,527.40679877447246,68.976501838911091,41.800994309155477,4.7048759603308232,0,0]
["4036000","DEPR-DISTRIBUTION","565161","DEPR - DIST ASSETS NOT CLASSIFIED","CA",19.333480000000002,19.333480000000002,0,0,0,0,0,0,0,0,0,0,0,0]
["4036000","DEPR-DISTRIBUTION","565161","DEPR - DIST ASSETS NOT CLASSIFIED","IDU",19.318680000000001,0,0,0,0,0,0,0,0,19.318680000000001,0,0,0,0]
["4036000","DEPR-DISTRIBUTION","565161","DEPR - DIST ASSETS NOT CLASSIFIED","OR",129.90035,0,129.90035,0,0,0,0,0,0,0,0,0,0,0]
["4036000","DEPR-DISTRIBUTION","565161","DEPR - DIST ASSETS NOT CLASSIFIED","UT",224.96778,0,0,0,0,0,0,0,224.96778,0,0,0,0,0]
["4036000","DEPR-DISTRIBUTION","565161","DEPR - DIST ASSETS NOT CLASSIFIED","WA",36.405290000000001,0,0,36.405290000000001,0,0,0,0,0,0,0,0,0,0]
["4036000","DEPR-DISTRIBUTION","565161","DEPR - DIST ASSETS NOT CLASSIFIED","WYP",85.978149999999999,0,0,0,0,0,85.978149999999999,85.978149999999999,0,0,0,0,0,0]
["4036000 Total",null,null,null,null,{"$f":"SUBTOTAL(9,F320:F325)","v":515.90373},19.333480000000002,129.90035,36.405290000000001,0,0,85.978149999999999,85.978149999999999,224.96778,19.318680000000001,0,0,0,0]
["4037000","DEPR - GENERAL","565201","DEPR - GEN ASSETS NOT CLASSIFIED","SG",279.13765999999998,4.3837408102660671,72.637151836656329,21.932555849941831,0,0,44.568788373922175,35.137793469362158,118.99168701790744,15.562238366054016,9.4309949045600128,1.0614977452521597,0,0]
["4037000 Total",null,null,null,null,{"$f":"SUBTOTAL(9,F327:F327)","v":279.13765999999998},4.3837408102660671,72.637151836656329,21.932555849941831,0,0,44.568788373922175,35.137793469362158,118.99168701790744,15.562238366054016,9.4309949045600128,1.0614977452521597,0,0]
["4039999","DEPR EXP-ELEC, OTH","565970","DEPRECIATION-JOINT OWNER BILLED-CREDIT","SG",-226.59700000000001,-3.5586116054131143,-58.965030711838793,-17.804302572176287,0,0,-36.179832342098315,-28.523985573200896,-96.594487835130423,-12.633037502115416,-7.6558467688974163,-0.86169743122767328,0,0]
["4039999 Total",null,null,null,null,{"$f":"SUBTOTAL(9,F329:F329)","v":-226.59700000000001},-3.5586116054131143,-58.965030711838793,-17.804302572176287,0,0,-36.179832342098315,-28.523985573200896,-96.594487835130423,-12.633037502115416,-7.6558467688974163,-0.86169743122767328,0,0]
["Grand Total",null,null,null,null,{"$f":"SUBTOTAL(9,F37:F329)","v":572553.05107000528},13347.299837263507,159810.9523111945,45862.388723451644,0,0,84049.641232430426,67213.858897453814,237353.56769973467,30628.831319872803,16835.782334976659,1500.3699460583559,0,0]